Workbook

Sheet Instructions
A1: Instructions - Highway Revenue Assessment Tool
B2: ="Version " & TEXT(MAX(Version[Version]), "#,##0.00") -> Version 0.10
B3: ="Last Updated: " & TEXT(MAX(Version[Date]), "m/d/yyyy") -> Last Updated: 12/24/2019
A5: Input Definitions | E5: Model Overview
C7: User-entered inputs
C9: Default assumptions that can be overridden by user
C11: Calculations or assumptions that cannot be altered

Sheet Tool
A1: Highway Revenue Assessment Tool | D1: ** DEFAULT INPUTS ** | E1: ** DEFAULT INPUTS **
D2: Market & Vehicle | E2: Revenue
A3: Input
A4: Required Input | F4: Optional Market and Vehicle Settings | K4: Optional Revenue Settings
A5: Select fields from the Required Input section to determine what state or scenario to analyze over a set period. Use Optional Market and Vehicle Settings to customize the analysis on fuel use and other market factors, like inflation. Use Optional Revenue Settings to explore ways to change how revenue is collected and the state gasoline tax is set. | D5: =AVERAGE(Calculations!E69:AL69) -> 0.02257756285 | E5: =SUMIFS(Motor_Fuel_Taxes[Gasoline Tax ($/gallon)],Motor_Fuel_Taxes[State], Input_State, Motor_Fuel_Taxes[Year], "1/1/" & Input_Base_Year_Modeled) -> 0.19 | F5: Annual Inflation Rate (%) | I5: 0.02257756285 | K5: Baseline Gasoline Tax ($/gallon) | N5: 0.19
D6: =SUMIFS(Share_of_Motor_Fuel[Gasoline Share],Share_of_Motor_Fuel[Date], "1/1/" & Input_Base_Year_Modeled, Share_of_Motor_Fuel[State], Input_State)*SUMIFS(Share_of_Motor_Fuel[Share of Motor Fuel Taxes],Share_of_Motor_Fuel[Date], "1/1/" & Input_Base_Year_Modeled, Share_of_Motor_Fuel[State], Input_State) -> 0.323166804 | E6: =SUMIFS(Motor_Fuel_Taxes[Diesel Tax ($/gallon)],Motor_Fuel_Taxes[State], Input_State, Motor_Fuel_Taxes[Year], "1/1/" & Input_Base_Year_Modeled) -> 0.31 | F6: Share of Highway-User Revenue (%) | I6: 0.323166804 | K6: Baseline Diesel Tax ($/gallon) | N6: 0.31
D7: =Calculations!E70/Calculations!E82*Calculations!E86 -> 2528.361622 | E7: =AVERAGE(Calculations!E76:AL76) -> 117.6365925 | F7: Baseline Battery Electric Vehicles | I7: 2528.361622 | K7: Electric Vehicle Fuel Economy Equivalent (MPGe) | N7: 117.6365925
D8: =(Calculations!E72+Calculations!E74)/Calculations!E82*Calculations!E86 -> 2273.527032 | E8: No | F8: Baseline Plug-in Hybrid Electric Vehicles | I8: 2273.527032 | K8: Index Motor Fuel Tax to Inflation (Yes/No) | N8: No
D9: =AVERAGE(Calculations!E71:AL71) -> 0.1477834303 | E9: No | F9: Annual Battery Electric Vehicle Growth Rate (%) | I9: 0.1477834303 | K9: Index Motor Fuel Tax to Fuel Use (Yes/No) | N9: No
D10: =AVERAGE(Calculations!E73:AL73) -> 0.06893368885 | F10: Annual Plug-in 10 Gasoline Hybrid Vehicle Growth Rate (%) | I10: 0.06893368885
A11: State | B11: Vermont | D11: =AVERAGE(Calculations!E75:AL75) -> 0.09889710467 | E11: None | F11: Annual Plug-in 40 Gasoline Hybrid Vehicle Growth Rate (%) | I11: 0.09889710467 | K11: Electric Vehicle Annual Fee | N11: None
A12: Vehicle Type | B12: Automobiles | D12: 0.23 | E12: 0 | F12: Plug-In 10 Gasoline Hybrid Share of Electric Miles (%) | I12: 0.23 | K12: Annual Battery Electric Vehicle Fee | N12: 0
A13: Scenario from U.S. EIA Annual Energy Outlook | B13: Reference case | D13: 0.63 | E13: 0 | F13: Plug-In 40 Gasoline Hybrid Share of Electric Miles (%) | I13: 0.63 | K13: Annual Plug-In Hybrid Electric Vehicle Fee | N13: 0
A14: Inflation Index | B14: CPI | D14: =AVERAGE(Calculations!E78:AL78) -> 0.01444704571 | F14: Annual Change in Vehicle Stock Fuel Economy (MPG) (%) | I14: 0.01444704571
A15: End Year for Analysis | B15: 2030 | D15: =AVERAGE(Calculations!E80:AL80) -> 0.0004852874256 | F15: Annual Change in VMT (%) | I15: 0.0004852874256
A17: Results
A18: Results are shown in summary statstics and three graphs. The top-left graph estimates revenue losses compared to the baseline (first year) from several factors (negative losses are revenue increases); this graph is not affected by changes to Optional Revenue Settings. The bottom-left graph shows total revenue and revenue losses/gains considering all inputs, including Optional Revenue Settings. The right graph shows the changes in a number of factors scaled to 2017 levels allowing for an apple-to-apples comparsion of factors with different units of measurement. See the Calculations tab for detailed results. | F18: ="Change in Revenue, "&Calculations!F$97&"-"&Input_End_Year_Modeled&" ("&Calculations!E$97&" dollars) ($)" -> Change in Revenue, 2018-2030 (2017 dollars) ($) | I18: =(INDEX(Calculations!$E$97:$AL$117, MATCH(Calculations!A$101, Calculations!A$97:A$117,0), Input_End_Year_Modeled-Calculations!$E$97+1)-Calculations!E$101) -> -20326548.26 | K18: ="Vehicle Stock in " &Input_End_Year_Modeled & " (vehicles)" -> Vehicle Stock in 2030 (vehicles) | N18: =INDEX(Calculations!$E$68:$AL$94, MATCH(Calculations!A$86, Calculations!A$68:A$94,0), Input_End_Year_Modeled-Calculations!$E$97+1) -> 939790.2671
F19: ="Change in Revenue, "&Calculations!F$97&"-"&Input_End_Year_Modeled&" ("&Calculations!E$97&" dollars) (%)" -> Change in Revenue, 2018-2030 (2017 dollars) (%) | I19: =(INDEX(Calculations!$E$97:$AL$117, MATCH(Calculations!A$101, Calculations!A$97:A$117,0), Input_End_Year_Modeled-Calculations!$E$97+1)-Calculations!E$101)/Calculations!E$101 -> -0.2487237501 | K19: ="Vehicle Stock Fuel Economy in " &Input_End_Year_Modeled & " (mpg)" -> Vehicle Stock Fuel Economy in 2030 (mpg) | N19: =INDEX(Calculations!$E$68:$AL$94, MATCH(Calculations!A$92, Calculations!A$68:A$94,0), Input_End_Year_Modeled-Calculations!$E$97+1) -> 37.08078
F20: Change in Gasoline Consumption, 2019-2025 (gallons) | I20: =INDEX(Calculations!$E$68:$AL$94,MATCH(Calculations!A$94,Calculations!A$68:A$94,0),Input_End_Year_Modeled-Calculations!$E$97+1)-Calculations!E$94 -> -106981832.9 | K20: ="Electric Vehicles in " &Input_End_Year_Modeled & " (vehicles)" -> Electric Vehicles in 2030 (vehicles) | N20: =INDEX(Calculations!$E$68:$AL$94, MATCH(Calculations!A$90, Calculations!A$68:A$94,0), Input_End_Year_Modeled-Calculations!$E$97+1) -> 80148
F21: Change in Gasoline Consumption, 2019-2025 (%) | I21: =(INDEX(Calculations!$E$68:$AL$94, MATCH(Calculations!A$94, Calculations!A$68:A$94,0), Input_End_Year_Modeled-Calculations!$E$97+1)-Calculations!E$94)/Calculations!E$94 -> -0.2487237501 | K21: ="Annual VMT in " &Input_End_Year_Modeled & " (miles)" -> Annual VMT in 2030 (miles) | N21: =INDEX(Calculations!$E$68:$AL$94, MATCH(Calculations!A$93, Calculations!A$68:A$94,0), Input_End_Year_Modeled-Calculations!$E$97+1) -> 12750.005
F22: ="Gasoline Tax in " &Input_End_Year_Modeled & " ($/gallon)" -> Gasoline Tax in 2030 ($/gallon) | I22: =(INDEX(Calculations!$E$97:$AL$117,MATCH(Calculations!A$113,Calculations!A$97:A$117,0),Input_End_Year_Modeled-Calculations!$E$97+1)) -> 0.19
F23: Change in Gasoline Tax, 2019-2025 (%) | I23: =(INDEX(Calculations!$E$97:$AL$117, MATCH(Calculations!A$113, Calculations!A$97:A$117,0), Input_End_Year_Modeled-Calculations!$E$97+1)-Calculations!E$113)/Calculations!E$113 -> 0
F24: Change in Electric Vehicle Fee Revenue, 2019-2025 (Real) ($) | I24: =(INDEX(Calculations!$E$97:$AL$117, MATCH(Calculations!A$117, Calculations!A$97:A$117,0), Input_End_Year_Modeled-Calculations!$E$97+1)-Calculations!E$117) -> 0
F25: Change in Electric Vehicle Fee Revenue, 2019-2025 (Real) (%) | I25: =(INDEX(Calculations!$E$97:$AL$117, MATCH(Calculations!A$117, Calculations!A$97:A$117,0), Input_End_Year_Modeled-Calculations!$E$97+1)-Calculations!E$117)/MAX(Calculations!E$117, 1) -> 0

Sheet Data - VMT (hidden)
A1: Scenario | B1: Technology Type | C1: Vehicle Type | D1: Year | E1: VMT
A2: Reference case | B2: VMT/Licensed Driver | C2: Light-Duty Vehicles | D2: 2017 | E2: 12763.521
A3: Reference case | B3: VMT/Licensed Driver | C3: Light-Duty Vehicles | D3: 2018 | E3: 12836.163
A4: Reference case | B4: VMT/Licensed Driver | C4: Light-Duty Vehicles | D4: 2019 | E4: 12878.799
A5: Reference case | B5: VMT/Licensed Driver | C5: Light-Duty Vehicles | D5: 2020 | E5: 12888.227
A6: Reference case | B6: VMT/Licensed Driver | C6: Light-Duty Vehicles | D6: 2021 | E6: 12897.083
A7: Reference case | B7: VMT/Licensed Driver | C7: Light-Duty Vehicles | D7: 2022 | E7: 12890.719
A8: Reference case | B8: VMT/Licensed Driver | C8: Light-Duty Vehicles | D8: 2023 | E8: 12866.958
A9: Reference case | B9: VMT/Licensed Driver | C9: Light-Duty Vehicles | D9: 2024 | E9: 12826.429
A10: Reference case | B10: VMT/Licensed Driver | C10: Light-Duty Vehicles | D10: 2025 | E10: 12781.326
A11: Reference case | B11: VMT/Licensed Driver | C11: Light-Duty Vehicles | D11: 2026 | E11: 12783.22
A12: Reference case | B12: VMT/Licensed Driver | C12: Light-Duty Vehicles | D12: 2027 | E12: 12785.477
A13: Reference case | B13: VMT/Licensed Driver | C13: Light-Duty Vehicles | D13: 2028 | E13: 12784.95
A14: Reference case | B14: VMT/Licensed Driver | C14: Light-Duty Vehicles | D14: 2029 | E14: 12768.919
A15: Reference case | B15: VMT/Licensed Driver | C15: Light-Duty Vehicles | D15: 2030 | E15: 12750.005
A16: Reference case | B16: VMT/Licensed Driver | C16: Light-Duty Vehicles | D16: 2031 | E16: 12732.35
A17: Reference case | B17: VMT/Licensed Driver | C17: Light-Duty Vehicles | D17: 2032 | E17: 12711.731
A18: Reference case | B18: VMT/Licensed Driver | C18: Light-Duty Vehicles | D18: 2033 | E18: 12691.789
A19: Reference case | B19: VMT/Licensed Driver | C19: Light-Duty Vehicles | D19: 2034 | E19: 12669.945
A20: Reference case | B20: VMT/Licensed Driver | C20: Light-Duty Vehicles | D20: 2035 | E20: 12645.602
A21: Reference case | B21: VMT/Licensed Driver | C21: Light-Duty Vehicles | D21: 2036 | E21: 12648.322
A22: Reference case | B22: VMT/Licensed Driver | C22: Light-Duty Vehicles | D22: 2037 | E22: 12660.272
A23: Reference case | B23: VMT/Licensed Driver | C23: Light-Duty Vehicles | D23: 2038 | E23: 12677.917
A24: Reference case | B24: VMT/Licensed Driver | C24: Light-Duty Vehicles | D24: 2039 | E24: 12698.433
A25: Reference case | B25: VMT/Licensed Driver | C25: Light-Duty Vehicles | D25: 2040 | E25: 12717.517
A26: Reference case | B26: VMT/Licensed Driver | C26: Light-Duty Vehicles | D26: 2041 | E26: 12743.608
A27: Reference case | B27: VMT/Licensed Driver | C27: Light-Duty Vehicles | D27: 2042 | E27: 12769.362
A28: Reference case | B28: VMT/Licensed Driver | C28: Light-Duty Vehicles | D28: 2043 | E28: 12797.368
A29: Reference case | B29: VMT/Licensed Driver | C29: Light-Duty Vehicles | D29: 2044 | E29: 12828.273
A30: Reference case | B30: VMT/Licensed Driver | C30: Light-Duty Vehicles | D30: 2045 | E30: 12856.681
A31: Reference case | B31: VMT/Licensed Driver | C31: Light-Duty Vehicles | D31: 2046 | E31: 12886.4
A32: Reference case | B32: VMT/Licensed Driver | C32: Light-Duty Vehicles | D32: 2047 | E32: 12913.401
A33: Reference case | B33: VMT/Licensed Driver | C33: Light-Duty Vehicles | D33: 2048 | E33: 12936.143
A34: Reference case | B34: VMT/Licensed Driver | C34: Light-Duty Vehicles | D34: 2049 | E34: 12958.683
A35: Reference case | B35: VMT/Licensed Driver | C35: Light-Duty Vehicles | D35: 2050 | E35: 12974.976
A36: Reference case | B36: VMT/Licensed Driver | C36: Light-Duty Vehicles | E36: 0
A37: High oil price | B37: VMT/Licensed Driver | C37: Light-Duty Vehicles | D37: 2017 | E37: 12763.521
A38: High oil price | B38: VMT/Licensed Driver | C38: Light-Duty Vehicles | D38: 2018 | E38: 12836.164
A39: High oil price | B39: VMT/Licensed Driver | C39: Light-Duty Vehicles | D39: 2019 | E39: 12752.395
A40: High oil price | B40: VMT/Licensed Driver | C40: Light-Duty Vehicles | D40: 2020 | E40: 12627.039
A41: High oil price | B41: VMT/Licensed Driver | C41: Light-Duty Vehicles | D41: 2021 | E41: 12489.981
A42: High oil price | B42: VMT/Licensed Driver | C42: Light-Duty Vehicles | D42: 2022 | E42: 12343.499
A43: High oil price | B43: VMT/Licensed Driver | C43: Light-Duty Vehicles | D43: 2023 | E43: 12193.628
A44: High oil price | B44: VMT/Licensed Driver | C44: Light-Duty Vehicles | D44: 2024 | E44: 12046.79
A45: High oil price | B45: VMT/Licensed Driver | C45: Light-Duty Vehicles | D45: 2025 | E45: 11907.997
A46: High oil price | B46: VMT/Licensed Driver | C46: Light-Duty Vehicles | D46: 2026 | E46: 11820.933
A47: High oil price | B47: VMT/Licensed Driver | C47: Light-Duty Vehicles | D47: 2027 | E47: 11747.26
A48: High oil price | B48: VMT/Licensed Driver | C48: Light-Duty Vehicles | D48: 2028 | E48: 11670.314
A49: High oil price | B49: VMT/Licensed Driver | C49: Light-Duty Vehicles | D49: 2029 | E49: 11575.466
A50: High oil price | B50: VMT/Licensed Driver | C50: Light-Duty Vehicles | D50: 2030 | E50: 11470.159
A51: High oil price | B51: VMT/Licensed Driver | C51: Light-Duty Vehicles | D51: 2031 | E51: 11365.025
A52: High oil price | B52: VMT/Licensed Driver | C52: Light-Duty Vehicles | D52: 2032 | E52: 11255.765
A53: High oil price | B53: VMT/Licensed Driver | C53: Light-Duty Vehicles | D53: 2033 | E53: 11144.341
A54: High oil price | B54: VMT/Licensed Driver | C54: Light-Duty Vehicles | D54: 2034 | E54: 11030.504
A55: High oil price | B55: VMT/Licensed Driver | C55: Light-Duty Vehicles | D55: 2035 | E55: 10912.493
A56: High oil price | B56: VMT/Licensed Driver | C56: Light-Duty Vehicles | D56: 2036 | E56: 10817.304
A57: High oil price | B57: VMT/Licensed Driver | C57: Light-Duty Vehicles | D57: 2037 | E57: 10729.374
A58: High oil price | B58: VMT/Licensed Driver | C58: Light-Duty Vehicles | D58: 2038 | E58: 10645.175
A59: High oil price | B59: VMT/Licensed Driver | C59: Light-Duty Vehicles | D59: 2039 | E59: 10565.681
A60: High oil price | B60: VMT/Licensed Driver | C60: Light-Duty Vehicles | D60: 2040 | E60: 10487.229
A61: High oil price | B61: VMT/Licensed Driver | C61: Light-Duty Vehicles | D61: 2041 | E61: 10416.505
A62: High oil price | B62: VMT/Licensed Driver | C62: Light-Duty Vehicles | D62: 2042 | E62: 10353.034
A63: High oil price | B63: VMT/Licensed Driver | C63: Light-Duty Vehicles | D63: 2043 | E63: 10295.553
A64: High oil price | B64: VMT/Licensed Driver | C64: Light-Duty Vehicles | D64: 2044 | E64: 10243.33
A65: High oil price | B65: VMT/Licensed Driver | C65: Light-Duty Vehicles | D65: 2045 | E65: 10193.284
A66: High oil price | B66: VMT/Licensed Driver | C66: Light-Duty Vehicles | D66: 2046 | E66: 10153.502
A67: High oil price | B67: VMT/Licensed Driver | C67: Light-Duty Vehicles | D67: 2047 | E67: 10117.258
A68: High oil price | B68: VMT/Licensed Driver | C68: Light-Duty Vehicles | D68: 2048 | E68: 10082.378
A69: High oil price | B69: VMT/Licensed Driver | C69: Light-Duty Vehicles | D69: 2049 | E69: 10051.533
A70: High oil price | B70: VMT/Licensed Driver | C70: Light-Duty Vehicles | D70: 2050 | E70: 10017.868
A71: High oil price | B71: VMT/Licensed Driver | C71: Light-Duty Vehicles | E71: -8
A72: Low oil price | B72: VMT/Licensed Driver | C72: Light-Duty Vehicles | D72: 2017 | E72: 12763.521
A73: Low oil price | B73: VMT/Licensed Driver | C73: Light-Duty Vehicles | D73: 2018 | E73: 12836.164
A74: Low oil price | B74: VMT/Licensed Driver | C74: Light-Duty Vehicles | D74: 2019 | E74: 12924.233
A75: Low oil price | B75: VMT/Licensed Driver | C75: Light-Duty Vehicles | D75: 2020 | E75: 13035.471
A76: Low oil price | B76: VMT/Licensed Driver | C76: Light-Duty Vehicles | D76: 2021 | E76: 13129.188
A77: Low oil price | B77: VMT/Licensed Driver | C77: Light-Duty Vehicles | D77: 2022 | E77: 13199.075
A78: Low oil price | B78: VMT/Licensed Driver | C78: Light-Duty Vehicles | D78: 2023 | E78: 13248.788
A79: Low oil price | B79: VMT/Licensed Driver | C79: Light-Duty Vehicles | D79: 2024 | E79: 13280.58
A80: Low oil price | B80: VMT/Licensed Driver | C80: Light-Duty Vehicles | D80: 2025 | E80: 13310.693
A81: Low oil price | B81: VMT/Licensed Driver | C81: Light-Duty Vehicles | D81: 2026 | E81: 13397.747
A82: Low oil price | B82: VMT/Licensed Driver | C82: Light-Duty Vehicles | D82: 2027 | E82: 13490.829
A83: Low oil price | B83: VMT/Licensed Driver | C83: Light-Duty Vehicles | D83: 2028 | E83: 13581.175
A84: Low oil price | B84: VMT/Licensed Driver | C84: Light-Duty Vehicles | D84: 2029 | E84: 13658.034
A85: Low oil price | B85: VMT/Licensed Driver | C85: Light-Duty Vehicles | D85: 2030 | E85: 13733.42
A86: Low oil price | B86: VMT/Licensed Driver | C86: Light-Duty Vehicles | D86: 2031 | E86: 13816.059
A87: Low oil price | B87: VMT/Licensed Driver | C87: Light-Duty Vehicles | D87: 2032 | E87: 13897.403
A88: Low oil price | B88: VMT/Licensed Driver | C88: Light-Duty Vehicles | D88: 2033 | E88: 13982.409
A89: Low oil price | B89: VMT/Licensed Driver | C89: Light-Duty Vehicles | D89: 2034 | E89: 14072.792
A90: Low oil price | B90: VMT/Licensed Driver | C90: Light-Duty Vehicles | D90: 2035 | E90: 14163.964
A91: Low oil price | B91: VMT/Licensed Driver | C91: Light-Duty Vehicles | D91: 2036 | E91: 14289.881
A92: Low oil price | B92: VMT/Licensed Driver | C92: Light-Duty Vehicles | D92: 2037 | E92: 14424.764
A93: Low oil price | B93: VMT/Licensed Driver | C93: Light-Duty Vehicles | D93: 2038 | E93: 14576.205
A94: Low oil price | B94: VMT/Licensed Driver | C94: Light-Duty Vehicles | D94: 2039 | E94: 14734.896
A95: Low oil price | B95: VMT/Licensed Driver | C95: Light-Duty Vehicles | D95: 2040 | E95: 14898.349
A96: Low oil price | B96: VMT/Licensed Driver | C96: Light-Duty Vehicles | D96: 2041 | E96: 15070.724
A97: Low oil price | B97: VMT/Licensed Driver | C97: Light-Duty Vehicles | D97: 2042 | E97: 15246.415
A98: Low oil price | B98: VMT/Licensed Driver | C98: Light-Duty Vehicles | D98: 2043 | E98: 15421.548
A99: Low oil price | B99: VMT/Licensed Driver | C99: Light-Duty Vehicles | D99: 2044 | E99: 15595.639
A100: Low oil price | B100: VMT/Licensed Driver | C100: Light-Duty Vehicles | D100: 2045 | E100: 15761.421
A101: Low oil price | B101: VMT/Licensed Driver | C101: Light-Duty Vehicles | D101: 2046 | E101: 15928.03
A102: Low oil price | B102: VMT/Licensed Driver | C102: Light-Duty Vehicles | D102: 2047 | E102: 16088.121
A103: Low oil price | B103: VMT/Licensed Driver | C103: Light-Duty Vehicles | D103: 2048 | E103: 16243.338
A104: Low oil price | B104: VMT/Licensed Driver | C104: Light-Duty Vehicles | D104: 2049 | E104: 16393.824
A105: Low oil price | B105: VMT/Licensed Driver | C105: Light-Duty Vehicles | D105: 2050 | E105: 16535.421
A106: Low oil price | B106: VMT/Licensed Driver | C106: Light-Duty Vehicles | E106: 8

Sheet Data - Stock and MPG (hidden)
A1: Scenario | B1: Vehicle Type | C1: Technology Type | D1: Year | E1: Vehicle Stock | F1: MPG
A2: Reference case | B2: Passenger Cars | C2: Gasoline ICE Vehicles | D2: 2017 | E2: 122.711388 | F2: 37.651379
A3: Reference case | B3: Passenger Cars | C3: Gasoline ICE Vehicles | D3: 2018 | E3: 123.135612 | F3: 37.957962
A4: Reference case | B4: Passenger Cars | C4: Gasoline ICE Vehicles | D4: 2019 | E4: 123.253426 | F4: 38.465427
A5: Reference case | B5: Passenger Cars | C5: Gasoline ICE Vehicles | D5: 2020 | E5: 123.222893 | F5: 40.022381
A6: Reference case | B6: Passenger Cars | C6: Gasoline ICE Vehicles | D6: 2021 | E6: 123.055527 | F6: 41.651745
A7: Reference case | B7: Passenger Cars | C7: Gasoline ICE Vehicles | D7: 2022 | E7: 122.718056 | F7: 43.52977
A8: Reference case | B8: Passenger Cars | C8: Gasoline ICE Vehicles | D8: 2023 | E8: 122.458916 | F8: 45.468845
A9: Reference case | B9: Passenger Cars | C9: Gasoline ICE Vehicles | D9: 2024 | E9: 122.266251 | F9: 46.535675
A10: Reference case | B10: Passenger Cars | C10: Gasoline ICE Vehicles | D10: 2025 | E10: 122.137253 | F10: 48.729038
A11: Reference case | B11: Passenger Cars | C11: Gasoline ICE Vehicles | D11: 2026 | E11: 122.025963 | F11: 48.735195
A12: Reference case | B12: Passenger Cars | C12: Gasoline ICE Vehicles | D12: 2027 | E12: 121.913261 | F12: 48.725323
A13: Reference case | B13: Passenger Cars | C13: Gasoline ICE Vehicles | D13: 2028 | E13: 121.737373 | F13: 48.65189
A14: Reference case | B14: Passenger Cars | C14: Gasoline ICE Vehicles | D14: 2029 | E14: 121.489922 | F14: 48.609917
A15: Reference case | B15: Passenger Cars | C15: Gasoline ICE Vehicles | D15: 2030 | E15: 121.222878 | F15: 48.572491
A16: Reference case | B16: Passenger Cars | C16: Gasoline ICE Vehicles | D16: 2031 | E16: 121.018806 | F16: 48.519833
A17: Reference case | B17: Passenger Cars | C17: Gasoline ICE Vehicles | D17: 2032 | E17: 120.824837 | F17: 48.454433
A18: Reference case | B18: Passenger Cars | C18: Gasoline ICE Vehicles | D18: 2033 | E18: 120.670578 | F18: 48.374462
A19: Reference case | B19: Passenger Cars | C19: Gasoline ICE Vehicles | D19: 2034 | E19: 120.57618 | F19: 48.274189
A20: Reference case | B20: Passenger Cars | C20: Gasoline ICE Vehicles | D20: 2035 | E20: 120.540047 | F20: 48.174492
A21: Reference case | B21: Passenger Cars | C21: Gasoline ICE Vehicles | D21: 2036 | E21: 120.566536 | F21: 48.082279
A22: Reference case | B22: Passenger Cars | C22: Gasoline ICE Vehicles | D22: 2037 | E22: 120.675819 | F22: 47.98782
A23: Reference case | B23: Passenger Cars | C23: Gasoline ICE Vehicles | D23: 2038 | E23: 120.892532 | F23: 47.89315
A24: Reference case | B24: Passenger Cars | C24: Gasoline ICE Vehicles | D24: 2039 | E24: 121.176064 | F24: 47.804749
A25: Reference case | B25: Passenger Cars | C25: Gasoline ICE Vehicles | D25: 2040 | E25: 121.525269 | F25: 47.70628
A26: Reference case | B26: Passenger Cars | C26: Gasoline ICE Vehicles | D26: 2041 | E26: 121.932854 | F26: 47.601894
A27: Reference case | B27: Passenger Cars | C27: Gasoline ICE Vehicles | D27: 2042 | E27: 122.378746 | F27: 47.502117
A28: Reference case | B28: Passenger Cars | C28: Gasoline ICE Vehicles | D28: 2043 | E28: 122.838478 | F28: 47.399403
A29: Reference case | B29: Passenger Cars | C29: Gasoline ICE Vehicles | D29: 2044 | E29: 123.325874 | F29: 47.294979
A30: Reference case | B30: Passenger Cars | C30: Gasoline ICE Vehicles | D30: 2045 | E30: 123.819046 | F30: 47.18959
A31: Reference case | B31: Passenger Cars | C31: Gasoline ICE Vehicles | D31: 2046 | E31: 124.296104 | F31: 47.086609
A32: Reference case | B32: Passenger Cars | C32: Gasoline ICE Vehicles | D32: 2047 | E32: 124.714691 | F32: 46.985146
A33: Reference case | B33: Passenger Cars | C33: Gasoline ICE Vehicles | D33: 2048 | E33: 125.055206 | F33: 46.887402
A34: Reference case | B34: Passenger Cars | C34: Gasoline ICE Vehicles | D34: 2049 | E34: 125.339851 | F34: 46.791164
A35: Reference case | B35: Passenger Cars | C35: Gasoline ICE Vehicles | D35: 2050 | E35: 125.555641 | F35: 46.696182
A36: High oil price | B36: Passenger Cars | C36: Gasoline ICE Vehicles | D36: 2017 | E36: 122.711388 | F36: 37.651379
A37: High oil price | B37: Passenger Cars | C37: Gasoline ICE Vehicles | D37: 2018 | E37: 123.135605 | F37: 37.957962
A38: High oil price | B38: Passenger Cars | C38: Gasoline ICE Vehicles | D38: 2019 | E38: 123.468582 | F38: 38.39056
A39: High oil price | B39: Passenger Cars | C39: Gasoline ICE Vehicles | D39: 2020 | E39: 123.946411 | F39: 39.385082
A40: High oil price | B40: Passenger Cars | C40: Gasoline ICE Vehicles | D40: 2021 | E40: 124.734612 | F40: 40.789917
A41: High oil price | B41: Passenger Cars | C41: Gasoline ICE Vehicles | D41: 2022 | E41: 125.324799 | F41: 42.59446
A42: High oil price | B42: Passenger Cars | C42: Gasoline ICE Vehicles | D42: 2023 | E42: 125.686981 | F42: 44.85442
A43: High oil price | B43: Passenger Cars | C43: Gasoline ICE Vehicles | D43: 2024 | E43: 125.709206 | F43: 45.179943
A44: High oil price | B44: Passenger Cars | C44: Gasoline ICE Vehicles | D44: 2025 | E44: 125.357925 | F44: 47.531563
A45: High oil price | B45: Passenger Cars | C45: Gasoline ICE Vehicles | D45: 2026 | E45: 124.665436 | F45: 47.738762
A46: High oil price | B46: Passenger Cars | C46: Gasoline ICE Vehicles | D46: 2027 | E46: 123.71669 | F46: 47.799294
A47: High oil price | B47: Passenger Cars | C47: Gasoline ICE Vehicles | D47: 2028 | E47: 122.671371 | F47: 47.811932
A48: High oil price | B48: Passenger Cars | C48: Gasoline ICE Vehicles | D48: 2029 | E48: 121.651817 | F48: 47.835682
A49: High oil price | B49: Passenger Cars | C49: Gasoline ICE Vehicles | D49: 2030 | E49: 120.786827 | F49: 47.824982
A50: High oil price | B50: Passenger Cars | C50: Gasoline ICE Vehicles | D50: 2031 | E50: 120.13829 | F50: 47.755966
A51: High oil price | B51: Passenger Cars | C51: Gasoline ICE Vehicles | D51: 2032 | E51: 119.538773 | F51: 47.68161
A52: High oil price | B52: Passenger Cars | C52: Gasoline ICE Vehicles | D52: 2033 | E52: 118.958099 | F52: 47.58004
A53: High oil price | B53: Passenger Cars | C53: Gasoline ICE Vehicles | D53: 2034 | E53: 118.335335 | F53: 47.460133
A54: High oil price | B54: Passenger Cars | C54: Gasoline ICE Vehicles | D54: 2035 | E54: 117.60672 | F54: 47.333622
A55: High oil price | B55: Passenger Cars | C55: Gasoline ICE Vehicles | D55: 2036 | E55: 116.780487 | F55: 47.212513
A56: High oil price | B56: Passenger Cars | C56: Gasoline ICE Vehicles | D56: 2037 | E56: 115.897369 | F56: 47.087608
A57: High oil price | B57: Passenger Cars | C57: Gasoline ICE Vehicles | D57: 2038 | E57: 115.003983 | F57: 46.979309
A58: High oil price | B58: Passenger Cars | C58: Gasoline ICE Vehicles | D58: 2039 | E58: 114.140953 | F58: 46.879658
A59: High oil price | B59: Passenger Cars | C59: Gasoline ICE Vehicles | D59: 2040 | E59: 113.332893 | F59: 46.784981
A60: High oil price | B60: Passenger Cars | C60: Gasoline ICE Vehicles | D60: 2041 | E60: 112.598656 | F60: 46.693428
A61: High oil price | B61: Passenger Cars | C61: Gasoline ICE Vehicles | D61: 2042 | E61: 111.952255 | F61: 46.602459
A62: High oil price | B62: Passenger Cars | C62: Gasoline ICE Vehicles | D62: 2043 | E62: 111.377106 | F62: 46.511791
A63: High oil price | B63: Passenger Cars | C63: Gasoline ICE Vehicles | D63: 2044 | E63: 110.860054 | F63: 46.424152
A64: High oil price | B64: Passenger Cars | C64: Gasoline ICE Vehicles | D64: 2045 | E64: 110.395752 | F64: 46.329544
A65: High oil price | B65: Passenger Cars | C65: Gasoline ICE Vehicles | D65: 2046 | E65: 109.996979 | F65: 46.212399
A66: High oil price | B66: Passenger Cars | C66: Gasoline ICE Vehicles | D66: 2047 | E66: 109.605331 | F66: 46.083298
A67: High oil price | B67: Passenger Cars | C67: Gasoline ICE Vehicles | D67: 2048 | E67: 109.201859 | F67: 45.947041
A68: High oil price | B68: Passenger Cars | C68: Gasoline ICE Vehicles | D68: 2049 | E68: 108.81765 | F68: 45.795517
A69: High oil price | B69: Passenger Cars | C69: Gasoline ICE Vehicles | D69: 2050 | E69: 108.394997 | F69: 45.64893
A70: Low oil price | B70: Passenger Cars | C70: Gasoline ICE Vehicles | D70: 2017 | E70: 122.711388 | F70: 37.651375
A71: Low oil price | B71: Passenger Cars | C71: Gasoline ICE Vehicles | D71: 2018 | E71: 123.135597 | F71: 37.95797
A72: Low oil price | B72: Passenger Cars | C72: Gasoline ICE Vehicles | D72: 2019 | E72: 123.139664 | F72: 38.439453
A73: Low oil price | B73: Passenger Cars | C73: Gasoline ICE Vehicles | D73: 2020 | E73: 122.852577 | F73: 40.05592
A74: Low oil price | B74: Passenger Cars | C74: Gasoline ICE Vehicles | D74: 2021 | E74: 122.238907 | F74: 41.876621
A75: Low oil price | B75: Passenger Cars | C75: Gasoline ICE Vehicles | D75: 2022 | E75: 121.356705 | F75: 43.833393
A76: Low oil price | B76: Passenger Cars | C76: Gasoline ICE Vehicles | D76: 2023 | E76: 120.66291 | F76: 45.840584
A77: Low oil price | B77: Passenger Cars | C77: Gasoline ICE Vehicles | D77: 2024 | E77: 120.109932 | F77: 46.870735
A78: Low oil price | B78: Passenger Cars | C78: Gasoline ICE Vehicles | D78: 2025 | E78: 119.631531 | F78: 49.174614
A79: Low oil price | B79: Passenger Cars | C79: Gasoline ICE Vehicles | D79: 2026 | E79: 119.204033 | F79: 49.130413
A80: Low oil price | B80: Passenger Cars | C80: Gasoline ICE Vehicles | D80: 2027 | E80: 118.825745 | F80: 49.040295
A81: Low oil price | B81: Passenger Cars | C81: Gasoline ICE Vehicles | D81: 2028 | E81: 118.453918 | F81: 48.936516
A82: Low oil price | B82: Passenger Cars | C82: Gasoline ICE Vehicles | D82: 2029 | E82: 118.09449 | F82: 48.860958
A83: Low oil price | B83: Passenger Cars | C83: Gasoline ICE Vehicles | D83: 2030 | E83: 117.80278 | F83: 48.788559
A84: Low oil price | B84: Passenger Cars | C84: Gasoline ICE Vehicles | D84: 2031 | E84: 117.639496 | F84: 48.709179
A85: Low oil price | B85: Passenger Cars | C85: Gasoline ICE Vehicles | D85: 2032 | E85: 117.548927 | F85: 48.6367
A86: Low oil price | B86: Passenger Cars | C86: Gasoline ICE Vehicles | D86: 2033 | E86: 117.584785 | F86: 48.561047
A87: Low oil price | B87: Passenger Cars | C87: Gasoline ICE Vehicles | D87: 2034 | E87: 117.760521 | F87: 48.465355
A88: Low oil price | B88: Passenger Cars | C88: Gasoline ICE Vehicles | D88: 2035 | E88: 118.0672 | F88: 48.372231
A89: Low oil price | B89: Passenger Cars | C89: Gasoline ICE Vehicles | D89: 2036 | E89: 118.503288 | F89: 48.287369
A90: Low oil price | B90: Passenger Cars | C90: Gasoline ICE Vehicles | D90: 2037 | E90: 119.09021 | F90: 48.204075
A91: Low oil price | B91: Passenger Cars | C91: Gasoline ICE Vehicles | D91: 2038 | E91: 119.837502 | F91: 48.113274
A92: Low oil price | B92: Passenger Cars | C92: Gasoline ICE Vehicles | D92: 2039 | E92: 120.716515 | F92: 48.025414
A93: Low oil price | B93: Passenger Cars | C93: Gasoline ICE Vehicles | D93: 2040 | E93: 121.698433 | F93: 47.935261
A94: Low oil price | B94: Passenger Cars | C94: Gasoline ICE Vehicles | D94: 2041 | E94: 122.797592 | F94: 47.843102
A95: Low oil price | B95: Passenger Cars | C95: Gasoline ICE Vehicles | D95: 2042 | E95: 123.959648 | F95: 47.752441
A96: Low oil price | B96: Passenger Cars | C96: Gasoline ICE Vehicles | D96: 2043 | E96: 125.16584 | F96: 47.662533
A97: Low oil price | B97: Passenger Cars | C97: Gasoline ICE Vehicles | D97: 2044 | E97: 126.427681 | F97: 47.572563
A98: Low oil price | B98: Passenger Cars | C98: Gasoline ICE Vehicles | D98: 2045 | E98: 127.708435 | F98: 47.487564
A99: Low oil price | B99: Passenger Cars | C99: Gasoline ICE Vehicles | D99: 2046 | E99: 128.973602 | F99: 47.399704
A100: Low oil price | B100: Passenger Cars | C100: Gasoline ICE Vehicles | D100: 2047 | E100: 130.167511 | F100: 47.302631
A101: Low oil price | B101: Passenger Cars | C101: Gasoline ICE Vehicles | D101: 2048 | E101: 131.275452 | F101: 47.21249
A102: Low oil price | B102: Passenger Cars | C102: Gasoline ICE Vehicles | D102: 2049 | E102: 132.314163 | F102: 47.12429
A103: Low oil price | B103: Passenger Cars | C103: Gasoline ICE Vehicles | D103: 2050 | E103: 133.279037 | F103: 47.041267
A104: Reference case | B104: Passenger Cars | C104: TDI Diesel ICE | D104: 2017 | E104: 0.803633 | F104: 47.572586
A105: Reference case | B105: Passenger Cars | C105: TDI Diesel ICE | D105: 2018 | E105: 0.777678 | F105: 47.699425
A106: Reference case | B106: Passenger Cars | C106: TDI Diesel ICE | D106: 2019 | E106: 0.766264 | F106: 48.383202
A107: Reference case | B107: Passenger Cars | C107: TDI Diesel ICE | D107: 2020 | E107: 0.770079 | F107: 49.746502
A108: Reference case | B108: Passenger Cars | C108: TDI Diesel ICE | D108: 2021 | E108: 0.778114 | F108: 51.257137
A109: Reference case | B109: Passenger Cars | C109: TDI Diesel ICE | D109: 2022 | E109: 0.792951 | F109: 52.817425
A110: Reference case | B110: Passenger Cars | C110: TDI Diesel ICE | D110: 2023 | E110: 0.816763 | F110: 54.303925
A111: Reference case | B111: Passenger Cars | C111: TDI Diesel ICE | D111: 2024 | E111: 0.849333 | F111: 55.087799
A112: Reference case | B112: Passenger Cars | C112: TDI Diesel ICE | D112: 2025 | E112: 0.893797 | F112: 57.005657
A113: Reference case | B113: Passenger Cars | C113: TDI Diesel ICE | D113: 2026 | E113: 0.952299 | F113: 56.814777
A114: Reference case | B114: Passenger Cars | C114: TDI Diesel ICE | D114: 2027 | E114: 1.026648 | F114: 56.715664
A115: Reference case | B115: Passenger Cars | C115: TDI Diesel ICE | D115: 2028 | E115: 1.123837 | F115: 56.572308
A116: Reference case | B116: Passenger Cars | C116: TDI Diesel ICE | D116: 2029 | E116: 1.23531 | F116: 56.48843
A117: Reference case | B117: Passenger Cars | C117: TDI Diesel ICE | D117: 2030 | E117: 1.363965 | F117: 56.383816
A118: Reference case | B118: Passenger Cars | C118: TDI Diesel ICE | D118: 2031 | E118: 1.498988 | F118: 56.266548
A119: Reference case | B119: Passenger Cars | C119: TDI Diesel ICE | D119: 2032 | E119: 1.636628 | F119: 56.146465
A120: Reference case | B120: Passenger Cars | C120: TDI Diesel ICE | D120: 2033 | E120: 1.771043 | F120: 56.016338
A121: Reference case | B121: Passenger Cars | C121: TDI Diesel ICE | D121: 2034 | E121: 1.910757 | F121: 55.851303
A122: Reference case | B122: Passenger Cars | C122: TDI Diesel ICE | D122: 2035 | E122: 2.043822 | F122: 55.689728
A123: Reference case | B123: Passenger Cars | C123: TDI Diesel ICE | D123: 2036 | E123: 2.168493 | F123: 55.535896
A124: Reference case | B124: Passenger Cars | C124: TDI Diesel ICE | D124: 2037 | E124: 2.287811 | F124: 55.367142
A125: Reference case | B125: Passenger Cars | C125: TDI Diesel ICE | D125: 2038 | E125: 2.399066 | F125: 55.209362
A126: Reference case | B126: Passenger Cars | C126: TDI Diesel ICE | D126: 2039 | E126: 2.501343 | F126: 55.047295
A127: Reference case | B127: Passenger Cars | C127: TDI Diesel ICE | D127: 2040 | E127: 2.594395 | F127: 54.884789
A128: Reference case | B128: Passenger Cars | C128: TDI Diesel ICE | D128: 2041 | E128: 2.677506 | F128: 54.714336
A129: Reference case | B129: Passenger Cars | C129: TDI Diesel ICE | D129: 2042 | E129: 2.748384 | F129: 54.550667
A130: Reference case | B130: Passenger Cars | C130: TDI Diesel ICE | D130: 2043 | E130: 2.807142 | F130: 54.377396
A131: Reference case | B131: Passenger Cars | C131: TDI Diesel ICE | D131: 2044 | E131: 2.85537 | F131: 54.2006
A132: Reference case | B132: Passenger Cars | C132: TDI Diesel ICE | D132: 2045 | E132: 2.891941 | F132: 54.028534
A133: Reference case | B133: Passenger Cars | C133: TDI Diesel ICE | D133: 2046 | E133: 2.920111 | F133: 53.833912
A134: Reference case | B134: Passenger Cars | C134: TDI Diesel ICE | D134: 2047 | E134: 2.939851 | F134: 53.636723
A135: Reference case | B135: Passenger Cars | C135: TDI Diesel ICE | D135: 2048 | E135: 2.950457 | F135: 53.44994
A136: Reference case | B136: Passenger Cars | C136: TDI Diesel ICE | D136: 2049 | E136: 2.953688 | F136: 53.260681
A137: Reference case | B137: Passenger Cars | C137: TDI Diesel ICE | D137: 2050 | E137: 2.949322 | F137: 53.077606
A138: High oil price | B138: Passenger Cars | C138: TDI Diesel ICE | D138: 2017 | E138: 0.803633 | F138: 47.572586
A139: High oil price | B139: Passenger Cars | C139: TDI Diesel ICE | D139: 2018 | E139: 0.777678 | F139: 47.699421
A140: High oil price | B140: Passenger Cars | C140: TDI Diesel ICE | D140: 2019 | E140: 0.767543 | F140: 48.491402
A141: High oil price | B141: Passenger Cars | C141: TDI Diesel ICE | D141: 2020 | E141: 0.779958 | F141: 49.568317
A142: High oil price | B142: Passenger Cars | C142: TDI Diesel ICE | D142: 2021 | E142: 0.803829 | F142: 50.61853
A143: High oil price | B143: Passenger Cars | C143: TDI Diesel ICE | D143: 2022 | E143: 0.836161 | F143: 51.999031
A144: High oil price | B144: Passenger Cars | C144: TDI Diesel ICE | D144: 2023 | E144: 0.874394 | F144: 53.667179
A145: High oil price | B145: Passenger Cars | C145: TDI Diesel ICE | D145: 2024 | E145: 0.916335 | F145: 53.814873
A146: High oil price | B146: Passenger Cars | C146: TDI Diesel ICE | D146: 2025 | E146: 0.961238 | F146: 56.28923
A147: High oil price | B147: Passenger Cars | C147: TDI Diesel ICE | D147: 2026 | E147: 1.010367 | F147: 56.264542
A148: High oil price | B148: Passenger Cars | C148: TDI Diesel ICE | D148: 2027 | E148: 1.067489 | F148: 56.249496
A149: High oil price | B149: Passenger Cars | C149: TDI Diesel ICE | D149: 2028 | E149: 1.14108 | F149: 56.172592
A150: High oil price | B150: Passenger Cars | C150: TDI Diesel ICE | D150: 2029 | E150: 1.227851 | F150: 56.115986
A151: High oil price | B151: Passenger Cars | C151: TDI Diesel ICE | D151: 2030 | E151: 1.331885 | F151: 55.998398
A152: High oil price | B152: Passenger Cars | C152: TDI Diesel ICE | D152: 2031 | E152: 1.44526 | F152: 55.8097
A153: High oil price | B153: Passenger Cars | C153: TDI Diesel ICE | D153: 2032 | E153: 1.559522 | F153: 55.61866
A154: High oil price | B154: Passenger Cars | C154: TDI Diesel ICE | D154: 2033 | E154: 1.66871 | F154: 55.420963
A155: High oil price | B155: Passenger Cars | C155: TDI Diesel ICE | D155: 2034 | E155: 1.773609 | F155: 55.201637
A156: High oil price | B156: Passenger Cars | C156: TDI Diesel ICE | D156: 2035 | E156: 1.867667 | F156: 55.037018
A157: High oil price | B157: Passenger Cars | C157: TDI Diesel ICE | D157: 2036 | E157: 1.951978 | F157: 54.865425
A158: High oil price | B158: Passenger Cars | C158: TDI Diesel ICE | D158: 2037 | E158: 2.027355 | F158: 54.683041
A159: High oil price | B159: Passenger Cars | C159: TDI Diesel ICE | D159: 2038 | E159: 2.093926 | F159: 54.523281
A160: High oil price | B160: Passenger Cars | C160: TDI Diesel ICE | D160: 2039 | E160: 2.151551 | F160: 54.368679
A161: High oil price | B161: Passenger Cars | C161: TDI Diesel ICE | D161: 2040 | E161: 2.200269 | F161: 54.221706
A162: High oil price | B162: Passenger Cars | C162: TDI Diesel ICE | D162: 2041 | E162: 2.240369 | F162: 54.022446
A163: High oil price | B163: Passenger Cars | C163: TDI Diesel ICE | D163: 2042 | E163: 2.271134 | F163: 53.817135
A164: High oil price | B164: Passenger Cars | C164: TDI Diesel ICE | D164: 2043 | E164: 2.292726 | F164: 53.616852
A165: High oil price | B165: Passenger Cars | C165: TDI Diesel ICE | D165: 2044 | E165: 2.305541 | F165: 53.420471
A166: High oil price | B166: Passenger Cars | C166: TDI Diesel ICE | D166: 2045 | E166: 2.310692 | F166: 53.223087
A167: High oil price | B167: Passenger Cars | C167: TDI Diesel ICE | D167: 2046 | E167: 2.307281 | F167: 53.019817
A168: High oil price | B168: Passenger Cars | C168: TDI Diesel ICE | D168: 2047 | E168: 2.295578 | F168: 52.818325
A169: High oil price | B169: Passenger Cars | C169: TDI Diesel ICE | D169: 2048 | E169: 2.277652 | F169: 52.616375
A170: High oil price | B170: Passenger Cars | C170: TDI Diesel ICE | D170: 2049 | E170: 2.256248 | F170: 52.396404
A171: High oil price | B171: Passenger Cars | C171: TDI Diesel ICE | D171: 2050 | E171: 2.231408 | F171: 52.185333
A172: Low oil price | B172: Passenger Cars | C172: TDI Diesel ICE | D172: 2017 | E172: 0.803633 | F172: 47.572586
A173: Low oil price | B173: Passenger Cars | C173: TDI Diesel ICE | D173: 2018 | E173: 0.777678 | F173: 47.699417
A174: Low oil price | B174: Passenger Cars | C174: TDI Diesel ICE | D174: 2019 | E174: 0.765971 | F174: 48.2854
A175: Low oil price | B175: Passenger Cars | C175: TDI Diesel ICE | D175: 2020 | E175: 0.770356 | F175: 49.627819
A176: Low oil price | B176: Passenger Cars | C176: TDI Diesel ICE | D176: 2021 | E176: 0.775113 | F176: 51.257915
A177: Low oil price | B177: Passenger Cars | C177: TDI Diesel ICE | D177: 2022 | E177: 0.78399 | F177: 52.951885
A178: Low oil price | B178: Passenger Cars | C178: TDI Diesel ICE | D178: 2023 | E178: 0.801615 | F178: 54.609367
A179: Low oil price | B179: Passenger Cars | C179: TDI Diesel ICE | D179: 2024 | E179: 0.829741 | F179: 55.280769
A180: Low oil price | B180: Passenger Cars | C180: TDI Diesel ICE | D180: 2025 | E180: 0.872492 | F180: 56.87167
A181: Low oil price | B181: Passenger Cars | C181: TDI Diesel ICE | D181: 2026 | E181: 0.929766 | F181: 56.643719
A182: Low oil price | B182: Passenger Cars | C182: TDI Diesel ICE | D182: 2027 | E182: 1.004402 | F182: 56.514606
A183: Low oil price | B183: Passenger Cars | C183: TDI Diesel ICE | D183: 2028 | E183: 1.102238 | F183: 56.362732
A184: Low oil price | B184: Passenger Cars | C184: TDI Diesel ICE | D184: 2029 | E184: 1.219076 | F184: 56.252228
A185: Low oil price | B185: Passenger Cars | C185: TDI Diesel ICE | D185: 2030 | E185: 1.357412 | F185: 56.108078
A186: Low oil price | B186: Passenger Cars | C186: TDI Diesel ICE | D186: 2031 | E186: 1.504305 | F186: 55.957569
A187: Low oil price | B187: Passenger Cars | C187: TDI Diesel ICE | D187: 2032 | E187: 1.65707 | F187: 55.831059
A188: Low oil price | B188: Passenger Cars | C188: TDI Diesel ICE | D188: 2033 | E188: 1.811975 | F188: 55.701363
A189: Low oil price | B189: Passenger Cars | C189: TDI Diesel ICE | D189: 2034 | E189: 1.973117 | F189: 55.529785
A190: Low oil price | B190: Passenger Cars | C190: TDI Diesel ICE | D190: 2035 | E190: 2.130705 | F190: 55.393246
A191: Low oil price | B191: Passenger Cars | C191: TDI Diesel ICE | D191: 2036 | E191: 2.283666 | F191: 55.266174
A192: Low oil price | B192: Passenger Cars | C192: TDI Diesel ICE | D192: 2037 | E192: 2.432665 | F192: 55.140575
A193: Low oil price | B193: Passenger Cars | C193: TDI Diesel ICE | D193: 2038 | E193: 2.576132 | F193: 54.989574
A194: Low oil price | B194: Passenger Cars | C194: TDI Diesel ICE | D194: 2039 | E194: 2.710251 | F194: 54.851181
A195: Low oil price | B195: Passenger Cars | C195: TDI Diesel ICE | D195: 2040 | E195: 2.833995 | F195: 54.699581
A196: Low oil price | B196: Passenger Cars | C196: TDI Diesel ICE | D196: 2041 | E196: 2.947964 | F196: 54.550468
A197: Low oil price | B197: Passenger Cars | C197: TDI Diesel ICE | D197: 2042 | E197: 3.048265 | F197: 54.399204
A198: Low oil price | B198: Passenger Cars | C198: TDI Diesel ICE | D198: 2043 | E198: 3.135619 | F198: 54.251007
A199: Low oil price | B199: Passenger Cars | C199: TDI Diesel ICE | D199: 2044 | E199: 3.21177 | F199: 54.099831
A200: Low oil price | B200: Passenger Cars | C200: TDI Diesel ICE | D200: 2045 | E200: 3.278622 | F200: 53.955353
... 3745 more rows

Sheet Data - Vehicle Registrations (hidden)
A1: State | B1: Vehicle Category | C1: Registrations | D1: Date
A2: Alabama | B2: Automobiles (Private and Commercial including Taxicabs) | C2: 2283397 | D2: 2011-01-01
A3: Alabama | B3: Automobiles (Publicly Owned) | C3: 24271 | D3: 2011-01-01
A4: Alabama | B4: Automobiles Total | C4: 2307668 | D4: 2011-01-01
A5: Alabama | B5: Buses (Private and Commercial) | C5: 3106 | D5: 2011-01-01
A6: Alabama | B6: Buses (Publicly Owned) | C6: 9267 | D6: 2011-01-01
A7: Alabama | B7: Buses Total | C7: 12373 | D7: 2011-01-01
A8: Alabama | B8: Trucks (Private and Commercial) | C8: 2330271 | D8: 2011-01-01
A9: Alabama | B9: Trucks (Publicly Owned) | C9: 34330 | D9: 2011-01-01
A10: Alabama | B10: Trucks Total | C10: 2364601 | D10: 2011-01-01
A11: Alabama | B11: Motorcycles (Private and Commercial) | C11: 127255 | D11: 2011-01-01
A12: Alabama | B12: Motorcycles (Publicly Owned) | C12: 46 | D12: 2011-01-01
A13: Alabama | B13: Motorcycles Total | C13: 127301 | D13: 2011-01-01
A14: Alabama | B14: All Motor Vehicles (Private and Commercial) | C14: 4744029 | D14: 2011-01-01
A15: Alabama | B15: All Motor Vehicles (Publicly Owned) | C15: 67914 | D15: 2011-01-01
A16: Alabama | B16: All Motor Vehicles Total | C16: 4811943 | D16: 2011-01-01
A17: Alabama | B17: Trucks (Federal) | C17: 5172 | D17: 2011-01-01
A18: Alabama | B18: Trucks (State, County, and Municipal) | C18: 29158 | D18: 2011-01-01
A19: Alabama | B19: Truck Tractors | C19: 37645 | D19: 2011-01-01
A20: Alabama | B20: Farm Trucks | C20: 28891 | D20: 2011-01-01
A21: Alabama | B21: Pickups | C21: 1050333 | D21: 2011-01-01
A22: Alabama | B22: Vans | C22: 838973 | D22: 2011-01-01
A23: Alabama | B23: Sport Utilities | C23: 243332 | D23: 2011-01-01
A24: Alabama | B24: Other Light | C24: 8839 | D24: 2011-01-01
A25: Alaska | B25: Automobiles (Private and Commercial including Taxicabs) | C25: 211157 | D25: 2011-01-01
A26: Alaska | B26: Automobiles (Publicly Owned) | C26: 4531 | D26: 2011-01-01
A27: Alaska | B27: Automobiles Total | C27: 215688 | D27: 2011-01-01
A28: Alaska | B28: Buses (Private and Commercial) | C28: 1895 | D28: 2011-01-01
A29: Alaska | B29: Buses (Publicly Owned) | C29: 451 | D29: 2011-01-01
A30: Alaska | B30: Buses Total | C30: 2346 | D30: 2011-01-01
A31: Alaska | B31: Trucks (Private and Commercial) | C31: 499113 | D31: 2011-01-01
A32: Alaska | B32: Trucks (Publicly Owned) | C32: 9787 | D32: 2011-01-01
A33: Alaska | B33: Trucks Total | C33: 508900 | D33: 2011-01-01
A34: Alaska | B34: Motorcycles (Private and Commercial) | C34: 30983 | D34: 2011-01-01
A35: Alaska | B35: Motorcycles (Publicly Owned) | C35: 37 | D35: 2011-01-01
A36: Alaska | B36: Motorcycles Total | C36: 31020 | D36: 2011-01-01
A37: Alaska | B37: All Motor Vehicles (Private and Commercial) | C37: 743148 | D37: 2011-01-01
A38: Alaska | B38: All Motor Vehicles (Publicly Owned) | C38: 14806 | D38: 2011-01-01
A39: Alaska | B39: All Motor Vehicles Total | C39: 757954 | D39: 2011-01-01
A40: Alaska | B40: Trucks (Federal) | C40: 3335 | D40: 2011-01-01
A41: Alaska | B41: Trucks (State, County, and Municipal) | C41: 6452 | D41: 2011-01-01
A42: Alaska | B42: Truck Tractors | C42: 4644 | D42: 2011-01-01
A43: Alaska | B43: Pickups | C43: 215902 | D43: 2011-01-01
A44: Alaska | B44: Vans | C44: 188346 | D44: 2011-01-01
A45: Alaska | B45: Sport Utilities | C45: 48537 | D45: 2011-01-01
A46: Alaska | B46: Other Light | C46: 3833 | D46: 2011-01-01
A47: Arizona | B47: Automobiles (Private and Commercial including Taxicabs) | C47: 2333503 | D47: 2011-01-01
A48: Arizona | B48: Automobiles (Publicly Owned) | C48: 29512 | D48: 2011-01-01
A49: Arizona | B49: Automobiles Total | C49: 2363015 | D49: 2011-01-01
A50: Arizona | B50: Buses (Private and Commercial) | C50: 4030 | D50: 2011-01-01
A51: Arizona | B51: Buses (Publicly Owned) | C51: 7729 | D51: 2011-01-01
A52: Arizona | B52: Buses Total | C52: 11759 | D52: 2011-01-01
A53: Arizona | B53: Trucks (Private and Commercial) | C53: 2515113 | D53: 2011-01-01
A54: Arizona | B54: Trucks (Publicly Owned) | C54: 40439 | D54: 2011-01-01
A55: Arizona | B55: Trucks Total | C55: 2555552 | D55: 2011-01-01
A56: Arizona | B56: Motorcycles (Private and Commercial) | C56: 178890 | D56: 2011-01-01
A57: Arizona | B57: Motorcycles (Publicly Owned) | C57: 38 | D57: 2011-01-01
A58: Arizona | B58: Motorcycles Total | C58: 178928 | D58: 2011-01-01
A59: Arizona | B59: All Motor Vehicles (Private and Commercial) | C59: 5031536 | D59: 2011-01-01
A60: Arizona | B60: All Motor Vehicles (Publicly Owned) | C60: 77718 | D60: 2011-01-01
A61: Arizona | B61: All Motor Vehicles Total | C61: 5109254 | D61: 2011-01-01
A62: Arizona | B62: Trucks (Federal) | C62: 12638 | D62: 2011-01-01
A63: Arizona | B63: Trucks (State, County, and Municipal) | C63: 27801 | D63: 2011-01-01
A64: Arizona | B64: Truck Tractors | C64: 41970 | D64: 2011-01-01
A65: Arizona | B65: Pickups | C65: 895311 | D65: 2011-01-01
A66: Arizona | B66: Vans | C66: 980369 | D66: 2011-01-01
A67: Arizona | B67: Sport Utilities | C67: 317814 | D67: 2011-01-01
A68: Arizona | B68: Other Light | C68: 10060 | D68: 2011-01-01
A69: Arkansas | B69: Automobiles (Private and Commercial including Taxicabs) | C69: 1007544 | D69: 2011-01-01
A70: Arkansas | B70: Automobiles (Publicly Owned) | C70: 14273 | D70: 2011-01-01
A71: Arkansas | B71: Automobiles Total | C71: 1021817 | D71: 2011-01-01
A72: Arkansas | B72: Buses (Private and Commercial) | C72: 1816 | D72: 2011-01-01
A73: Arkansas | B73: Buses (Publicly Owned) | C73: 1534 | D73: 2011-01-01
A74: Arkansas | B74: Buses Total | C74: 3350 | D74: 2011-01-01
A75: Arkansas | B75: Trucks (Private and Commercial) | C75: 1326692 | D75: 2011-01-01
A76: Arkansas | B76: Trucks (Publicly Owned) | C76: 20150 | D76: 2011-01-01
A77: Arkansas | B77: Trucks Total | C77: 1346842 | D77: 2011-01-01
A78: Arkansas | B78: Motorcycles (Private and Commercial) | C78: 76293 | D78: 2011-01-01
A79: Arkansas | B79: Motorcycles (Publicly Owned) | C79: 8 | D79: 2011-01-01
A80: Arkansas | B80: Motorcycles Total | C80: 76301 | D80: 2011-01-01
A81: Arkansas | B81: All Motor Vehicles (Private and Commercial) | C81: 2412345 | D81: 2011-01-01
A82: Arkansas | B82: All Motor Vehicles (Publicly Owned) | C82: 35965 | D82: 2011-01-01
A83: Arkansas | B83: All Motor Vehicles Total | C83: 2448310 | D83: 2011-01-01
A84: Arkansas | B84: Trucks (Federal) | C84: 3349 | D84: 2011-01-01
A85: Arkansas | B85: Trucks (State, County, and Municipal) | C85: 16801 | D85: 2011-01-01
A86: Arkansas | B86: Truck Tractors | C86: 39033 | D86: 2011-01-01
A87: Arkansas | B87: Farm Trucks | C87: 18929 | D87: 2011-01-01
A88: Arkansas | B88: Pickups | C88: 628895 | D88: 2011-01-01
A89: Arkansas | B89: Vans | C89: 434309 | D89: 2011-01-01
A90: Arkansas | B90: Sport Utilities | C90: 125687 | D90: 2011-01-01
A91: Arkansas | B91: Other Light | C91: 4989 | D91: 2011-01-01
A92: California | B92: Automobiles (Private and Commercial including Taxicabs) | C92: 14393047 | D92: 2011-01-01
A93: California | B93: Automobiles (Publicly Owned) | C93: 156794 | D93: 2011-01-01
A94: California | B94: Automobiles Total | C94: 14549841 | D94: 2011-01-01
A95: California | B95: Buses (Private and Commercial) | C95: 21833 | D95: 2011-01-01
A96: California | B96: Buses (Publicly Owned) | C96: 15043 | D96: 2011-01-01
A97: California | B97: Buses Total | C97: 36876 | D97: 2011-01-01
A98: California | B98: Trucks (Private and Commercial) | C98: 13594790 | D98: 2011-01-01
A99: California | B99: Trucks (Publicly Owned) | C99: 176540 | D99: 2011-01-01
A100: California | B100: Trucks Total | C100: 13771330 | D100: 2011-01-01
A101: California | B101: Motorcycles (Private and Commercial) | C101: 801803 | D101: 2011-01-01
A102: California | B102: Motorcycles (Publicly Owned) | C102: 16847 | D102: 2011-01-01
A103: California | B103: Motorcycles Total | C103: 818650 | D103: 2011-01-01
A104: California | B104: All Motor Vehicles (Private and Commercial) | C104: 28811473 | D104: 2011-01-01
A105: California | B105: All Motor Vehicles (Publicly Owned) | C105: 365224 | D105: 2011-01-01
A106: California | B106: All Motor Vehicles Total | C106: 29176697 | D106: 2011-01-01
A107: California | B107: Trucks (Federal) | C107: 46544 | D107: 2011-01-01
A108: California | B108: Trucks (State, County, and Municipal) | C108: 129996 | D108: 2011-01-01
A109: California | B109: Truck Tractors | C109: 248756 | D109: 2011-01-01
A110: California | B110: Pickups | C110: 4679294 | D110: 2011-01-01
A111: California | B111: Vans | C111: 5639486 | D111: 2011-01-01
A112: California | B112: Sport Utilities | C112: 2171784 | D112: 2011-01-01
A113: California | B113: Other Light | C113: 54077 | D113: 2011-01-01
A114: Colorado | B114: Automobiles (Private and Commercial including Taxicabs) | C114: 1774651 | D114: 2011-01-01
A115: Colorado | B115: Automobiles (Publicly Owned) | C115: 24271 | D115: 2011-01-01
A116: Colorado | B116: Automobiles Total | C116: 1798922 | D116: 2011-01-01
A117: Colorado | B117: Buses (Private and Commercial) | C117: 3663 | D117: 2011-01-01
A118: Colorado | B118: Buses (Publicly Owned) | C118: 6342 | D118: 2011-01-01
A119: Colorado | B119: Buses Total | C119: 10005 | D119: 2011-01-01
A120: Colorado | B120: Trucks (Private and Commercial) | C120: 2312121 | D120: 2011-01-01
A121: Colorado | B121: Trucks (Publicly Owned) | C121: 37972 | D121: 2011-01-01
A122: Colorado | B122: Trucks Total | C122: 2350093 | D122: 2011-01-01
A123: Colorado | B123: Motorcycles (Private and Commercial) | C123: 173120 | D123: 2011-01-01
A124: Colorado | B124: Motorcycles (Publicly Owned) | C124: 111 | D124: 2011-01-01
A125: Colorado | B125: Motorcycles Total | C125: 173231 | D125: 2011-01-01
A126: Colorado | B126: All Motor Vehicles (Private and Commercial) | C126: 4263555 | D126: 2011-01-01
A127: Colorado | B127: All Motor Vehicles (Publicly Owned) | C127: 68696 | D127: 2011-01-01
A128: Colorado | B128: All Motor Vehicles Total | C128: 4332251 | D128: 2011-01-01
A129: Colorado | B129: Trucks (Federal) | C129: 7880 | D129: 2011-01-01
A130: Colorado | B130: Trucks (State, County, and Municipal) | C130: 30092 | D130: 2011-01-01
A131: Colorado | B131: Truck Tractors | C131: 28928 | D131: 2011-01-01
A132: Colorado | B132: Farm Trucks | C132: 70822 | D132: 2011-01-01
A133: Colorado | B133: Pickups | C133: 754288 | D133: 2011-01-01
A134: Colorado | B134: Vans | C134: 1074989 | D134: 2011-01-01
A135: Colorado | B135: Sport Utilities | C135: 239972 | D135: 2011-01-01
A136: Colorado | B136: Other Light | C136: 8787 | D136: 2011-01-01
A137: Connecticut | B137: Automobiles (Private and Commercial including Taxicabs) | C137: 1699293 | D137: 2011-01-01
A138: Connecticut | B138: Automobiles (Publicly Owned) | C138: 20243 | D138: 2011-01-01
A139: Connecticut | B139: Automobiles Total | C139: 1719536 | D139: 2011-01-01
A140: Connecticut | B140: Buses (Private and Commercial) | C140: 6139 | D140: 2011-01-01
A141: Connecticut | B141: Buses (Publicly Owned) | C141: 1357 | D141: 2011-01-01
A142: Connecticut | B142: Buses Total | C142: 7496 | D142: 2011-01-01
A143: Connecticut | B143: Trucks (Private and Commercial) | C143: 988520 | D143: 2011-01-01
A144: Connecticut | B144: Trucks (Publicly Owned) | C144: 15279 | D144: 2011-01-01
A145: Connecticut | B145: Trucks Total | C145: 1003799 | D145: 2011-01-01
A146: Connecticut | B146: Motorcycles (Private and Commercial) | C146: 97960 | D146: 2011-01-01
A147: Connecticut | B147: Motorcycles (Publicly Owned) | C147: 3 | D147: 2011-01-01
A148: Connecticut | B148: Motorcycles Total | C148: 97963 | D148: 2011-01-01
A149: Connecticut | B149: All Motor Vehicles (Private and Commercial) | C149: 2791912 | D149: 2011-01-01
A150: Connecticut | B150: All Motor Vehicles (Publicly Owned) | C150: 36882 | D150: 2011-01-01
A151: Connecticut | B151: All Motor Vehicles Total | C151: 2828794 | D151: 2011-01-01
A152: Connecticut | B152: Trucks (Federal) | C152: 3867 | D152: 2011-01-01
A153: Connecticut | B153: Trucks (State, County, and Municipal) | C153: 11412 | D153: 2011-01-01
A154: Connecticut | B154: Truck Tractors | C154: 7161 | D154: 2011-01-01
A155: Connecticut | B155: Farm Trucks | C155: 6911 | D155: 2011-01-01
A156: Connecticut | B156: Pickups | C156: 245253 | D156: 2011-01-01
A157: Connecticut | B157: Vans | C157: 492183 | D157: 2011-01-01
A158: Connecticut | B158: Sport Utilities | C158: 160319 | D158: 2011-01-01
A159: Connecticut | B159: Other Light | C159: 3814 | D159: 2011-01-01
A160: Delaware | B160: Automobiles (Private and Commercial including Taxicabs) | C160: 485751 | D160: 2011-01-01
A161: Delaware | B161: Automobiles (Publicly Owned) | C161: 4945 | D161: 2011-01-01
A162: Delaware | B162: Automobiles Total | C162: 490696 | D162: 2011-01-01
A163: Delaware | B163: Buses (Private and Commercial) | C163: 2221 | D163: 2011-01-01
A164: Delaware | B164: Buses (Publicly Owned) | C164: 907 | D164: 2011-01-01
A165: Delaware | B165: Buses Total | C165: 3128 | D165: 2011-01-01
A166: Delaware | B166: Trucks (Private and Commercial) | C166: 399607 | D166: 2011-01-01
A167: Delaware | B167: Trucks (Publicly Owned) | C167: 5486 | D167: 2011-01-01
A168: Delaware | B168: Trucks Total | C168: 405093 | D168: 2011-01-01
A169: Delaware | B169: Motorcycles (Private and Commercial) | C169: 30494 | D169: 2011-01-01
A170: Delaware | B170: Motorcycles (Publicly Owned) | C170: 4 | D170: 2011-01-01
A171: Delaware | B171: Motorcycles Total | C171: 30498 | D171: 2011-01-01
A172: Delaware | B172: All Motor Vehicles (Private and Commercial) | C172: 918073 | D172: 2011-01-01
A173: Delaware | B173: All Motor Vehicles (Publicly Owned) | C173: 11342 | D173: 2011-01-01
A174: Delaware | B174: All Motor Vehicles Total | C174: 929415 | D174: 2011-01-01
A175: Delaware | B175: Trucks (Federal) | C175: 1097 | D175: 2011-01-01
A176: Delaware | B176: Trucks (State, County, and Municipal) | C176: 4389 | D176: 2011-01-01
A177: Delaware | B177: Truck Tractors | C177: 3329 | D177: 2011-01-01
A178: Delaware | B178: Farm Trucks | C178: 1815 | D178: 2011-01-01
A179: Delaware | B179: Pickups | C179: 119139 | D179: 2011-01-01
A180: Delaware | B180: Vans | C180: 185841 | D180: 2011-01-01
A181: Delaware | B181: Sport Utilities | C181: 68276 | D181: 2011-01-01
A182: Delaware | B182: Other Light | C182: 1660 | D182: 2011-01-01
A183: District of Columbia | B183: Automobiles (Private and Commercial including Taxicabs) | C183: 223809 | D183: 2011-01-01
A184: District of Columbia | B184: Automobiles (Publicly Owned) | C184: 14695 | D184: 2011-01-01
A185: District of Columbia | B185: Automobiles Total | C185: 238504 | D185: 2011-01-01
A186: District of Columbia | B186: Buses (Private and Commercial) | C186: 274 | D186: 2011-01-01
A187: District of Columbia | B187: Buses (Publicly Owned) | C187: 2456 | D187: 2011-01-01
A188: District of Columbia | B188: Buses Total | C188: 2730 | D188: 2011-01-01
A189: District of Columbia | B189: Trucks (Private and Commercial) | C189: 65332 | D189: 2011-01-01
A190: District of Columbia | B190: Trucks (Publicly Owned) | C190: 6126 | D190: 2011-01-01
A191: District of Columbia | B191: Trucks Total | C191: 71458 | D191: 2011-01-01
A192: District of Columbia | B192: Motorcycles (Private and Commercial) | C192: 3523 | D192: 2011-01-01
A193: District of Columbia | B193: Motorcycles (Publicly Owned) | C193: 16 | D193: 2011-01-01
A194: District of Columbia | B194: Motorcycles Total | C194: 3539 | D194: 2011-01-01
A195: District of Columbia | B195: All Motor Vehicles (Private and Commercial) | C195: 292938 | D195: 2011-01-01
A196: District of Columbia | B196: All Motor Vehicles (Publicly Owned) | C196: 23293 | D196: 2011-01-01
A197: District of Columbia | B197: All Motor Vehicles Total | C197: 316231 | D197: 2011-01-01
A198: District of Columbia | B198: Trucks (Federal) | C198: 2511 | D198: 2011-01-01
A199: District of Columbia | B199: Trucks (State, County, and Municipal) | C199: 3615 | D199: 2011-01-01
A200: District of Columbia | B200: Truck Tractors | C200: 42 | D200: 2011-01-01
... 6739 more rows

Sheet Calculations
A1: Calculations - Highway Revenue Assessment Tool
A2: Model Input
A3: Vehicle Stock
A4: Vehicle Type | B4: Technology Type | C4: Fuel | D4: Type | E4: =MIN(Vehicle_Projections[Year]) -> 2017 | F4: =E4+1 -> 2018 | G4: 2019 | H4: 2020 | I4: 2021 | J4: 2022 | K4: 2023 | L4: 2024 | M4: 2025 | N4: 2026 | O4: 2027 | P4: 2028 | Q4: 2029 | R4: 2030 | S4: 2031 | T4: 2032 | U4: 2033 | V4: 2034 | W4: 2035 | X4: 2036 | Y4: 2037 | Z4: 2038 | AA4: 2039 | AB4: 2040 | AC4: 2041 | AD4: 2042 | AE4: 2043 | AF4: 2044 | AG4: 2045 | AH4: 2046 | AI4: 2047 | AJ4: 2048 | AK4: 2049 | AL4: 2050
A5: Passenger Cars | B5: Gasoline ICE Vehicles | C5: Gasoline | D5: Stock | E5: =SUMIFS(Vehicle_Projections[Vehicle Stock],Vehicle_Projections[Year],Calculations!E$4, Vehicle_Projections[[ Technology Type]], $B5, Vehicle_Projections[Vehicle Type], $A5, Vehicle_Projections[Scenario], Input_Scenario_Modeled) -> 122.711388 | F5: =SUMIFS(Vehicle_Projections[Vehicle Stock],Vehicle_Projections[Year],Calculations!F$4, Vehicle_Projections[[ Technology Type]], $B5, Vehicle_Projections[Vehicle Type], $A5, Vehicle_Projections[Scenario], Input_Scenario_Modeled) -> 123.135612 | G5: =SUMIFS(Vehicle_Projections[Vehicle Stock],Vehicle_Projections[Year],Calculations!G$4, Vehicle_Projections[[ Technology Type]], $B5, Vehicle_Projections[Vehicle Type], $A5, Vehicle_Projections[Scenario], Input_Scenario_Modeled) -> 123.253426 | H5: =SUMIFS(Vehicle_Projections[Vehicle Stock],Vehicle_Projections[Year],Calculations!H$4, Vehicle_Projections[[ Technology Type]], $B5, Vehicle_Projections[Vehicle Type], $A5, Vehicle_Projections[Scenario], Input_Scenario_Modeled) -> 123.222893 | I5: =SUMIFS(Vehicle_Projections[Vehicle Stock],Vehicle_Projections[Year],Calculations!I$4, Vehicle_Projections[[ Technology Type]], $B5, Vehicle_Projections[Vehicle Type], $A5, Vehicle_Projections[Scenario], Input_Scenario_Modeled) -> 123.055527 | J5: =SUMIFS(Vehicle_Projections[Vehicle Stock],Vehicle_Projections[Year],Calculations!J$4, Vehicle_Projections[[ Technology Type]], $B5, Vehicle_Projections[Vehicle Type], $A5, Vehicle_Projections[Scenario], Input_Scenario_Modeled) -> 122.718056 | K5: =SUMIFS(Vehicle_Projections[Vehicle Stock],Vehicle_Projections[Year],Calculations!K$4, Vehicle_Projections[[ Technology Type]], $B5, Vehicle_Projections[Vehicle Type], $A5, Vehicle_Projections[Scenario], Input_Scenario_Modeled) -> 122.458916 | L5: =SUMIFS(Vehicle_Projections[Vehicle Stock],Vehicle_Projections[Year],Calculations!L$4, Vehicle_Projections[[ Technology Type]], $B5, Vehicle_Projections[Vehicle Type], $A5, Vehicle_Projections[Scenario], Input_Scenario_Modeled) -> 122.266251 | M5: =SUMIFS(Vehicle_Projections[Vehicle Stock],Vehicle_Projections[Year],Calculations!M$4, Vehicle_Projections[[ Technology Type]], $B5, Vehicle_Projections[Vehicle Type], $A5, Vehicle_Projections[Scenario], Input_Scenario_Modeled) -> 122.137253 | N5: =SUMIFS(Vehicle_Projections[Vehicle Stock],Vehicle_Projections[Year],Calculations!N$4, Vehicle_Projections[[ Technology Type]], $B5, Vehicle_Projections[Vehicle Type], $A5, Vehicle_Projections[Scenario], Input_Scenario_Modeled) -> 122.025963 | O5: =SUMIFS(Vehicle_Projections[Vehicle Stock],Vehicle_Projections[Year],Calculations!O$4, Vehicle_Projections[[ Technology Type]], $B5, Vehicle_Projections[Vehicle Type], $A5, Vehicle_Projections[Scenario], Input_Scenario_Modeled) -> 121.913261 | P5: =SUMIFS(Vehicle_Projections[Vehicle Stock],Vehicle_Projections[Year],Calculations!P$4, Vehicle_Projections[[ Technology Type]], $B5, Vehicle_Projections[Vehicle Type], $A5, Vehicle_Projections[Scenario], Input_Scenario_Modeled) -> 121.737373 | Q5: =SUMIFS(Vehicle_Projections[Vehicle Stock],Vehicle_Projections[Year],Calculations!Q$4, Vehicle_Projections[[ Technology Type]], $B5, Vehicle_Projections[Vehicle Type], $A5, Vehicle_Projections[Scenario], Input_Scenario_Modeled) -> 121.489922 | R5: =SUMIFS(Vehicle_Projections[Vehicle Stock],Vehicle_Projections[Year],Calculations!R$4, Vehicle_Projections[[ Technology Type]], $B5, Vehicle_Projections[Vehicle Type], $A5, Vehicle_Projections[Scenario], Input_Scenario_Modeled) -> 121.222878 | S5: =SUMIFS(Vehicle_Projections[Vehicle Stock],Vehicle_Projections[Year],Calculations!S$4, Vehicle_Projections[[ Technology Type]], $B5, Vehicle_Projections[Vehicle Type], $A5, Vehicle_Projections[Scenario], Input_Scenario_Modeled) -> 121.018806 | T5: =SUMIFS(Vehicle_Projections[Vehicle Stock],Vehicle_Projections[Year],Calculations!T$4, Vehicle_Projections[[ Technology Type]], $B5, Vehicle_Projections[Vehicle Type], $A5, Vehicle_Projections[Scenario], Input_Scenario_Modeled) -> 120.824837 | U5: =SUMIFS(Vehicle_Projections[Vehicle Stock],Vehicle_Projections[Year],Calculations!U$4, Vehicle_Projections[[ Technology Type]], $B5, Vehicle_Projections[Vehicle Type], $A5, Vehicle_Projections[Scenario], Input_Scenario_Modeled) -> 120.670578 | V5: =SUMIFS(Vehicle_Projections[Vehicle Stock],Vehicle_Projections[Year],Calculations!V$4, Vehicle_Projections[[ Technology Type]], $B5, Vehicle_Projections[Vehicle Type], $A5, Vehicle_Projections[Scenario], Input_Scenario_Modeled) -> 120.57618 | W5: =SUMIFS(Vehicle_Projections[Vehicle Stock],Vehicle_Projections[Year],Calculations!W$4, Vehicle_Projections[[ Technology Type]], $B5, Vehicle_Projections[Vehicle Type], $A5, Vehicle_Projections[Scenario], Input_Scenario_Modeled) -> 120.540047 | X5: =SUMIFS(Vehicle_Projections[Vehicle Stock],Vehicle_Projections[Year],Calculations!X$4, Vehicle_Projections[[ Technology Type]], $B5, Vehicle_Projections[Vehicle Type], $A5, Vehicle_Projections[Scenario], Input_Scenario_Modeled) -> 120.566536 | Y5: =SUMIFS(Vehicle_Projections[Vehicle Stock],Vehicle_Projections[Year],Calculations!Y$4, Vehicle_Projections[[ Technology Type]], $B5, Vehicle_Projections[Vehicle Type], $A5, Vehicle_Projections[Scenario], Input_Scenario_Modeled) -> 120.675819 | Z5: =SUMIFS(Vehicle_Projections[Vehicle Stock],Vehicle_Projections[Year],Calculations!Z$4, Vehicle_Projections[[ Technology Type]], $B5, Vehicle_Projections[Vehicle Type], $A5, Vehicle_Projections[Scenario], Input_Scenario_Modeled) -> 120.892532 | AA5: =SUMIFS(Vehicle_Projections[Vehicle Stock],Vehicle_Projections[Year],Calculations!AA$4, Vehicle_Projections[[ Technology Type]], $B5, Vehicle_Projections[Vehicle Type], $A5, Vehicle_Projections[Scenario], Input_Scenario_Modeled) -> 121.176064 | AB5: =SUMIFS(Vehicle_Projections[Vehicle Stock],Vehicle_Projections[Year],Calculations!AB$4, Vehicle_Projections[[ Technology Type]], $B5, Vehicle_Projections[Vehicle Type], $A5, Vehicle_Projections[Scenario], Input_Scenario_Modeled) -> 121.525269 | AC5: =SUMIFS(Vehicle_Projections[Vehicle Stock],Vehicle_Projections[Year],Calculations!AC$4, Vehicle_Projections[[ Technology Type]], $B5, Vehicle_Projections[Vehicle Type], $A5, Vehicle_Projections[Scenario], Input_Scenario_Modeled) -> 121.932854 | AD5: =SUMIFS(Vehicle_Projections[Vehicle Stock],Vehicle_Projections[Year],Calculations!AD$4, Vehicle_Projections[[ Technology Type]], $B5, Vehicle_Projections[Vehicle Type], $A5, Vehicle_Projections[Scenario], Input_Scenario_Modeled) -> 122.378746 | AE5: =SUMIFS(Vehicle_Projections[Vehicle Stock],Vehicle_Projections[Year],Calculations!AE$4, Vehicle_Projections[[ Technology Type]], $B5, Vehicle_Projections[Vehicle Type], $A5, Vehicle_Projections[Scenario], Input_Scenario_Modeled) -> 122.838478 | AF5: =SUMIFS(Vehicle_Projections[Vehicle Stock],Vehicle_Projections[Year],Calculations!AF$4, Vehicle_Projections[[ Technology Type]], $B5, Vehicle_Projections[Vehicle Type], $A5, Vehicle_Projections[Scenario], Input_Scenario_Modeled) -> 123.325874 | AG5: =SUMIFS(Vehicle_Projections[Vehicle Stock],Vehicle_Projections[Year],Calculations!AG$4, Vehicle_Projections[[ Technology Type]], $B5, Vehicle_Projections[Vehicle Type], $A5, Vehicle_Projections[Scenario], Input_Scenario_Modeled) -> 123.819046 | AH5: =SUMIFS(Vehicle_Projections[Vehicle Stock],Vehicle_Projections[Year],Calculations!AH$4, Vehicle_Projections[[ Technology Type]], $B5, Vehicle_Projections[Vehicle Type], $A5, Vehicle_Projections[Scenario], Input_Scenario_Modeled) -> 124.296104 | AI5: =SUMIFS(Vehicle_Projections[Vehicle Stock],Vehicle_Projections[Year],Calculations!AI$4, Vehicle_Projections[[ Technology Type]], $B5, Vehicle_Projections[Vehicle Type], $A5, Vehicle_Projections[Scenario], Input_Scenario_Modeled) -> 124.714691 | AJ5: =SUMIFS(Vehicle_Projections[Vehicle Stock],Vehicle_Projections[Year],Calculations!AJ$4, Vehicle_Projections[[ Technology Type]], $B5, Vehicle_Projections[Vehicle Type], $A5, Vehicle_Projections[Scenario], Input_Scenario_Modeled) -> 125.055206 | AK5: =SUMIFS(Vehicle_Projections[Vehicle Stock],Vehicle_Projections[Year],Calculations!AK$4, Vehicle_Projections[[ Technology Type]], $B5, Vehicle_Projections[Vehicle Type], $A5, Vehicle_Projections[Scenario], Input_Scenario_Modeled) -> 125.339851 | AL5: =SUMIFS(Vehicle_Projections[Vehicle Stock],Vehicle_Projections[Year],Calculations!AL$4, Vehicle_Projections[[ Technology Type]], $B5, Vehicle_Projections[Vehicle Type], $A5, Vehicle_Projections[Scenario], Input_Scenario_Modeled) -> 125.555641
A6: Passenger Cars | B6: Ethanol-Flex Fuel ICE | C6: Gasoline | D6: Stock | E6: =SUMIFS(Vehicle_Projections[Vehicle Stock],Vehicle_Projections[Year],Calculations!E$4, Vehicle_Projections[[ Technology Type]], $B6, Vehicle_Projections[Vehicle Type], $A6, Vehicle_Projections[Scenario], Input_Scenario_Modeled) -> 4.813383 | F6: =SUMIFS(Vehicle_Projections[Vehicle Stock],Vehicle_Projections[Year],Calculations!F$4, Vehicle_Projections[[ Technology Type]], $B6, Vehicle_Projections[Vehicle Type], $A6, Vehicle_Projections[Scenario], Input_Scenario_Modeled) -> 4.927487 | G6: =SUMIFS(Vehicle_Projections[Vehicle Stock],Vehicle_Projections[Year],Calculations!G$4, Vehicle_Projections[[ Technology Type]], $B6, Vehicle_Projections[Vehicle Type], $A6, Vehicle_Projections[Scenario], Input_Scenario_Modeled) -> 5.0174 | H6: =SUMIFS(Vehicle_Projections[Vehicle Stock],Vehicle_Projections[Year],Calculations!H$4, Vehicle_Projections[[ Technology Type]], $B6, Vehicle_Projections[Vehicle Type], $A6, Vehicle_Projections[Scenario], Input_Scenario_Modeled) -> 5.086414 | I6: =SUMIFS(Vehicle_Projections[Vehicle Stock],Vehicle_Projections[Year],Calculations!I$4, Vehicle_Projections[[ Technology Type]], $B6, Vehicle_Projections[Vehicle Type], $A6, Vehicle_Projections[Scenario], Input_Scenario_Modeled) -> 5.130294 | J6: =SUMIFS(Vehicle_Projections[Vehicle Stock],Vehicle_Projections[Year],Calculations!J$4, Vehicle_Projections[[ Technology Type]], $B6, Vehicle_Projections[Vehicle Type], $A6, Vehicle_Projections[Scenario], Input_Scenario_Modeled) -> 5.146977 | K6: =SUMIFS(Vehicle_Projections[Vehicle Stock],Vehicle_Projections[Year],Calculations!K$4, Vehicle_Projections[[ Technology Type]], $B6, Vehicle_Projections[Vehicle Type], $A6, Vehicle_Projections[Scenario], Input_Scenario_Modeled) -> 5.139135 | L6: =SUMIFS(Vehicle_Projections[Vehicle Stock],Vehicle_Projections[Year],Calculations!L$4, Vehicle_Projections[[ Technology Type]], $B6, Vehicle_Projections[Vehicle Type], $A6, Vehicle_Projections[Scenario], Input_Scenario_Modeled) -> 5.10922 | M6: =SUMIFS(Vehicle_Projections[Vehicle Stock],Vehicle_Projections[Year],Calculations!M$4, Vehicle_Projections[[ Technology Type]], $B6, Vehicle_Projections[Vehicle Type], $A6, Vehicle_Projections[Scenario], Input_Scenario_Modeled) -> 5.056395 | N6: =SUMIFS(Vehicle_Projections[Vehicle Stock],Vehicle_Projections[Year],Calculations!N$4, Vehicle_Projections[[ Technology Type]], $B6, Vehicle_Projections[Vehicle Type], $A6, Vehicle_Projections[Scenario], Input_Scenario_Modeled) -> 4.980655 | O6: =SUMIFS(Vehicle_Projections[Vehicle Stock],Vehicle_Projections[Year],Calculations!O$4, Vehicle_Projections[[ Technology Type]], $B6, Vehicle_Projections[Vehicle Type], $A6, Vehicle_Projections[Scenario], Input_Scenario_Modeled) -> 4.887201 | P6: =SUMIFS(Vehicle_Projections[Vehicle Stock],Vehicle_Projections[Year],Calculations!P$4, Vehicle_Projections[[ Technology Type]], $B6, Vehicle_Projections[Vehicle Type], $A6, Vehicle_Projections[Scenario], Input_Scenario_Modeled) -> 4.788911 | Q6: =SUMIFS(Vehicle_Projections[Vehicle Stock],Vehicle_Projections[Year],Calculations!Q$4, Vehicle_Projections[[ Technology Type]], $B6, Vehicle_Projections[Vehicle Type], $A6, Vehicle_Projections[Scenario], Input_Scenario_Modeled) -> 4.689025 | R6: =SUMIFS(Vehicle_Projections[Vehicle Stock],Vehicle_Projections[Year],Calculations!R$4, Vehicle_Projections[[ Technology Type]], $B6, Vehicle_Projections[Vehicle Type], $A6, Vehicle_Projections[Scenario], Input_Scenario_Modeled) -> 4.60491 | S6: =SUMIFS(Vehicle_Projections[Vehicle Stock],Vehicle_Projections[Year],Calculations!S$4, Vehicle_Projections[[ Technology Type]], $B6, Vehicle_Projections[Vehicle Type], $A6, Vehicle_Projections[Scenario], Input_Scenario_Modeled) -> 4.539237 | T6: =SUMIFS(Vehicle_Projections[Vehicle Stock],Vehicle_Projections[Year],Calculations!T$4, Vehicle_Projections[[ Technology Type]], $B6, Vehicle_Projections[Vehicle Type], $A6, Vehicle_Projections[Scenario], Input_Scenario_Modeled) -> 4.489612 | U6: =SUMIFS(Vehicle_Projections[Vehicle Stock],Vehicle_Projections[Year],Calculations!U$4, Vehicle_Projections[[ Technology Type]], $B6, Vehicle_Projections[Vehicle Type], $A6, Vehicle_Projections[Scenario], Input_Scenario_Modeled) -> 4.458049 | V6: =SUMIFS(Vehicle_Projections[Vehicle Stock],Vehicle_Projections[Year],Calculations!V$4, Vehicle_Projections[[ Technology Type]], $B6, Vehicle_Projections[Vehicle Type], $A6, Vehicle_Projections[Scenario], Input_Scenario_Modeled) -> 4.454955 | W6: =SUMIFS(Vehicle_Projections[Vehicle Stock],Vehicle_Projections[Year],Calculations!W$4, Vehicle_Projections[[ Technology Type]], $B6, Vehicle_Projections[Vehicle Type], $A6, Vehicle_Projections[Scenario], Input_Scenario_Modeled) -> 4.46902 | X6: =SUMIFS(Vehicle_Projections[Vehicle Stock],Vehicle_Projections[Year],Calculations!X$4, Vehicle_Projections[[ Technology Type]], $B6, Vehicle_Projections[Vehicle Type], $A6, Vehicle_Projections[Scenario], Input_Scenario_Modeled) -> 4.498343 | Y6: =SUMIFS(Vehicle_Projections[Vehicle Stock],Vehicle_Projections[Year],Calculations!Y$4, Vehicle_Projections[[ Technology Type]], $B6, Vehicle_Projections[Vehicle Type], $A6, Vehicle_Projections[Scenario], Input_Scenario_Modeled) -> 4.548336 | Z6: =SUMIFS(Vehicle_Projections[Vehicle Stock],Vehicle_Projections[Year],Calculations!Z$4, Vehicle_Projections[[ Technology Type]], $B6, Vehicle_Projections[Vehicle Type], $A6, Vehicle_Projections[Scenario], Input_Scenario_Modeled) -> 4.609901 | AA6: =SUMIFS(Vehicle_Projections[Vehicle Stock],Vehicle_Projections[Year],Calculations!AA$4, Vehicle_Projections[[ Technology Type]], $B6, Vehicle_Projections[Vehicle Type], $A6, Vehicle_Projections[Scenario], Input_Scenario_Modeled) -> 4.674325 | AB6: =SUMIFS(Vehicle_Projections[Vehicle Stock],Vehicle_Projections[Year],Calculations!AB$4, Vehicle_Projections[[ Technology Type]], $B6, Vehicle_Projections[Vehicle Type], $A6, Vehicle_Projections[Scenario], Input_Scenario_Modeled) -> 4.739589 | AC6: =SUMIFS(Vehicle_Projections[Vehicle Stock],Vehicle_Projections[Year],Calculations!AC$4, Vehicle_Projections[[ Technology Type]], $B6, Vehicle_Projections[Vehicle Type], $A6, Vehicle_Projections[Scenario], Input_Scenario_Modeled) -> 4.797886 | AD6: =SUMIFS(Vehicle_Projections[Vehicle Stock],Vehicle_Projections[Year],Calculations!AD$4, Vehicle_Projections[[ Technology Type]], $B6, Vehicle_Projections[Vehicle Type], $A6, Vehicle_Projections[Scenario], Input_Scenario_Modeled) -> 4.846465 | AE6: =SUMIFS(Vehicle_Projections[Vehicle Stock],Vehicle_Projections[Year],Calculations!AE$4, Vehicle_Projections[[ Technology Type]], $B6, Vehicle_Projections[Vehicle Type], $A6, Vehicle_Projections[Scenario], Input_Scenario_Modeled) -> 4.880943 | AF6: =SUMIFS(Vehicle_Projections[Vehicle Stock],Vehicle_Projections[Year],Calculations!AF$4, Vehicle_Projections[[ Technology Type]], $B6, Vehicle_Projections[Vehicle Type], $A6, Vehicle_Projections[Scenario], Input_Scenario_Modeled) -> 4.905231 | AG6: =SUMIFS(Vehicle_Projections[Vehicle Stock],Vehicle_Projections[Year],Calculations!AG$4, Vehicle_Projections[[ Technology Type]], $B6, Vehicle_Projections[Vehicle Type], $A6, Vehicle_Projections[Scenario], Input_Scenario_Modeled) -> 4.919268 | AH6: =SUMIFS(Vehicle_Projections[Vehicle Stock],Vehicle_Projections[Year],Calculations!AH$4, Vehicle_Projections[[ Technology Type]], $B6, Vehicle_Projections[Vehicle Type], $A6, Vehicle_Projections[Scenario], Input_Scenario_Modeled) -> 4.911937 | AI6: =SUMIFS(Vehicle_Projections[Vehicle Stock],Vehicle_Projections[Year],Calculations!AI$4, Vehicle_Projections[[ Technology Type]], $B6, Vehicle_Projections[Vehicle Type], $A6, Vehicle_Projections[Scenario], Input_Scenario_Modeled) -> 4.890924 | AJ6: =SUMIFS(Vehicle_Projections[Vehicle Stock],Vehicle_Projections[Year],Calculations!AJ$4, Vehicle_Projections[[ Technology Type]], $B6, Vehicle_Projections[Vehicle Type], $A6, Vehicle_Projections[Scenario], Input_Scenario_Modeled) -> 4.860886 | AK6: =SUMIFS(Vehicle_Projections[Vehicle Stock],Vehicle_Projections[Year],Calculations!AK$4, Vehicle_Projections[[ Technology Type]], $B6, Vehicle_Projections[Vehicle Type], $A6, Vehicle_Projections[Scenario], Input_Scenario_Modeled) -> 4.825336 | AL6: =SUMIFS(Vehicle_Projections[Vehicle Stock],Vehicle_Projections[Year],Calculations!AL$4, Vehicle_Projections[[ Technology Type]], $B6, Vehicle_Projections[Vehicle Type], $A6, Vehicle_Projections[Scenario], Input_Scenario_Modeled) -> 4.78445
A7: Passenger Cars | B7: Electric-Gasoline Hybrid | C7: Gasoline | D7: Stock | E7: =SUMIFS(Vehicle_Projections[Vehicle Stock],Vehicle_Projections[Year],Calculations!E$4, Vehicle_Projections[[ Technology Type]], $B7, Vehicle_Projections[Vehicle Type], $A7, Vehicle_Projections[Scenario], Input_Scenario_Modeled) -> 3.706463 | F7: =SUMIFS(Vehicle_Projections[Vehicle Stock],Vehicle_Projections[Year],Calculations!F$4, Vehicle_Projections[[ Technology Type]], $B7, Vehicle_Projections[Vehicle Type], $A7, Vehicle_Projections[Scenario], Input_Scenario_Modeled) -> 4.135645 | G7: =SUMIFS(Vehicle_Projections[Vehicle Stock],Vehicle_Projections[Year],Calculations!G$4, Vehicle_Projections[[ Technology Type]], $B7, Vehicle_Projections[Vehicle Type], $A7, Vehicle_Projections[Scenario], Input_Scenario_Modeled) -> 4.549326 | H7: =SUMIFS(Vehicle_Projections[Vehicle Stock],Vehicle_Projections[Year],Calculations!H$4, Vehicle_Projections[[ Technology Type]], $B7, Vehicle_Projections[Vehicle Type], $A7, Vehicle_Projections[Scenario], Input_Scenario_Modeled) -> 4.944612 | I7: =SUMIFS(Vehicle_Projections[Vehicle Stock],Vehicle_Projections[Year],Calculations!I$4, Vehicle_Projections[[ Technology Type]], $B7, Vehicle_Projections[Vehicle Type], $A7, Vehicle_Projections[Scenario], Input_Scenario_Modeled) -> 5.317537 | J7: =SUMIFS(Vehicle_Projections[Vehicle Stock],Vehicle_Projections[Year],Calculations!J$4, Vehicle_Projections[[ Technology Type]], $B7, Vehicle_Projections[Vehicle Type], $A7, Vehicle_Projections[Scenario], Input_Scenario_Modeled) -> 5.665772 | K7: =SUMIFS(Vehicle_Projections[Vehicle Stock],Vehicle_Projections[Year],Calculations!K$4, Vehicle_Projections[[ Technology Type]], $B7, Vehicle_Projections[Vehicle Type], $A7, Vehicle_Projections[Scenario], Input_Scenario_Modeled) -> 6.013466 | L7: =SUMIFS(Vehicle_Projections[Vehicle Stock],Vehicle_Projections[Year],Calculations!L$4, Vehicle_Projections[[ Technology Type]], $B7, Vehicle_Projections[Vehicle Type], $A7, Vehicle_Projections[Scenario], Input_Scenario_Modeled) -> 6.364937 | M7: =SUMIFS(Vehicle_Projections[Vehicle Stock],Vehicle_Projections[Year],Calculations!M$4, Vehicle_Projections[[ Technology Type]], $B7, Vehicle_Projections[Vehicle Type], $A7, Vehicle_Projections[Scenario], Input_Scenario_Modeled) -> 6.703647 | N7: =SUMIFS(Vehicle_Projections[Vehicle Stock],Vehicle_Projections[Year],Calculations!N$4, Vehicle_Projections[[ Technology Type]], $B7, Vehicle_Projections[Vehicle Type], $A7, Vehicle_Projections[Scenario], Input_Scenario_Modeled) -> 7.046333 | O7: =SUMIFS(Vehicle_Projections[Vehicle Stock],Vehicle_Projections[Year],Calculations!O$4, Vehicle_Projections[[ Technology Type]], $B7, Vehicle_Projections[Vehicle Type], $A7, Vehicle_Projections[Scenario], Input_Scenario_Modeled) -> 7.395318 | P7: =SUMIFS(Vehicle_Projections[Vehicle Stock],Vehicle_Projections[Year],Calculations!P$4, Vehicle_Projections[[ Technology Type]], $B7, Vehicle_Projections[Vehicle Type], $A7, Vehicle_Projections[Scenario], Input_Scenario_Modeled) -> 7.749272 | Q7: =SUMIFS(Vehicle_Projections[Vehicle Stock],Vehicle_Projections[Year],Calculations!Q$4, Vehicle_Projections[[ Technology Type]], $B7, Vehicle_Projections[Vehicle Type], $A7, Vehicle_Projections[Scenario], Input_Scenario_Modeled) -> 8.110472 | R7: =SUMIFS(Vehicle_Projections[Vehicle Stock],Vehicle_Projections[Year],Calculations!R$4, Vehicle_Projections[[ Technology Type]], $B7, Vehicle_Projections[Vehicle Type], $A7, Vehicle_Projections[Scenario], Input_Scenario_Modeled) -> 8.47981 | S7: =SUMIFS(Vehicle_Projections[Vehicle Stock],Vehicle_Projections[Year],Calculations!S$4, Vehicle_Projections[[ Technology Type]], $B7, Vehicle_Projections[Vehicle Type], $A7, Vehicle_Projections[Scenario], Input_Scenario_Modeled) -> 8.859372 | T7: =SUMIFS(Vehicle_Projections[Vehicle Stock],Vehicle_Projections[Year],Calculations!T$4, Vehicle_Projections[[ Technology Type]], $B7, Vehicle_Projections[Vehicle Type], $A7, Vehicle_Projections[Scenario], Input_Scenario_Modeled) -> 9.236145 | U7: =SUMIFS(Vehicle_Projections[Vehicle Stock],Vehicle_Projections[Year],Calculations!U$4, Vehicle_Projections[[ Technology Type]], $B7, Vehicle_Projections[Vehicle Type], $A7, Vehicle_Projections[Scenario], Input_Scenario_Modeled) -> 9.608261 | V7: =SUMIFS(Vehicle_Projections[Vehicle Stock],Vehicle_Projections[Year],Calculations!V$4, Vehicle_Projections[[ Technology Type]], $B7, Vehicle_Projections[Vehicle Type], $A7, Vehicle_Projections[Scenario], Input_Scenario_Modeled) -> 9.971205 | W7: =SUMIFS(Vehicle_Projections[Vehicle Stock],Vehicle_Projections[Year],Calculations!W$4, Vehicle_Projections[[ Technology Type]], $B7, Vehicle_Projections[Vehicle Type], $A7, Vehicle_Projections[Scenario], Input_Scenario_Modeled) -> 10.323838 | X7: =SUMIFS(Vehicle_Projections[Vehicle Stock],Vehicle_Projections[Year],Calculations!X$4, Vehicle_Projections[[ Technology Type]], $B7, Vehicle_Projections[Vehicle Type], $A7, Vehicle_Projections[Scenario], Input_Scenario_Modeled) -> 10.665428 | Y7: =SUMIFS(Vehicle_Projections[Vehicle Stock],Vehicle_Projections[Year],Calculations!Y$4, Vehicle_Projections[[ Technology Type]], $B7, Vehicle_Projections[Vehicle Type], $A7, Vehicle_Projections[Scenario], Input_Scenario_Modeled) -> 10.998904 | Z7: =SUMIFS(Vehicle_Projections[Vehicle Stock],Vehicle_Projections[Year],Calculations!Z$4, Vehicle_Projections[[ Technology Type]], $B7, Vehicle_Projections[Vehicle Type], $A7, Vehicle_Projections[Scenario], Input_Scenario_Modeled) -> 11.323565 | AA7: =SUMIFS(Vehicle_Projections[Vehicle Stock],Vehicle_Projections[Year],Calculations!AA$4, Vehicle_Projections[[ Technology Type]], $B7, Vehicle_Projections[Vehicle Type], $A7, Vehicle_Projections[Scenario], Input_Scenario_Modeled) -> 11.633993 | AB7: =SUMIFS(Vehicle_Projections[Vehicle Stock],Vehicle_Projections[Year],Calculations!AB$4, Vehicle_Projections[[ Technology Type]], $B7, Vehicle_Projections[Vehicle Type], $A7, Vehicle_Projections[Scenario], Input_Scenario_Modeled) -> 11.931743 | AC7: =SUMIFS(Vehicle_Projections[Vehicle Stock],Vehicle_Projections[Year],Calculations!AC$4, Vehicle_Projections[[ Technology Type]], $B7, Vehicle_Projections[Vehicle Type], $A7, Vehicle_Projections[Scenario], Input_Scenario_Modeled) -> 12.21639 | AD7: =SUMIFS(Vehicle_Projections[Vehicle Stock],Vehicle_Projections[Year],Calculations!AD$4, Vehicle_Projections[[ Technology Type]], $B7, Vehicle_Projections[Vehicle Type], $A7, Vehicle_Projections[Scenario], Input_Scenario_Modeled) -> 12.484378 | AE7: =SUMIFS(Vehicle_Projections[Vehicle Stock],Vehicle_Projections[Year],Calculations!AE$4, Vehicle_Projections[[ Technology Type]], $B7, Vehicle_Projections[Vehicle Type], $A7, Vehicle_Projections[Scenario], Input_Scenario_Modeled) -> 12.734292 | AF7: =SUMIFS(Vehicle_Projections[Vehicle Stock],Vehicle_Projections[Year],Calculations!AF$4, Vehicle_Projections[[ Technology Type]], $B7, Vehicle_Projections[Vehicle Type], $A7, Vehicle_Projections[Scenario], Input_Scenario_Modeled) -> 12.967894 | AG7: =SUMIFS(Vehicle_Projections[Vehicle Stock],Vehicle_Projections[Year],Calculations!AG$4, Vehicle_Projections[[ Technology Type]], $B7, Vehicle_Projections[Vehicle Type], $A7, Vehicle_Projections[Scenario], Input_Scenario_Modeled) -> 13.183614 | AH7: =SUMIFS(Vehicle_Projections[Vehicle Stock],Vehicle_Projections[Year],Calculations!AH$4, Vehicle_Projections[[ Technology Type]], $B7, Vehicle_Projections[Vehicle Type], $A7, Vehicle_Projections[Scenario], Input_Scenario_Modeled) -> 13.379957 | AI7: =SUMIFS(Vehicle_Projections[Vehicle Stock],Vehicle_Projections[Year],Calculations!AI$4, Vehicle_Projections[[ Technology Type]], $B7, Vehicle_Projections[Vehicle Type], $A7, Vehicle_Projections[Scenario], Input_Scenario_Modeled) -> 13.55348 | AJ7: =SUMIFS(Vehicle_Projections[Vehicle Stock],Vehicle_Projections[Year],Calculations!AJ$4, Vehicle_Projections[[ Technology Type]], $B7, Vehicle_Projections[Vehicle Type], $A7, Vehicle_Projections[Scenario], Input_Scenario_Modeled) -> 13.70423 | AK7: =SUMIFS(Vehicle_Projections[Vehicle Stock],Vehicle_Projections[Year],Calculations!AK$4, Vehicle_Projections[[ Technology Type]], $B7, Vehicle_Projections[Vehicle Type], $A7, Vehicle_Projections[Scenario], Input_Scenario_Modeled) -> 13.834745 | AL7: =SUMIFS(Vehicle_Projections[Vehicle Stock],Vehicle_Projections[Year],Calculations!AL$4, Vehicle_Projections[[ Technology Type]], $B7, Vehicle_Projections[Vehicle Type], $A7, Vehicle_Projections[Scenario], Input_Scenario_Modeled) -> 13.944232
A8: Passenger Cars | B8: TDI Diesel ICE | C8: Diesel | D8: Stock | E8: =SUMIFS(Vehicle_Projections[Vehicle Stock],Vehicle_Projections[Year],Calculations!E$4, Vehicle_Projections[[ Technology Type]], $B8, Vehicle_Projections[Vehicle Type], $A8, Vehicle_Projections[Scenario], Input_Scenario_Modeled) -> 0.803633 | F8: =SUMIFS(Vehicle_Projections[Vehicle Stock],Vehicle_Projections[Year],Calculations!F$4, Vehicle_Projections[[ Technology Type]], $B8, Vehicle_Projections[Vehicle Type], $A8, Vehicle_Projections[Scenario], Input_Scenario_Modeled) -> 0.777678 | G8: =SUMIFS(Vehicle_Projections[Vehicle Stock],Vehicle_Projections[Year],Calculations!G$4, Vehicle_Projections[[ Technology Type]], $B8, Vehicle_Projections[Vehicle Type], $A8, Vehicle_Projections[Scenario], Input_Scenario_Modeled) -> 0.766264 | H8: =SUMIFS(Vehicle_Projections[Vehicle Stock],Vehicle_Projections[Year],Calculations!H$4, Vehicle_Projections[[ Technology Type]], $B8, Vehicle_Projections[Vehicle Type], $A8, Vehicle_Projections[Scenario], Input_Scenario_Modeled) -> 0.770079 | I8: =SUMIFS(Vehicle_Projections[Vehicle Stock],Vehicle_Projections[Year],Calculations!I$4, Vehicle_Projections[[ Technology Type]], $B8, Vehicle_Projections[Vehicle Type], $A8, Vehicle_Projections[Scenario], Input_Scenario_Modeled) -> 0.778114 | J8: =SUMIFS(Vehicle_Projections[Vehicle Stock],Vehicle_Projections[Year],Calculations!J$4, Vehicle_Projections[[ Technology Type]], $B8, Vehicle_Projections[Vehicle Type], $A8, Vehicle_Projections[Scenario], Input_Scenario_Modeled) -> 0.792951 | K8: =SUMIFS(Vehicle_Projections[Vehicle Stock],Vehicle_Projections[Year],Calculations!K$4, Vehicle_Projections[[ Technology Type]], $B8, Vehicle_Projections[Vehicle Type], $A8, Vehicle_Projections[Scenario], Input_Scenario_Modeled) -> 0.816763 | L8: =SUMIFS(Vehicle_Projections[Vehicle Stock],Vehicle_Projections[Year],Calculations!L$4, Vehicle_Projections[[ Technology Type]], $B8, Vehicle_Projections[Vehicle Type], $A8, Vehicle_Projections[Scenario], Input_Scenario_Modeled) -> 0.849333 | M8: =SUMIFS(Vehicle_Projections[Vehicle Stock],Vehicle_Projections[Year],Calculations!M$4, Vehicle_Projections[[ Technology Type]], $B8, Vehicle_Projections[Vehicle Type], $A8, Vehicle_Projections[Scenario], Input_Scenario_Modeled) -> 0.893797 | N8: =SUMIFS(Vehicle_Projections[Vehicle Stock],Vehicle_Projections[Year],Calculations!N$4, Vehicle_Projections[[ Technology Type]], $B8, Vehicle_Projections[Vehicle Type], $A8, Vehicle_Projections[Scenario], Input_Scenario_Modeled) -> 0.952299 | O8: =SUMIFS(Vehicle_Projections[Vehicle Stock],Vehicle_Projections[Year],Calculations!O$4, Vehicle_Projections[[ Technology Type]], $B8, Vehicle_Projections[Vehicle Type], $A8, Vehicle_Projections[Scenario], Input_Scenario_Modeled) -> 1.026648 | P8: =SUMIFS(Vehicle_Projections[Vehicle Stock],Vehicle_Projections[Year],Calculations!P$4, Vehicle_Projections[[ Technology Type]], $B8, Vehicle_Projections[Vehicle Type], $A8, Vehicle_Projections[Scenario], Input_Scenario_Modeled) -> 1.123837 | Q8: =SUMIFS(Vehicle_Projections[Vehicle Stock],Vehicle_Projections[Year],Calculations!Q$4, Vehicle_Projections[[ Technology Type]], $B8, Vehicle_Projections[Vehicle Type], $A8, Vehicle_Projections[Scenario], Input_Scenario_Modeled) -> 1.23531 | R8: =SUMIFS(Vehicle_Projections[Vehicle Stock],Vehicle_Projections[Year],Calculations!R$4, Vehicle_Projections[[ Technology Type]], $B8, Vehicle_Projections[Vehicle Type], $A8, Vehicle_Projections[Scenario], Input_Scenario_Modeled) -> 1.363965 | S8: =SUMIFS(Vehicle_Projections[Vehicle Stock],Vehicle_Projections[Year],Calculations!S$4, Vehicle_Projections[[ Technology Type]], $B8, Vehicle_Projections[Vehicle Type], $A8, Vehicle_Projections[Scenario], Input_Scenario_Modeled) -> 1.498988 | T8: =SUMIFS(Vehicle_Projections[Vehicle Stock],Vehicle_Projections[Year],Calculations!T$4, Vehicle_Projections[[ Technology Type]], $B8, Vehicle_Projections[Vehicle Type], $A8, Vehicle_Projections[Scenario], Input_Scenario_Modeled) -> 1.636628 | U8: =SUMIFS(Vehicle_Projections[Vehicle Stock],Vehicle_Projections[Year],Calculations!U$4, Vehicle_Projections[[ Technology Type]], $B8, Vehicle_Projections[Vehicle Type], $A8, Vehicle_Projections[Scenario], Input_Scenario_Modeled) -> 1.771043 | V8: =SUMIFS(Vehicle_Projections[Vehicle Stock],Vehicle_Projections[Year],Calculations!V$4, Vehicle_Projections[[ Technology Type]], $B8, Vehicle_Projections[Vehicle Type], $A8, Vehicle_Projections[Scenario], Input_Scenario_Modeled) -> 1.910757 | W8: =SUMIFS(Vehicle_Projections[Vehicle Stock],Vehicle_Projections[Year],Calculations!W$4, Vehicle_Projections[[ Technology Type]], $B8, Vehicle_Projections[Vehicle Type], $A8, Vehicle_Projections[Scenario], Input_Scenario_Modeled) -> 2.043822 | X8: =SUMIFS(Vehicle_Projections[Vehicle Stock],Vehicle_Projections[Year],Calculations!X$4, Vehicle_Projections[[ Technology Type]], $B8, Vehicle_Projections[Vehicle Type], $A8, Vehicle_Projections[Scenario], Input_Scenario_Modeled) -> 2.168493 | Y8: =SUMIFS(Vehicle_Projections[Vehicle Stock],Vehicle_Projections[Year],Calculations!Y$4, Vehicle_Projections[[ Technology Type]], $B8, Vehicle_Projections[Vehicle Type], $A8, Vehicle_Projections[Scenario], Input_Scenario_Modeled) -> 2.287811 | Z8: =SUMIFS(Vehicle_Projections[Vehicle Stock],Vehicle_Projections[Year],Calculations!Z$4, Vehicle_Projections[[ Technology Type]], $B8, Vehicle_Projections[Vehicle Type], $A8, Vehicle_Projections[Scenario], Input_Scenario_Modeled) -> 2.399066 | AA8: =SUMIFS(Vehicle_Projections[Vehicle Stock],Vehicle_Projections[Year],Calculations!AA$4, Vehicle_Projections[[ Technology Type]], $B8, Vehicle_Projections[Vehicle Type], $A8, Vehicle_Projections[Scenario], Input_Scenario_Modeled) -> 2.501343 | AB8: =SUMIFS(Vehicle_Projections[Vehicle Stock],Vehicle_Projections[Year],Calculations!AB$4, Vehicle_Projections[[ Technology Type]], $B8, Vehicle_Projections[Vehicle Type], $A8, Vehicle_Projections[Scenario], Input_Scenario_Modeled) -> 2.594395 | AC8: =SUMIFS(Vehicle_Projections[Vehicle Stock],Vehicle_Projections[Year],Calculations!AC$4, Vehicle_Projections[[ Technology Type]], $B8, Vehicle_Projections[Vehicle Type], $A8, Vehicle_Projections[Scenario], Input_Scenario_Modeled) -> 2.677506 | AD8: =SUMIFS(Vehicle_Projections[Vehicle Stock],Vehicle_Projections[Year],Calculations!AD$4, Vehicle_Projections[[ Technology Type]], $B8, Vehicle_Projections[Vehicle Type], $A8, Vehicle_Projections[Scenario], Input_Scenario_Modeled) -> 2.748384 | AE8: =SUMIFS(Vehicle_Projections[Vehicle Stock],Vehicle_Projections[Year],Calculations!AE$4, Vehicle_Projections[[ Technology Type]], $B8, Vehicle_Projections[Vehicle Type], $A8, Vehicle_Projections[Scenario], Input_Scenario_Modeled) -> 2.807142 | AF8: =SUMIFS(Vehicle_Projections[Vehicle Stock],Vehicle_Projections[Year],Calculations!AF$4, Vehicle_Projections[[ Technology Type]], $B8, Vehicle_Projections[Vehicle Type], $A8, Vehicle_Projections[Scenario], Input_Scenario_Modeled) -> 2.85537 | AG8: =SUMIFS(Vehicle_Projections[Vehicle Stock],Vehicle_Projections[Year],Calculations!AG$4, Vehicle_Projections[[ Technology Type]], $B8, Vehicle_Projections[Vehicle Type], $A8, Vehicle_Projections[Scenario], Input_Scenario_Modeled) -> 2.891941 | AH8: =SUMIFS(Vehicle_Projections[Vehicle Stock],Vehicle_Projections[Year],Calculations!AH$4, Vehicle_Projections[[ Technology Type]], $B8, Vehicle_Projections[Vehicle Type], $A8, Vehicle_Projections[Scenario], Input_Scenario_Modeled) -> 2.920111 | AI8: =SUMIFS(Vehicle_Projections[Vehicle Stock],Vehicle_Projections[Year],Calculations!AI$4, Vehicle_Projections[[ Technology Type]], $B8, Vehicle_Projections[Vehicle Type], $A8, Vehicle_Projections[Scenario], Input_Scenario_Modeled) -> 2.939851 | AJ8: =SUMIFS(Vehicle_Projections[Vehicle Stock],Vehicle_Projections[Year],Calculations!AJ$4, Vehicle_Projections[[ Technology Type]], $B8, Vehicle_Projections[Vehicle Type], $A8, Vehicle_Projections[Scenario], Input_Scenario_Modeled) -> 2.950457 | AK8: =SUMIFS(Vehicle_Projections[Vehicle Stock],Vehicle_Projections[Year],Calculations!AK$4, Vehicle_Projections[[ Technology Type]], $B8, Vehicle_Projections[Vehicle Type], $A8, Vehicle_Projections[Scenario], Input_Scenario_Modeled) -> 2.953688 | AL8: =SUMIFS(Vehicle_Projections[Vehicle Stock],Vehicle_Projections[Year],Calculations!AL$4, Vehicle_Projections[[ Technology Type]], $B8, Vehicle_Projections[Vehicle Type], $A8, Vehicle_Projections[Scenario], Input_Scenario_Modeled) -> 2.949322
A9: Passenger Cars | B9: Electric-Diesel Hybrid | C9: Diesel | D9: Stock | E9: =SUMIFS(Vehicle_Projections[Vehicle Stock],Vehicle_Projections[Year],Calculations!E$4, Vehicle_Projections[[ Technology Type]], $B9, Vehicle_Projections[Vehicle Type], $A9, Vehicle_Projections[Scenario], Input_Scenario_Modeled) -> 0 | F9: =SUMIFS(Vehicle_Projections[Vehicle Stock],Vehicle_Projections[Year],Calculations!F$4, Vehicle_Projections[[ Technology Type]], $B9, Vehicle_Projections[Vehicle Type], $A9, Vehicle_Projections[Scenario], Input_Scenario_Modeled) -> 0 | G9: =SUMIFS(Vehicle_Projections[Vehicle Stock],Vehicle_Projections[Year],Calculations!G$4, Vehicle_Projections[[ Technology Type]], $B9, Vehicle_Projections[Vehicle Type], $A9, Vehicle_Projections[Scenario], Input_Scenario_Modeled) -> 0 | H9: =SUMIFS(Vehicle_Projections[Vehicle Stock],Vehicle_Projections[Year],Calculations!H$4, Vehicle_Projections[[ Technology Type]], $B9, Vehicle_Projections[Vehicle Type], $A9, Vehicle_Projections[Scenario], Input_Scenario_Modeled) -> 0 | I9: =SUMIFS(Vehicle_Projections[Vehicle Stock],Vehicle_Projections[Year],Calculations!I$4, Vehicle_Projections[[ Technology Type]], $B9, Vehicle_Projections[Vehicle Type], $A9, Vehicle_Projections[Scenario], Input_Scenario_Modeled) -> 0 | J9: =SUMIFS(Vehicle_Projections[Vehicle Stock],Vehicle_Projections[Year],Calculations!J$4, Vehicle_Projections[[ Technology Type]], $B9, Vehicle_Projections[Vehicle Type], $A9, Vehicle_Projections[Scenario], Input_Scenario_Modeled) -> 0 | K9: =SUMIFS(Vehicle_Projections[Vehicle Stock],Vehicle_Projections[Year],Calculations!K$4, Vehicle_Projections[[ Technology Type]], $B9, Vehicle_Projections[Vehicle Type], $A9, Vehicle_Projections[Scenario], Input_Scenario_Modeled) -> 0 | L9: =SUMIFS(Vehicle_Projections[Vehicle Stock],Vehicle_Projections[Year],Calculations!L$4, Vehicle_Projections[[ Technology Type]], $B9, Vehicle_Projections[Vehicle Type], $A9, Vehicle_Projections[Scenario], Input_Scenario_Modeled) -> 0 | M9: =SUMIFS(Vehicle_Projections[Vehicle Stock],Vehicle_Projections[Year],Calculations!M$4, Vehicle_Projections[[ Technology Type]], $B9, Vehicle_Projections[Vehicle Type], $A9, Vehicle_Projections[Scenario], Input_Scenario_Modeled) -> 0 | N9: =SUMIFS(Vehicle_Projections[Vehicle Stock],Vehicle_Projections[Year],Calculations!N$4, Vehicle_Projections[[ Technology Type]], $B9, Vehicle_Projections[Vehicle Type], $A9, Vehicle_Projections[Scenario], Input_Scenario_Modeled) -> 0 | O9: =SUMIFS(Vehicle_Projections[Vehicle Stock],Vehicle_Projections[Year],Calculations!O$4, Vehicle_Projections[[ Technology Type]], $B9, Vehicle_Projections[Vehicle Type], $A9, Vehicle_Projections[Scenario], Input_Scenario_Modeled) -> 0 | P9: =SUMIFS(Vehicle_Projections[Vehicle Stock],Vehicle_Projections[Year],Calculations!P$4, Vehicle_Projections[[ Technology Type]], $B9, Vehicle_Projections[Vehicle Type], $A9, Vehicle_Projections[Scenario], Input_Scenario_Modeled) -> 0 | Q9: =SUMIFS(Vehicle_Projections[Vehicle Stock],Vehicle_Projections[Year],Calculations!Q$4, Vehicle_Projections[[ Technology Type]], $B9, Vehicle_Projections[Vehicle Type], $A9, Vehicle_Projections[Scenario], Input_Scenario_Modeled) -> 0 | R9: =SUMIFS(Vehicle_Projections[Vehicle Stock],Vehicle_Projections[Year],Calculations!R$4, Vehicle_Projections[[ Technology Type]], $B9, Vehicle_Projections[Vehicle Type], $A9, Vehicle_Projections[Scenario], Input_Scenario_Modeled) -> 0.001106 | S9: =SUMIFS(Vehicle_Projections[Vehicle Stock],Vehicle_Projections[Year],Calculations!S$4, Vehicle_Projections[[ Technology Type]], $B9, Vehicle_Projections[Vehicle Type], $A9, Vehicle_Projections[Scenario], Input_Scenario_Modeled) -> 0.006045 | T9: =SUMIFS(Vehicle_Projections[Vehicle Stock],Vehicle_Projections[Year],Calculations!T$4, Vehicle_Projections[[ Technology Type]], $B9, Vehicle_Projections[Vehicle Type], $A9, Vehicle_Projections[Scenario], Input_Scenario_Modeled) -> 0.014296 | U9: =SUMIFS(Vehicle_Projections[Vehicle Stock],Vehicle_Projections[Year],Calculations!U$4, Vehicle_Projections[[ Technology Type]], $B9, Vehicle_Projections[Vehicle Type], $A9, Vehicle_Projections[Scenario], Input_Scenario_Modeled) -> 0.024435 | V9: =SUMIFS(Vehicle_Projections[Vehicle Stock],Vehicle_Projections[Year],Calculations!V$4, Vehicle_Projections[[ Technology Type]], $B9, Vehicle_Projections[Vehicle Type], $A9, Vehicle_Projections[Scenario], Input_Scenario_Modeled) -> 0.035563 | W9: =SUMIFS(Vehicle_Projections[Vehicle Stock],Vehicle_Projections[Year],Calculations!W$4, Vehicle_Projections[[ Technology Type]], $B9, Vehicle_Projections[Vehicle Type], $A9, Vehicle_Projections[Scenario], Input_Scenario_Modeled) -> 0.047097 | X9: =SUMIFS(Vehicle_Projections[Vehicle Stock],Vehicle_Projections[Year],Calculations!X$4, Vehicle_Projections[[ Technology Type]], $B9, Vehicle_Projections[Vehicle Type], $A9, Vehicle_Projections[Scenario], Input_Scenario_Modeled) -> 0.058716 | Y9: =SUMIFS(Vehicle_Projections[Vehicle Stock],Vehicle_Projections[Year],Calculations!Y$4, Vehicle_Projections[[ Technology Type]], $B9, Vehicle_Projections[Vehicle Type], $A9, Vehicle_Projections[Scenario], Input_Scenario_Modeled) -> 0.070455 | Z9: =SUMIFS(Vehicle_Projections[Vehicle Stock],Vehicle_Projections[Year],Calculations!Z$4, Vehicle_Projections[[ Technology Type]], $B9, Vehicle_Projections[Vehicle Type], $A9, Vehicle_Projections[Scenario], Input_Scenario_Modeled) -> 0.08217 | AA9: =SUMIFS(Vehicle_Projections[Vehicle Stock],Vehicle_Projections[Year],Calculations!AA$4, Vehicle_Projections[[ Technology Type]], $B9, Vehicle_Projections[Vehicle Type], $A9, Vehicle_Projections[Scenario], Input_Scenario_Modeled) -> 0.093822 | AB9: =SUMIFS(Vehicle_Projections[Vehicle Stock],Vehicle_Projections[Year],Calculations!AB$4, Vehicle_Projections[[ Technology Type]], $B9, Vehicle_Projections[Vehicle Type], $A9, Vehicle_Projections[Scenario], Input_Scenario_Modeled) -> 0.105484 | AC9: =SUMIFS(Vehicle_Projections[Vehicle Stock],Vehicle_Projections[Year],Calculations!AC$4, Vehicle_Projections[[ Technology Type]], $B9, Vehicle_Projections[Vehicle Type], $A9, Vehicle_Projections[Scenario], Input_Scenario_Modeled) -> 0.117164 | AD9: =SUMIFS(Vehicle_Projections[Vehicle Stock],Vehicle_Projections[Year],Calculations!AD$4, Vehicle_Projections[[ Technology Type]], $B9, Vehicle_Projections[Vehicle Type], $A9, Vehicle_Projections[Scenario], Input_Scenario_Modeled) -> 0.128677 | AE9: =SUMIFS(Vehicle_Projections[Vehicle Stock],Vehicle_Projections[Year],Calculations!AE$4, Vehicle_Projections[[ Technology Type]], $B9, Vehicle_Projections[Vehicle Type], $A9, Vehicle_Projections[Scenario], Input_Scenario_Modeled) -> 0.139957 | AF9: =SUMIFS(Vehicle_Projections[Vehicle Stock],Vehicle_Projections[Year],Calculations!AF$4, Vehicle_Projections[[ Technology Type]], $B9, Vehicle_Projections[Vehicle Type], $A9, Vehicle_Projections[Scenario], Input_Scenario_Modeled) -> 0.15096 | AG9: =SUMIFS(Vehicle_Projections[Vehicle Stock],Vehicle_Projections[Year],Calculations!AG$4, Vehicle_Projections[[ Technology Type]], $B9, Vehicle_Projections[Vehicle Type], $A9, Vehicle_Projections[Scenario], Input_Scenario_Modeled) -> 0.161474 | AH9: =SUMIFS(Vehicle_Projections[Vehicle Stock],Vehicle_Projections[Year],Calculations!AH$4, Vehicle_Projections[[ Technology Type]], $B9, Vehicle_Projections[Vehicle Type], $A9, Vehicle_Projections[Scenario], Input_Scenario_Modeled) -> 0.171426 | AI9: =SUMIFS(Vehicle_Projections[Vehicle Stock],Vehicle_Projections[Year],Calculations!AI$4, Vehicle_Projections[[ Technology Type]], $B9, Vehicle_Projections[Vehicle Type], $A9, Vehicle_Projections[Scenario], Input_Scenario_Modeled) -> 0.180641 | AJ9: =SUMIFS(Vehicle_Projections[Vehicle Stock],Vehicle_Projections[Year],Calculations!AJ$4, Vehicle_Projections[[ Technology Type]], $B9, Vehicle_Projections[Vehicle Type], $A9, Vehicle_Projections[Scenario], Input_Scenario_Modeled) -> 0.188912 | AK9: =SUMIFS(Vehicle_Projections[Vehicle Stock],Vehicle_Projections[Year],Calculations!AK$4, Vehicle_Projections[[ Technology Type]], $B9, Vehicle_Projections[Vehicle Type], $A9, Vehicle_Projections[Scenario], Input_Scenario_Modeled) -> 0.196291 | AL9: =SUMIFS(Vehicle_Projections[Vehicle Stock],Vehicle_Projections[Year],Calculations!AL$4, Vehicle_Projections[[ Technology Type]], $B9, Vehicle_Projections[Vehicle Type], $A9, Vehicle_Projections[Scenario], Input_Scenario_Modeled) -> 0.202719
A10: Passenger Cars | B10: 100 Mile Electric Vehicle | C10: Electricity | D10: Stock | E10: =SUMIFS(Vehicle_Projections[Vehicle Stock],Vehicle_Projections[Year],Calculations!E$4, Vehicle_Projections[[ Technology Type]], $B10, Vehicle_Projections[Vehicle Type], $A10, Vehicle_Projections[Scenario], Input_Scenario_Modeled) -> 0.195882 | F10: =SUMIFS(Vehicle_Projections[Vehicle Stock],Vehicle_Projections[Year],Calculations!F$4, Vehicle_Projections[[ Technology Type]], $B10, Vehicle_Projections[Vehicle Type], $A10, Vehicle_Projections[Scenario], Input_Scenario_Modeled) -> 0.208961 | G10: =SUMIFS(Vehicle_Projections[Vehicle Stock],Vehicle_Projections[Year],Calculations!G$4, Vehicle_Projections[[ Technology Type]], $B10, Vehicle_Projections[Vehicle Type], $A10, Vehicle_Projections[Scenario], Input_Scenario_Modeled) -> 0.260034 | H10: =SUMIFS(Vehicle_Projections[Vehicle Stock],Vehicle_Projections[Year],Calculations!H$4, Vehicle_Projections[[ Technology Type]], $B10, Vehicle_Projections[Vehicle Type], $A10, Vehicle_Projections[Scenario], Input_Scenario_Modeled) -> 0.313793 | I10: =SUMIFS(Vehicle_Projections[Vehicle Stock],Vehicle_Projections[Year],Calculations!I$4, Vehicle_Projections[[ Technology Type]], $B10, Vehicle_Projections[Vehicle Type], $A10, Vehicle_Projections[Scenario], Input_Scenario_Modeled) -> 0.372325 | J10: =SUMIFS(Vehicle_Projections[Vehicle Stock],Vehicle_Projections[Year],Calculations!J$4, Vehicle_Projections[[ Technology Type]], $B10, Vehicle_Projections[Vehicle Type], $A10, Vehicle_Projections[Scenario], Input_Scenario_Modeled) -> 0.440716 | K10: =SUMIFS(Vehicle_Projections[Vehicle Stock],Vehicle_Projections[Year],Calculations!K$4, Vehicle_Projections[[ Technology Type]], $B10, Vehicle_Projections[Vehicle Type], $A10, Vehicle_Projections[Scenario], Input_Scenario_Modeled) -> 0.513588 | L10: =SUMIFS(Vehicle_Projections[Vehicle Stock],Vehicle_Projections[Year],Calculations!L$4, Vehicle_Projections[[ Technology Type]], $B10, Vehicle_Projections[Vehicle Type], $A10, Vehicle_Projections[Scenario], Input_Scenario_Modeled) -> 0.595387 | M10: =SUMIFS(Vehicle_Projections[Vehicle Stock],Vehicle_Projections[Year],Calculations!M$4, Vehicle_Projections[[ Technology Type]], $B10, Vehicle_Projections[Vehicle Type], $A10, Vehicle_Projections[Scenario], Input_Scenario_Modeled) -> 0.680871 | N10: =SUMIFS(Vehicle_Projections[Vehicle Stock],Vehicle_Projections[Year],Calculations!N$4, Vehicle_Projections[[ Technology Type]], $B10, Vehicle_Projections[Vehicle Type], $A10, Vehicle_Projections[Scenario], Input_Scenario_Modeled) -> 0.760109 | O10: =SUMIFS(Vehicle_Projections[Vehicle Stock],Vehicle_Projections[Year],Calculations!O$4, Vehicle_Projections[[ Technology Type]], $B10, Vehicle_Projections[Vehicle Type], $A10, Vehicle_Projections[Scenario], Input_Scenario_Modeled) -> 0.837168 | P10: =SUMIFS(Vehicle_Projections[Vehicle Stock],Vehicle_Projections[Year],Calculations!P$4, Vehicle_Projections[[ Technology Type]], $B10, Vehicle_Projections[Vehicle Type], $A10, Vehicle_Projections[Scenario], Input_Scenario_Modeled) -> 0.906489 | Q10: =SUMIFS(Vehicle_Projections[Vehicle Stock],Vehicle_Projections[Year],Calculations!Q$4, Vehicle_Projections[[ Technology Type]], $B10, Vehicle_Projections[Vehicle Type], $A10, Vehicle_Projections[Scenario], Input_Scenario_Modeled) -> 0.972457 | R10: =SUMIFS(Vehicle_Projections[Vehicle Stock],Vehicle_Projections[Year],Calculations!R$4, Vehicle_Projections[[ Technology Type]], $B10, Vehicle_Projections[Vehicle Type], $A10, Vehicle_Projections[Scenario], Input_Scenario_Modeled) -> 1.033574 | S10: =SUMIFS(Vehicle_Projections[Vehicle Stock],Vehicle_Projections[Year],Calculations!S$4, Vehicle_Projections[[ Technology Type]], $B10, Vehicle_Projections[Vehicle Type], $A10, Vehicle_Projections[Scenario], Input_Scenario_Modeled) -> 1.092179 | T10: =SUMIFS(Vehicle_Projections[Vehicle Stock],Vehicle_Projections[Year],Calculations!T$4, Vehicle_Projections[[ Technology Type]], $B10, Vehicle_Projections[Vehicle Type], $A10, Vehicle_Projections[Scenario], Input_Scenario_Modeled) -> 1.143182 | U10: =SUMIFS(Vehicle_Projections[Vehicle Stock],Vehicle_Projections[Year],Calculations!U$4, Vehicle_Projections[[ Technology Type]], $B10, Vehicle_Projections[Vehicle Type], $A10, Vehicle_Projections[Scenario], Input_Scenario_Modeled) -> 1.191302 | V10: =SUMIFS(Vehicle_Projections[Vehicle Stock],Vehicle_Projections[Year],Calculations!V$4, Vehicle_Projections[[ Technology Type]], $B10, Vehicle_Projections[Vehicle Type], $A10, Vehicle_Projections[Scenario], Input_Scenario_Modeled) -> 1.236534 | W10: =SUMIFS(Vehicle_Projections[Vehicle Stock],Vehicle_Projections[Year],Calculations!W$4, Vehicle_Projections[[ Technology Type]], $B10, Vehicle_Projections[Vehicle Type], $A10, Vehicle_Projections[Scenario], Input_Scenario_Modeled) -> 1.278813 | X10: =SUMIFS(Vehicle_Projections[Vehicle Stock],Vehicle_Projections[Year],Calculations!X$4, Vehicle_Projections[[ Technology Type]], $B10, Vehicle_Projections[Vehicle Type], $A10, Vehicle_Projections[Scenario], Input_Scenario_Modeled) -> 1.317466 | Y10: =SUMIFS(Vehicle_Projections[Vehicle Stock],Vehicle_Projections[Year],Calculations!Y$4, Vehicle_Projections[[ Technology Type]], $B10, Vehicle_Projections[Vehicle Type], $A10, Vehicle_Projections[Scenario], Input_Scenario_Modeled) -> 1.351504 | Z10: =SUMIFS(Vehicle_Projections[Vehicle Stock],Vehicle_Projections[Year],Calculations!Z$4, Vehicle_Projections[[ Technology Type]], $B10, Vehicle_Projections[Vehicle Type], $A10, Vehicle_Projections[Scenario], Input_Scenario_Modeled) -> 1.382852 | AA10: =SUMIFS(Vehicle_Projections[Vehicle Stock],Vehicle_Projections[Year],Calculations!AA$4, Vehicle_Projections[[ Technology Type]], $B10, Vehicle_Projections[Vehicle Type], $A10, Vehicle_Projections[Scenario], Input_Scenario_Modeled) -> 1.412077 | AB10: =SUMIFS(Vehicle_Projections[Vehicle Stock],Vehicle_Projections[Year],Calculations!AB$4, Vehicle_Projections[[ Technology Type]], $B10, Vehicle_Projections[Vehicle Type], $A10, Vehicle_Projections[Scenario], Input_Scenario_Modeled) -> 1.439353 | AC10: =SUMIFS(Vehicle_Projections[Vehicle Stock],Vehicle_Projections[Year],Calculations!AC$4, Vehicle_Projections[[ Technology Type]], $B10, Vehicle_Projections[Vehicle Type], $A10, Vehicle_Projections[Scenario], Input_Scenario_Modeled) -> 1.463613 | AD10: =SUMIFS(Vehicle_Projections[Vehicle Stock],Vehicle_Projections[Year],Calculations!AD$4, Vehicle_Projections[[ Technology Type]], $B10, Vehicle_Projections[Vehicle Type], $A10, Vehicle_Projections[Scenario], Input_Scenario_Modeled) -> 1.486122 | AE10: =SUMIFS(Vehicle_Projections[Vehicle Stock],Vehicle_Projections[Year],Calculations!AE$4, Vehicle_Projections[[ Technology Type]], $B10, Vehicle_Projections[Vehicle Type], $A10, Vehicle_Projections[Scenario], Input_Scenario_Modeled) -> 1.507143 | AF10: =SUMIFS(Vehicle_Projections[Vehicle Stock],Vehicle_Projections[Year],Calculations!AF$4, Vehicle_Projections[[ Technology Type]], $B10, Vehicle_Projections[Vehicle Type], $A10, Vehicle_Projections[Scenario], Input_Scenario_Modeled) -> 1.527547 | AG10: =SUMIFS(Vehicle_Projections[Vehicle Stock],Vehicle_Projections[Year],Calculations!AG$4, Vehicle_Projections[[ Technology Type]], $B10, Vehicle_Projections[Vehicle Type], $A10, Vehicle_Projections[Scenario], Input_Scenario_Modeled) -> 1.547346 | AH10: =SUMIFS(Vehicle_Projections[Vehicle Stock],Vehicle_Projections[Year],Calculations!AH$4, Vehicle_Projections[[ Technology Type]], $B10, Vehicle_Projections[Vehicle Type], $A10, Vehicle_Projections[Scenario], Input_Scenario_Modeled) -> 1.566476 | AI10: =SUMIFS(Vehicle_Projections[Vehicle Stock],Vehicle_Projections[Year],Calculations!AI$4, Vehicle_Projections[[ Technology Type]], $B10, Vehicle_Projections[Vehicle Type], $A10, Vehicle_Projections[Scenario], Input_Scenario_Modeled) -> 1.585167 | AJ10: =SUMIFS(Vehicle_Projections[Vehicle Stock],Vehicle_Projections[Year],Calculations!AJ$4, Vehicle_Projections[[ Technology Type]], $B10, Vehicle_Projections[Vehicle Type], $A10, Vehicle_Projections[Scenario], Input_Scenario_Modeled) -> 1.604149 | AK10: =SUMIFS(Vehicle_Projections[Vehicle Stock],Vehicle_Projections[Year],Calculations!AK$4, Vehicle_Projections[[ Technology Type]], $B10, Vehicle_Projections[Vehicle Type], $A10, Vehicle_Projections[Scenario], Input_Scenario_Modeled) -> 1.623101 | AL10: =SUMIFS(Vehicle_Projections[Vehicle Stock],Vehicle_Projections[Year],Calculations!AL$4, Vehicle_Projections[[ Technology Type]], $B10, Vehicle_Projections[Vehicle Type], $A10, Vehicle_Projections[Scenario], Input_Scenario_Modeled) -> 1.642135
A11: Passenger Cars | B11: 200 Mile Electric Vehicle | C11: Electricity | D11: Stock | E11: =SUMIFS(Vehicle_Projections[Vehicle Stock],Vehicle_Projections[Year],Calculations!E$4, Vehicle_Projections[[ Technology Type]], $B11, Vehicle_Projections[Vehicle Type], $A11, Vehicle_Projections[Scenario], Input_Scenario_Modeled) -> 0.134602 | F11: =SUMIFS(Vehicle_Projections[Vehicle Stock],Vehicle_Projections[Year],Calculations!F$4, Vehicle_Projections[[ Technology Type]], $B11, Vehicle_Projections[Vehicle Type], $A11, Vehicle_Projections[Scenario], Input_Scenario_Modeled) -> 0.1797 | G11: =SUMIFS(Vehicle_Projections[Vehicle Stock],Vehicle_Projections[Year],Calculations!G$4, Vehicle_Projections[[ Technology Type]], $B11, Vehicle_Projections[Vehicle Type], $A11, Vehicle_Projections[Scenario], Input_Scenario_Modeled) -> 0.346257 | H11: =SUMIFS(Vehicle_Projections[Vehicle Stock],Vehicle_Projections[Year],Calculations!H$4, Vehicle_Projections[[ Technology Type]], $B11, Vehicle_Projections[Vehicle Type], $A11, Vehicle_Projections[Scenario], Input_Scenario_Modeled) -> 0.556082 | I11: =SUMIFS(Vehicle_Projections[Vehicle Stock],Vehicle_Projections[Year],Calculations!I$4, Vehicle_Projections[[ Technology Type]], $B11, Vehicle_Projections[Vehicle Type], $A11, Vehicle_Projections[Scenario], Input_Scenario_Modeled) -> 0.776677 | J11: =SUMIFS(Vehicle_Projections[Vehicle Stock],Vehicle_Projections[Year],Calculations!J$4, Vehicle_Projections[[ Technology Type]], $B11, Vehicle_Projections[Vehicle Type], $A11, Vehicle_Projections[Scenario], Input_Scenario_Modeled) -> 1.003166 | K11: =SUMIFS(Vehicle_Projections[Vehicle Stock],Vehicle_Projections[Year],Calculations!K$4, Vehicle_Projections[[ Technology Type]], $B11, Vehicle_Projections[Vehicle Type], $A11, Vehicle_Projections[Scenario], Input_Scenario_Modeled) -> 1.249311 | L11: =SUMIFS(Vehicle_Projections[Vehicle Stock],Vehicle_Projections[Year],Calculations!L$4, Vehicle_Projections[[ Technology Type]], $B11, Vehicle_Projections[Vehicle Type], $A11, Vehicle_Projections[Scenario], Input_Scenario_Modeled) -> 1.523463 | M11: =SUMIFS(Vehicle_Projections[Vehicle Stock],Vehicle_Projections[Year],Calculations!M$4, Vehicle_Projections[[ Technology Type]], $B11, Vehicle_Projections[Vehicle Type], $A11, Vehicle_Projections[Scenario], Input_Scenario_Modeled) -> 1.820851 | N11: =SUMIFS(Vehicle_Projections[Vehicle Stock],Vehicle_Projections[Year],Calculations!N$4, Vehicle_Projections[[ Technology Type]], $B11, Vehicle_Projections[Vehicle Type], $A11, Vehicle_Projections[Scenario], Input_Scenario_Modeled) -> 2.114036 | O11: =SUMIFS(Vehicle_Projections[Vehicle Stock],Vehicle_Projections[Year],Calculations!O$4, Vehicle_Projections[[ Technology Type]], $B11, Vehicle_Projections[Vehicle Type], $A11, Vehicle_Projections[Scenario], Input_Scenario_Modeled) -> 2.406856 | P11: =SUMIFS(Vehicle_Projections[Vehicle Stock],Vehicle_Projections[Year],Calculations!P$4, Vehicle_Projections[[ Technology Type]], $B11, Vehicle_Projections[Vehicle Type], $A11, Vehicle_Projections[Scenario], Input_Scenario_Modeled) -> 2.700799 | Q11: =SUMIFS(Vehicle_Projections[Vehicle Stock],Vehicle_Projections[Year],Calculations!Q$4, Vehicle_Projections[[ Technology Type]], $B11, Vehicle_Projections[Vehicle Type], $A11, Vehicle_Projections[Scenario], Input_Scenario_Modeled) -> 3.004122 | R11: =SUMIFS(Vehicle_Projections[Vehicle Stock],Vehicle_Projections[Year],Calculations!R$4, Vehicle_Projections[[ Technology Type]], $B11, Vehicle_Projections[Vehicle Type], $A11, Vehicle_Projections[Scenario], Input_Scenario_Modeled) -> 3.305918 | S11: =SUMIFS(Vehicle_Projections[Vehicle Stock],Vehicle_Projections[Year],Calculations!S$4, Vehicle_Projections[[ Technology Type]], $B11, Vehicle_Projections[Vehicle Type], $A11, Vehicle_Projections[Scenario], Input_Scenario_Modeled) -> 3.623039 | T11: =SUMIFS(Vehicle_Projections[Vehicle Stock],Vehicle_Projections[Year],Calculations!T$4, Vehicle_Projections[[ Technology Type]], $B11, Vehicle_Projections[Vehicle Type], $A11, Vehicle_Projections[Scenario], Input_Scenario_Modeled) -> 3.954119 | U11: =SUMIFS(Vehicle_Projections[Vehicle Stock],Vehicle_Projections[Year],Calculations!U$4, Vehicle_Projections[[ Technology Type]], $B11, Vehicle_Projections[Vehicle Type], $A11, Vehicle_Projections[Scenario], Input_Scenario_Modeled) -> 4.301428 | V11: =SUMIFS(Vehicle_Projections[Vehicle Stock],Vehicle_Projections[Year],Calculations!V$4, Vehicle_Projections[[ Technology Type]], $B11, Vehicle_Projections[Vehicle Type], $A11, Vehicle_Projections[Scenario], Input_Scenario_Modeled) -> 4.665046 | W11: =SUMIFS(Vehicle_Projections[Vehicle Stock],Vehicle_Projections[Year],Calculations!W$4, Vehicle_Projections[[ Technology Type]], $B11, Vehicle_Projections[Vehicle Type], $A11, Vehicle_Projections[Scenario], Input_Scenario_Modeled) -> 5.042279 | X11: =SUMIFS(Vehicle_Projections[Vehicle Stock],Vehicle_Projections[Year],Calculations!X$4, Vehicle_Projections[[ Technology Type]], $B11, Vehicle_Projections[Vehicle Type], $A11, Vehicle_Projections[Scenario], Input_Scenario_Modeled) -> 5.432127 | Y11: =SUMIFS(Vehicle_Projections[Vehicle Stock],Vehicle_Projections[Year],Calculations!Y$4, Vehicle_Projections[[ Technology Type]], $B11, Vehicle_Projections[Vehicle Type], $A11, Vehicle_Projections[Scenario], Input_Scenario_Modeled) -> 5.833308 | Z11: =SUMIFS(Vehicle_Projections[Vehicle Stock],Vehicle_Projections[Year],Calculations!Z$4, Vehicle_Projections[[ Technology Type]], $B11, Vehicle_Projections[Vehicle Type], $A11, Vehicle_Projections[Scenario], Input_Scenario_Modeled) -> 6.250597 | AA11: =SUMIFS(Vehicle_Projections[Vehicle Stock],Vehicle_Projections[Year],Calculations!AA$4, Vehicle_Projections[[ Technology Type]], $B11, Vehicle_Projections[Vehicle Type], $A11, Vehicle_Projections[Scenario], Input_Scenario_Modeled) -> 6.684587 | AB11: =SUMIFS(Vehicle_Projections[Vehicle Stock],Vehicle_Projections[Year],Calculations!AB$4, Vehicle_Projections[[ Technology Type]], $B11, Vehicle_Projections[Vehicle Type], $A11, Vehicle_Projections[Scenario], Input_Scenario_Modeled) -> 7.137063 | AC11: =SUMIFS(Vehicle_Projections[Vehicle Stock],Vehicle_Projections[Year],Calculations!AC$4, Vehicle_Projections[[ Technology Type]], $B11, Vehicle_Projections[Vehicle Type], $A11, Vehicle_Projections[Scenario], Input_Scenario_Modeled) -> 7.591192 | AD11: =SUMIFS(Vehicle_Projections[Vehicle Stock],Vehicle_Projections[Year],Calculations!AD$4, Vehicle_Projections[[ Technology Type]], $B11, Vehicle_Projections[Vehicle Type], $A11, Vehicle_Projections[Scenario], Input_Scenario_Modeled) -> 8.045319 | AE11: =SUMIFS(Vehicle_Projections[Vehicle Stock],Vehicle_Projections[Year],Calculations!AE$4, Vehicle_Projections[[ Technology Type]], $B11, Vehicle_Projections[Vehicle Type], $A11, Vehicle_Projections[Scenario], Input_Scenario_Modeled) -> 8.497761 | AF11: =SUMIFS(Vehicle_Projections[Vehicle Stock],Vehicle_Projections[Year],Calculations!AF$4, Vehicle_Projections[[ Technology Type]], $B11, Vehicle_Projections[Vehicle Type], $A11, Vehicle_Projections[Scenario], Input_Scenario_Modeled) -> 8.949951 | AG11: =SUMIFS(Vehicle_Projections[Vehicle Stock],Vehicle_Projections[Year],Calculations!AG$4, Vehicle_Projections[[ Technology Type]], $B11, Vehicle_Projections[Vehicle Type], $A11, Vehicle_Projections[Scenario], Input_Scenario_Modeled) -> 9.400811 | AH11: =SUMIFS(Vehicle_Projections[Vehicle Stock],Vehicle_Projections[Year],Calculations!AH$4, Vehicle_Projections[[ Technology Type]], $B11, Vehicle_Projections[Vehicle Type], $A11, Vehicle_Projections[Scenario], Input_Scenario_Modeled) -> 9.849263 | AI11: =SUMIFS(Vehicle_Projections[Vehicle Stock],Vehicle_Projections[Year],Calculations!AI$4, Vehicle_Projections[[ Technology Type]], $B11, Vehicle_Projections[Vehicle Type], $A11, Vehicle_Projections[Scenario], Input_Scenario_Modeled) -> 10.290888 | AJ11: =SUMIFS(Vehicle_Projections[Vehicle Stock],Vehicle_Projections[Year],Calculations!AJ$4, Vehicle_Projections[[ Technology Type]], $B11, Vehicle_Projections[Vehicle Type], $A11, Vehicle_Projections[Scenario], Input_Scenario_Modeled) -> 10.725594 | AK11: =SUMIFS(Vehicle_Projections[Vehicle Stock],Vehicle_Projections[Year],Calculations!AK$4, Vehicle_Projections[[ Technology Type]], $B11, Vehicle_Projections[Vehicle Type], $A11, Vehicle_Projections[Scenario], Input_Scenario_Modeled) -> 11.15103 | AL11: =SUMIFS(Vehicle_Projections[Vehicle Stock],Vehicle_Projections[Year],Calculations!AL$4, Vehicle_Projections[[ Technology Type]], $B11, Vehicle_Projections[Vehicle Type], $A11, Vehicle_Projections[Scenario], Input_Scenario_Modeled) -> 11.564273
A12: Passenger Cars | B12: 300 Mile Electric Vehicle | C12: Electricity | D12: Stock | E12: =SUMIFS(Vehicle_Projections[Vehicle Stock],Vehicle_Projections[Year],Calculations!E$4, Vehicle_Projections[[ Technology Type]], $B12, Vehicle_Projections[Vehicle Type], $A12, Vehicle_Projections[Scenario], Input_Scenario_Modeled) -> 0.03085 | F12: =SUMIFS(Vehicle_Projections[Vehicle Stock],Vehicle_Projections[Year],Calculations!F$4, Vehicle_Projections[[ Technology Type]], $B12, Vehicle_Projections[Vehicle Type], $A12, Vehicle_Projections[Scenario], Input_Scenario_Modeled) -> 0.166121 | G12: =SUMIFS(Vehicle_Projections[Vehicle Stock],Vehicle_Projections[Year],Calculations!G$4, Vehicle_Projections[[ Technology Type]], $B12, Vehicle_Projections[Vehicle Type], $A12, Vehicle_Projections[Scenario], Input_Scenario_Modeled) -> 0.382303 | H12: =SUMIFS(Vehicle_Projections[Vehicle Stock],Vehicle_Projections[Year],Calculations!H$4, Vehicle_Projections[[ Technology Type]], $B12, Vehicle_Projections[Vehicle Type], $A12, Vehicle_Projections[Scenario], Input_Scenario_Modeled) -> 0.664127 | I12: =SUMIFS(Vehicle_Projections[Vehicle Stock],Vehicle_Projections[Year],Calculations!I$4, Vehicle_Projections[[ Technology Type]], $B12, Vehicle_Projections[Vehicle Type], $A12, Vehicle_Projections[Scenario], Input_Scenario_Modeled) -> 1.020759 | J12: =SUMIFS(Vehicle_Projections[Vehicle Stock],Vehicle_Projections[Year],Calculations!J$4, Vehicle_Projections[[ Technology Type]], $B12, Vehicle_Projections[Vehicle Type], $A12, Vehicle_Projections[Scenario], Input_Scenario_Modeled) -> 1.3958 | K12: =SUMIFS(Vehicle_Projections[Vehicle Stock],Vehicle_Projections[Year],Calculations!K$4, Vehicle_Projections[[ Technology Type]], $B12, Vehicle_Projections[Vehicle Type], $A12, Vehicle_Projections[Scenario], Input_Scenario_Modeled) -> 1.793634 | L12: =SUMIFS(Vehicle_Projections[Vehicle Stock],Vehicle_Projections[Year],Calculations!L$4, Vehicle_Projections[[ Technology Type]], $B12, Vehicle_Projections[Vehicle Type], $A12, Vehicle_Projections[Scenario], Input_Scenario_Modeled) -> 2.201296 | M12: =SUMIFS(Vehicle_Projections[Vehicle Stock],Vehicle_Projections[Year],Calculations!M$4, Vehicle_Projections[[ Technology Type]], $B12, Vehicle_Projections[Vehicle Type], $A12, Vehicle_Projections[Scenario], Input_Scenario_Modeled) -> 2.613906 | N12: =SUMIFS(Vehicle_Projections[Vehicle Stock],Vehicle_Projections[Year],Calculations!N$4, Vehicle_Projections[[ Technology Type]], $B12, Vehicle_Projections[Vehicle Type], $A12, Vehicle_Projections[Scenario], Input_Scenario_Modeled) -> 3.02542 | O12: =SUMIFS(Vehicle_Projections[Vehicle Stock],Vehicle_Projections[Year],Calculations!O$4, Vehicle_Projections[[ Technology Type]], $B12, Vehicle_Projections[Vehicle Type], $A12, Vehicle_Projections[Scenario], Input_Scenario_Modeled) -> 3.444076 | P12: =SUMIFS(Vehicle_Projections[Vehicle Stock],Vehicle_Projections[Year],Calculations!P$4, Vehicle_Projections[[ Technology Type]], $B12, Vehicle_Projections[Vehicle Type], $A12, Vehicle_Projections[Scenario], Input_Scenario_Modeled) -> 3.875262 | Q12: =SUMIFS(Vehicle_Projections[Vehicle Stock],Vehicle_Projections[Year],Calculations!Q$4, Vehicle_Projections[[ Technology Type]], $B12, Vehicle_Projections[Vehicle Type], $A12, Vehicle_Projections[Scenario], Input_Scenario_Modeled) -> 4.321768 | R12: =SUMIFS(Vehicle_Projections[Vehicle Stock],Vehicle_Projections[Year],Calculations!R$4, Vehicle_Projections[[ Technology Type]], $B12, Vehicle_Projections[Vehicle Type], $A12, Vehicle_Projections[Scenario], Input_Scenario_Modeled) -> 4.798095 | S12: =SUMIFS(Vehicle_Projections[Vehicle Stock],Vehicle_Projections[Year],Calculations!S$4, Vehicle_Projections[[ Technology Type]], $B12, Vehicle_Projections[Vehicle Type], $A12, Vehicle_Projections[Scenario], Input_Scenario_Modeled) -> 5.305131 | T12: =SUMIFS(Vehicle_Projections[Vehicle Stock],Vehicle_Projections[Year],Calculations!T$4, Vehicle_Projections[[ Technology Type]], $B12, Vehicle_Projections[Vehicle Type], $A12, Vehicle_Projections[Scenario], Input_Scenario_Modeled) -> 5.836092 | U12: =SUMIFS(Vehicle_Projections[Vehicle Stock],Vehicle_Projections[Year],Calculations!U$4, Vehicle_Projections[[ Technology Type]], $B12, Vehicle_Projections[Vehicle Type], $A12, Vehicle_Projections[Scenario], Input_Scenario_Modeled) -> 6.386522 | V12: =SUMIFS(Vehicle_Projections[Vehicle Stock],Vehicle_Projections[Year],Calculations!V$4, Vehicle_Projections[[ Technology Type]], $B12, Vehicle_Projections[Vehicle Type], $A12, Vehicle_Projections[Scenario], Input_Scenario_Modeled) -> 6.950972 | W12: =SUMIFS(Vehicle_Projections[Vehicle Stock],Vehicle_Projections[Year],Calculations!W$4, Vehicle_Projections[[ Technology Type]], $B12, Vehicle_Projections[Vehicle Type], $A12, Vehicle_Projections[Scenario], Input_Scenario_Modeled) -> 7.521293 | X12: =SUMIFS(Vehicle_Projections[Vehicle Stock],Vehicle_Projections[Year],Calculations!X$4, Vehicle_Projections[[ Technology Type]], $B12, Vehicle_Projections[Vehicle Type], $A12, Vehicle_Projections[Scenario], Input_Scenario_Modeled) -> 8.09045 | Y12: =SUMIFS(Vehicle_Projections[Vehicle Stock],Vehicle_Projections[Year],Calculations!Y$4, Vehicle_Projections[[ Technology Type]], $B12, Vehicle_Projections[Vehicle Type], $A12, Vehicle_Projections[Scenario], Input_Scenario_Modeled) -> 8.655412 | Z12: =SUMIFS(Vehicle_Projections[Vehicle Stock],Vehicle_Projections[Year],Calculations!Z$4, Vehicle_Projections[[ Technology Type]], $B12, Vehicle_Projections[Vehicle Type], $A12, Vehicle_Projections[Scenario], Input_Scenario_Modeled) -> 9.212337 | AA12: =SUMIFS(Vehicle_Projections[Vehicle Stock],Vehicle_Projections[Year],Calculations!AA$4, Vehicle_Projections[[ Technology Type]], $B12, Vehicle_Projections[Vehicle Type], $A12, Vehicle_Projections[Scenario], Input_Scenario_Modeled) -> 9.756588 | AB12: =SUMIFS(Vehicle_Projections[Vehicle Stock],Vehicle_Projections[Year],Calculations!AB$4, Vehicle_Projections[[ Technology Type]], $B12, Vehicle_Projections[Vehicle Type], $A12, Vehicle_Projections[Scenario], Input_Scenario_Modeled) -> 10.286201 | AC12: =SUMIFS(Vehicle_Projections[Vehicle Stock],Vehicle_Projections[Year],Calculations!AC$4, Vehicle_Projections[[ Technology Type]], $B12, Vehicle_Projections[Vehicle Type], $A12, Vehicle_Projections[Scenario], Input_Scenario_Modeled) -> 10.80535 | AD12: =SUMIFS(Vehicle_Projections[Vehicle Stock],Vehicle_Projections[Year],Calculations!AD$4, Vehicle_Projections[[ Technology Type]], $B12, Vehicle_Projections[Vehicle Type], $A12, Vehicle_Projections[Scenario], Input_Scenario_Modeled) -> 11.314354 | AE12: =SUMIFS(Vehicle_Projections[Vehicle Stock],Vehicle_Projections[Year],Calculations!AE$4, Vehicle_Projections[[ Technology Type]], $B12, Vehicle_Projections[Vehicle Type], $A12, Vehicle_Projections[Scenario], Input_Scenario_Modeled) -> 11.817442 | AF12: =SUMIFS(Vehicle_Projections[Vehicle Stock],Vehicle_Projections[Year],Calculations!AF$4, Vehicle_Projections[[ Technology Type]], $B12, Vehicle_Projections[Vehicle Type], $A12, Vehicle_Projections[Scenario], Input_Scenario_Modeled) -> 12.315123 | AG12: =SUMIFS(Vehicle_Projections[Vehicle Stock],Vehicle_Projections[Year],Calculations!AG$4, Vehicle_Projections[[ Technology Type]], $B12, Vehicle_Projections[Vehicle Type], $A12, Vehicle_Projections[Scenario], Input_Scenario_Modeled) -> 12.804375 | AH12: =SUMIFS(Vehicle_Projections[Vehicle Stock],Vehicle_Projections[Year],Calculations!AH$4, Vehicle_Projections[[ Technology Type]], $B12, Vehicle_Projections[Vehicle Type], $A12, Vehicle_Projections[Scenario], Input_Scenario_Modeled) -> 13.284403 | AI12: =SUMIFS(Vehicle_Projections[Vehicle Stock],Vehicle_Projections[Year],Calculations!AI$4, Vehicle_Projections[[ Technology Type]], $B12, Vehicle_Projections[Vehicle Type], $A12, Vehicle_Projections[Scenario], Input_Scenario_Modeled) -> 13.750421 | AJ12: =SUMIFS(Vehicle_Projections[Vehicle Stock],Vehicle_Projections[Year],Calculations!AJ$4, Vehicle_Projections[[ Technology Type]], $B12, Vehicle_Projections[Vehicle Type], $A12, Vehicle_Projections[Scenario], Input_Scenario_Modeled) -> 14.200466 | AK12: =SUMIFS(Vehicle_Projections[Vehicle Stock],Vehicle_Projections[Year],Calculations!AK$4, Vehicle_Projections[[ Technology Type]], $B12, Vehicle_Projections[Vehicle Type], $A12, Vehicle_Projections[Scenario], Input_Scenario_Modeled) -> 14.636414 | AL12: =SUMIFS(Vehicle_Projections[Vehicle Stock],Vehicle_Projections[Year],Calculations!AL$4, Vehicle_Projections[[ Technology Type]], $B12, Vehicle_Projections[Vehicle Type], $A12, Vehicle_Projections[Scenario], Input_Scenario_Modeled) -> 15.054511
A13: Passenger Cars | B13: Plug-in 10 Gasoline Hybrid | C13: Electricity | D13: Stock | E13: =SUMIFS(Vehicle_Projections[Vehicle Stock],Vehicle_Projections[Year],Calculations!E$4, Vehicle_Projections[[ Technology Type]], $B13, Vehicle_Projections[Vehicle Type], $A13, Vehicle_Projections[Scenario], Input_Scenario_Modeled) -> 0.166916 | F13: =SUMIFS(Vehicle_Projections[Vehicle Stock],Vehicle_Projections[Year],Calculations!F$4, Vehicle_Projections[[ Technology Type]], $B13, Vehicle_Projections[Vehicle Type], $A13, Vehicle_Projections[Scenario], Input_Scenario_Modeled) -> 0.194989 | G13: =SUMIFS(Vehicle_Projections[Vehicle Stock],Vehicle_Projections[Year],Calculations!G$4, Vehicle_Projections[[ Technology Type]], $B13, Vehicle_Projections[Vehicle Type], $A13, Vehicle_Projections[Scenario], Input_Scenario_Modeled) -> 0.225908 | H13: =SUMIFS(Vehicle_Projections[Vehicle Stock],Vehicle_Projections[Year],Calculations!H$4, Vehicle_Projections[[ Technology Type]], $B13, Vehicle_Projections[Vehicle Type], $A13, Vehicle_Projections[Scenario], Input_Scenario_Modeled) -> 0.261096 | I13: =SUMIFS(Vehicle_Projections[Vehicle Stock],Vehicle_Projections[Year],Calculations!I$4, Vehicle_Projections[[ Technology Type]], $B13, Vehicle_Projections[Vehicle Type], $A13, Vehicle_Projections[Scenario], Input_Scenario_Modeled) -> 0.311727 | J13: =SUMIFS(Vehicle_Projections[Vehicle Stock],Vehicle_Projections[Year],Calculations!J$4, Vehicle_Projections[[ Technology Type]], $B13, Vehicle_Projections[Vehicle Type], $A13, Vehicle_Projections[Scenario], Input_Scenario_Modeled) -> 0.370292 | K13: =SUMIFS(Vehicle_Projections[Vehicle Stock],Vehicle_Projections[Year],Calculations!K$4, Vehicle_Projections[[ Technology Type]], $B13, Vehicle_Projections[Vehicle Type], $A13, Vehicle_Projections[Scenario], Input_Scenario_Modeled) -> 0.432608 | L13: =SUMIFS(Vehicle_Projections[Vehicle Stock],Vehicle_Projections[Year],Calculations!L$4, Vehicle_Projections[[ Technology Type]], $B13, Vehicle_Projections[Vehicle Type], $A13, Vehicle_Projections[Scenario], Input_Scenario_Modeled) -> 0.498413 | M13: =SUMIFS(Vehicle_Projections[Vehicle Stock],Vehicle_Projections[Year],Calculations!M$4, Vehicle_Projections[[ Technology Type]], $B13, Vehicle_Projections[Vehicle Type], $A13, Vehicle_Projections[Scenario], Input_Scenario_Modeled) -> 0.568857 | N13: =SUMIFS(Vehicle_Projections[Vehicle Stock],Vehicle_Projections[Year],Calculations!N$4, Vehicle_Projections[[ Technology Type]], $B13, Vehicle_Projections[Vehicle Type], $A13, Vehicle_Projections[Scenario], Input_Scenario_Modeled) -> 0.63855 | O13: =SUMIFS(Vehicle_Projections[Vehicle Stock],Vehicle_Projections[Year],Calculations!O$4, Vehicle_Projections[[ Technology Type]], $B13, Vehicle_Projections[Vehicle Type], $A13, Vehicle_Projections[Scenario], Input_Scenario_Modeled) -> 0.707152 | P13: =SUMIFS(Vehicle_Projections[Vehicle Stock],Vehicle_Projections[Year],Calculations!P$4, Vehicle_Projections[[ Technology Type]], $B13, Vehicle_Projections[Vehicle Type], $A13, Vehicle_Projections[Scenario], Input_Scenario_Modeled) -> 0.773436 | Q13: =SUMIFS(Vehicle_Projections[Vehicle Stock],Vehicle_Projections[Year],Calculations!Q$4, Vehicle_Projections[[ Technology Type]], $B13, Vehicle_Projections[Vehicle Type], $A13, Vehicle_Projections[Scenario], Input_Scenario_Modeled) -> 0.836693 | R13: =SUMIFS(Vehicle_Projections[Vehicle Stock],Vehicle_Projections[Year],Calculations!R$4, Vehicle_Projections[[ Technology Type]], $B13, Vehicle_Projections[Vehicle Type], $A13, Vehicle_Projections[Scenario], Input_Scenario_Modeled) -> 0.896938 | S13: =SUMIFS(Vehicle_Projections[Vehicle Stock],Vehicle_Projections[Year],Calculations!S$4, Vehicle_Projections[[ Technology Type]], $B13, Vehicle_Projections[Vehicle Type], $A13, Vehicle_Projections[Scenario], Input_Scenario_Modeled) -> 0.954492 | T13: =SUMIFS(Vehicle_Projections[Vehicle Stock],Vehicle_Projections[Year],Calculations!T$4, Vehicle_Projections[[ Technology Type]], $B13, Vehicle_Projections[Vehicle Type], $A13, Vehicle_Projections[Scenario], Input_Scenario_Modeled) -> 1.009833 | U13: =SUMIFS(Vehicle_Projections[Vehicle Stock],Vehicle_Projections[Year],Calculations!U$4, Vehicle_Projections[[ Technology Type]], $B13, Vehicle_Projections[Vehicle Type], $A13, Vehicle_Projections[Scenario], Input_Scenario_Modeled) -> 1.062623 | V13: =SUMIFS(Vehicle_Projections[Vehicle Stock],Vehicle_Projections[Year],Calculations!V$4, Vehicle_Projections[[ Technology Type]], $B13, Vehicle_Projections[Vehicle Type], $A13, Vehicle_Projections[Scenario], Input_Scenario_Modeled) -> 1.113106 | W13: =SUMIFS(Vehicle_Projections[Vehicle Stock],Vehicle_Projections[Year],Calculations!W$4, Vehicle_Projections[[ Technology Type]], $B13, Vehicle_Projections[Vehicle Type], $A13, Vehicle_Projections[Scenario], Input_Scenario_Modeled) -> 1.160533 | X13: =SUMIFS(Vehicle_Projections[Vehicle Stock],Vehicle_Projections[Year],Calculations!X$4, Vehicle_Projections[[ Technology Type]], $B13, Vehicle_Projections[Vehicle Type], $A13, Vehicle_Projections[Scenario], Input_Scenario_Modeled) -> 1.205132 | Y13: =SUMIFS(Vehicle_Projections[Vehicle Stock],Vehicle_Projections[Year],Calculations!Y$4, Vehicle_Projections[[ Technology Type]], $B13, Vehicle_Projections[Vehicle Type], $A13, Vehicle_Projections[Scenario], Input_Scenario_Modeled) -> 1.246999 | Z13: =SUMIFS(Vehicle_Projections[Vehicle Stock],Vehicle_Projections[Year],Calculations!Z$4, Vehicle_Projections[[ Technology Type]], $B13, Vehicle_Projections[Vehicle Type], $A13, Vehicle_Projections[Scenario], Input_Scenario_Modeled) -> 1.284144 | AA13: =SUMIFS(Vehicle_Projections[Vehicle Stock],Vehicle_Projections[Year],Calculations!AA$4, Vehicle_Projections[[ Technology Type]], $B13, Vehicle_Projections[Vehicle Type], $A13, Vehicle_Projections[Scenario], Input_Scenario_Modeled) -> 1.318235 | AB13: =SUMIFS(Vehicle_Projections[Vehicle Stock],Vehicle_Projections[Year],Calculations!AB$4, Vehicle_Projections[[ Technology Type]], $B13, Vehicle_Projections[Vehicle Type], $A13, Vehicle_Projections[Scenario], Input_Scenario_Modeled) -> 1.349379 | AC13: =SUMIFS(Vehicle_Projections[Vehicle Stock],Vehicle_Projections[Year],Calculations!AC$4, Vehicle_Projections[[ Technology Type]], $B13, Vehicle_Projections[Vehicle Type], $A13, Vehicle_Projections[Scenario], Input_Scenario_Modeled) -> 1.377192 | AD13: =SUMIFS(Vehicle_Projections[Vehicle Stock],Vehicle_Projections[Year],Calculations!AD$4, Vehicle_Projections[[ Technology Type]], $B13, Vehicle_Projections[Vehicle Type], $A13, Vehicle_Projections[Scenario], Input_Scenario_Modeled) -> 1.401889 | AE13: =SUMIFS(Vehicle_Projections[Vehicle Stock],Vehicle_Projections[Year],Calculations!AE$4, Vehicle_Projections[[ Technology Type]], $B13, Vehicle_Projections[Vehicle Type], $A13, Vehicle_Projections[Scenario], Input_Scenario_Modeled) -> 1.423813 | AF13: =SUMIFS(Vehicle_Projections[Vehicle Stock],Vehicle_Projections[Year],Calculations!AF$4, Vehicle_Projections[[ Technology Type]], $B13, Vehicle_Projections[Vehicle Type], $A13, Vehicle_Projections[Scenario], Input_Scenario_Modeled) -> 1.443546 | AG13: =SUMIFS(Vehicle_Projections[Vehicle Stock],Vehicle_Projections[Year],Calculations!AG$4, Vehicle_Projections[[ Technology Type]], $B13, Vehicle_Projections[Vehicle Type], $A13, Vehicle_Projections[Scenario], Input_Scenario_Modeled) -> 1.46105 | AH13: =SUMIFS(Vehicle_Projections[Vehicle Stock],Vehicle_Projections[Year],Calculations!AH$4, Vehicle_Projections[[ Technology Type]], $B13, Vehicle_Projections[Vehicle Type], $A13, Vehicle_Projections[Scenario], Input_Scenario_Modeled) -> 1.476283 | AI13: =SUMIFS(Vehicle_Projections[Vehicle Stock],Vehicle_Projections[Year],Calculations!AI$4, Vehicle_Projections[[ Technology Type]], $B13, Vehicle_Projections[Vehicle Type], $A13, Vehicle_Projections[Scenario], Input_Scenario_Modeled) -> 1.489851 | AJ13: =SUMIFS(Vehicle_Projections[Vehicle Stock],Vehicle_Projections[Year],Calculations!AJ$4, Vehicle_Projections[[ Technology Type]], $B13, Vehicle_Projections[Vehicle Type], $A13, Vehicle_Projections[Scenario], Input_Scenario_Modeled) -> 1.502311 | AK13: =SUMIFS(Vehicle_Projections[Vehicle Stock],Vehicle_Projections[Year],Calculations!AK$4, Vehicle_Projections[[ Technology Type]], $B13, Vehicle_Projections[Vehicle Type], $A13, Vehicle_Projections[Scenario], Input_Scenario_Modeled) -> 1.513587 | AL13: =SUMIFS(Vehicle_Projections[Vehicle Stock],Vehicle_Projections[Year],Calculations!AL$4, Vehicle_Projections[[ Technology Type]], $B13, Vehicle_Projections[Vehicle Type], $A13, Vehicle_Projections[Scenario], Input_Scenario_Modeled) -> 1.524038
A14: Passenger Cars | B14: Plug-in 40 Gasoline Hybrid | C14: Electricity | D14: Stock | E14: =SUMIFS(Vehicle_Projections[Vehicle Stock],Vehicle_Projections[Year],Calculations!E$4, Vehicle_Projections[[ Technology Type]], $B14, Vehicle_Projections[Vehicle Type], $A14, Vehicle_Projections[Scenario], Input_Scenario_Modeled) -> 0.157999 | F14: =SUMIFS(Vehicle_Projections[Vehicle Stock],Vehicle_Projections[Year],Calculations!F$4, Vehicle_Projections[[ Technology Type]], $B14, Vehicle_Projections[Vehicle Type], $A14, Vehicle_Projections[Scenario], Input_Scenario_Modeled) -> 0.264722 | G14: =SUMIFS(Vehicle_Projections[Vehicle Stock],Vehicle_Projections[Year],Calculations!G$4, Vehicle_Projections[[ Technology Type]], $B14, Vehicle_Projections[Vehicle Type], $A14, Vehicle_Projections[Scenario], Input_Scenario_Modeled) -> 0.376923 | H14: =SUMIFS(Vehicle_Projections[Vehicle Stock],Vehicle_Projections[Year],Calculations!H$4, Vehicle_Projections[[ Technology Type]], $B14, Vehicle_Projections[Vehicle Type], $A14, Vehicle_Projections[Scenario], Input_Scenario_Modeled) -> 0.493695 | I14: =SUMIFS(Vehicle_Projections[Vehicle Stock],Vehicle_Projections[Year],Calculations!I$4, Vehicle_Projections[[ Technology Type]], $B14, Vehicle_Projections[Vehicle Type], $A14, Vehicle_Projections[Scenario], Input_Scenario_Modeled) -> 0.601855 | J14: =SUMIFS(Vehicle_Projections[Vehicle Stock],Vehicle_Projections[Year],Calculations!J$4, Vehicle_Projections[[ Technology Type]], $B14, Vehicle_Projections[Vehicle Type], $A14, Vehicle_Projections[Scenario], Input_Scenario_Modeled) -> 0.699711 | K14: =SUMIFS(Vehicle_Projections[Vehicle Stock],Vehicle_Projections[Year],Calculations!K$4, Vehicle_Projections[[ Technology Type]], $B14, Vehicle_Projections[Vehicle Type], $A14, Vehicle_Projections[Scenario], Input_Scenario_Modeled) -> 0.792376 | L14: =SUMIFS(Vehicle_Projections[Vehicle Stock],Vehicle_Projections[Year],Calculations!L$4, Vehicle_Projections[[ Technology Type]], $B14, Vehicle_Projections[Vehicle Type], $A14, Vehicle_Projections[Scenario], Input_Scenario_Modeled) -> 0.88319 | M14: =SUMIFS(Vehicle_Projections[Vehicle Stock],Vehicle_Projections[Year],Calculations!M$4, Vehicle_Projections[[ Technology Type]], $B14, Vehicle_Projections[Vehicle Type], $A14, Vehicle_Projections[Scenario], Input_Scenario_Modeled) -> 0.969069 | N14: =SUMIFS(Vehicle_Projections[Vehicle Stock],Vehicle_Projections[Year],Calculations!N$4, Vehicle_Projections[[ Technology Type]], $B14, Vehicle_Projections[Vehicle Type], $A14, Vehicle_Projections[Scenario], Input_Scenario_Modeled) -> 1.054026 | O14: =SUMIFS(Vehicle_Projections[Vehicle Stock],Vehicle_Projections[Year],Calculations!O$4, Vehicle_Projections[[ Technology Type]], $B14, Vehicle_Projections[Vehicle Type], $A14, Vehicle_Projections[Scenario], Input_Scenario_Modeled) -> 1.140216 | P14: =SUMIFS(Vehicle_Projections[Vehicle Stock],Vehicle_Projections[Year],Calculations!P$4, Vehicle_Projections[[ Technology Type]], $B14, Vehicle_Projections[Vehicle Type], $A14, Vehicle_Projections[Scenario], Input_Scenario_Modeled) -> 1.227819 | Q14: =SUMIFS(Vehicle_Projections[Vehicle Stock],Vehicle_Projections[Year],Calculations!Q$4, Vehicle_Projections[[ Technology Type]], $B14, Vehicle_Projections[Vehicle Type], $A14, Vehicle_Projections[Scenario], Input_Scenario_Modeled) -> 1.322794 | R14: =SUMIFS(Vehicle_Projections[Vehicle Stock],Vehicle_Projections[Year],Calculations!R$4, Vehicle_Projections[[ Technology Type]], $B14, Vehicle_Projections[Vehicle Type], $A14, Vehicle_Projections[Scenario], Input_Scenario_Modeled) -> 1.419631 | S14: =SUMIFS(Vehicle_Projections[Vehicle Stock],Vehicle_Projections[Year],Calculations!S$4, Vehicle_Projections[[ Technology Type]], $B14, Vehicle_Projections[Vehicle Type], $A14, Vehicle_Projections[Scenario], Input_Scenario_Modeled) -> 1.517574 | T14: =SUMIFS(Vehicle_Projections[Vehicle Stock],Vehicle_Projections[Year],Calculations!T$4, Vehicle_Projections[[ Technology Type]], $B14, Vehicle_Projections[Vehicle Type], $A14, Vehicle_Projections[Scenario], Input_Scenario_Modeled) -> 1.615744 | U14: =SUMIFS(Vehicle_Projections[Vehicle Stock],Vehicle_Projections[Year],Calculations!U$4, Vehicle_Projections[[ Technology Type]], $B14, Vehicle_Projections[Vehicle Type], $A14, Vehicle_Projections[Scenario], Input_Scenario_Modeled) -> 1.712074 | V14: =SUMIFS(Vehicle_Projections[Vehicle Stock],Vehicle_Projections[Year],Calculations!V$4, Vehicle_Projections[[ Technology Type]], $B14, Vehicle_Projections[Vehicle Type], $A14, Vehicle_Projections[Scenario], Input_Scenario_Modeled) -> 1.807249 | W14: =SUMIFS(Vehicle_Projections[Vehicle Stock],Vehicle_Projections[Year],Calculations!W$4, Vehicle_Projections[[ Technology Type]], $B14, Vehicle_Projections[Vehicle Type], $A14, Vehicle_Projections[Scenario], Input_Scenario_Modeled) -> 1.900304 | X14: =SUMIFS(Vehicle_Projections[Vehicle Stock],Vehicle_Projections[Year],Calculations!X$4, Vehicle_Projections[[ Technology Type]], $B14, Vehicle_Projections[Vehicle Type], $A14, Vehicle_Projections[Scenario], Input_Scenario_Modeled) -> 1.993035 | Y14: =SUMIFS(Vehicle_Projections[Vehicle Stock],Vehicle_Projections[Year],Calculations!Y$4, Vehicle_Projections[[ Technology Type]], $B14, Vehicle_Projections[Vehicle Type], $A14, Vehicle_Projections[Scenario], Input_Scenario_Modeled) -> 2.085741 | Z14: =SUMIFS(Vehicle_Projections[Vehicle Stock],Vehicle_Projections[Year],Calculations!Z$4, Vehicle_Projections[[ Technology Type]], $B14, Vehicle_Projections[Vehicle Type], $A14, Vehicle_Projections[Scenario], Input_Scenario_Modeled) -> 2.179276 | AA14: =SUMIFS(Vehicle_Projections[Vehicle Stock],Vehicle_Projections[Year],Calculations!AA$4, Vehicle_Projections[[ Technology Type]], $B14, Vehicle_Projections[Vehicle Type], $A14, Vehicle_Projections[Scenario], Input_Scenario_Modeled) -> 2.273645 | AB14: =SUMIFS(Vehicle_Projections[Vehicle Stock],Vehicle_Projections[Year],Calculations!AB$4, Vehicle_Projections[[ Technology Type]], $B14, Vehicle_Projections[Vehicle Type], $A14, Vehicle_Projections[Scenario], Input_Scenario_Modeled) -> 2.369363 | AC14: =SUMIFS(Vehicle_Projections[Vehicle Stock],Vehicle_Projections[Year],Calculations!AC$4, Vehicle_Projections[[ Technology Type]], $B14, Vehicle_Projections[Vehicle Type], $A14, Vehicle_Projections[Scenario], Input_Scenario_Modeled) -> 2.463845 | AD14: =SUMIFS(Vehicle_Projections[Vehicle Stock],Vehicle_Projections[Year],Calculations!AD$4, Vehicle_Projections[[ Technology Type]], $B14, Vehicle_Projections[Vehicle Type], $A14, Vehicle_Projections[Scenario], Input_Scenario_Modeled) -> 2.557444 | AE14: =SUMIFS(Vehicle_Projections[Vehicle Stock],Vehicle_Projections[Year],Calculations!AE$4, Vehicle_Projections[[ Technology Type]], $B14, Vehicle_Projections[Vehicle Type], $A14, Vehicle_Projections[Scenario], Input_Scenario_Modeled) -> 2.649464 | AF14: =SUMIFS(Vehicle_Projections[Vehicle Stock],Vehicle_Projections[Year],Calculations!AF$4, Vehicle_Projections[[ Technology Type]], $B14, Vehicle_Projections[Vehicle Type], $A14, Vehicle_Projections[Scenario], Input_Scenario_Modeled) -> 2.739549 | AG14: =SUMIFS(Vehicle_Projections[Vehicle Stock],Vehicle_Projections[Year],Calculations!AG$4, Vehicle_Projections[[ Technology Type]], $B14, Vehicle_Projections[Vehicle Type], $A14, Vehicle_Projections[Scenario], Input_Scenario_Modeled) -> 2.826879 | AH14: =SUMIFS(Vehicle_Projections[Vehicle Stock],Vehicle_Projections[Year],Calculations!AH$4, Vehicle_Projections[[ Technology Type]], $B14, Vehicle_Projections[Vehicle Type], $A14, Vehicle_Projections[Scenario], Input_Scenario_Modeled) -> 2.910505 | AI14: =SUMIFS(Vehicle_Projections[Vehicle Stock],Vehicle_Projections[Year],Calculations!AI$4, Vehicle_Projections[[ Technology Type]], $B14, Vehicle_Projections[Vehicle Type], $A14, Vehicle_Projections[Scenario], Input_Scenario_Modeled) -> 2.989496 | AJ14: =SUMIFS(Vehicle_Projections[Vehicle Stock],Vehicle_Projections[Year],Calculations!AJ$4, Vehicle_Projections[[ Technology Type]], $B14, Vehicle_Projections[Vehicle Type], $A14, Vehicle_Projections[Scenario], Input_Scenario_Modeled) -> 3.064125 | AK14: =SUMIFS(Vehicle_Projections[Vehicle Stock],Vehicle_Projections[Year],Calculations!AK$4, Vehicle_Projections[[ Technology Type]], $B14, Vehicle_Projections[Vehicle Type], $A14, Vehicle_Projections[Scenario], Input_Scenario_Modeled) -> 3.133706 | AL14: =SUMIFS(Vehicle_Projections[Vehicle Stock],Vehicle_Projections[Year],Calculations!AL$4, Vehicle_Projections[[ Technology Type]], $B14, Vehicle_Projections[Vehicle Type], $A14, Vehicle_Projections[Scenario], Input_Scenario_Modeled) -> 3.198083
A15: Light Trucks | B15: Gasoline ICE Vehicles | C15: Gasoline | D15: Stock | E15: =SUMIFS(Vehicle_Projections[Vehicle Stock],Vehicle_Projections[Year],Calculations!E$4, Vehicle_Projections[[ Technology Type]], $B15, Vehicle_Projections[Vehicle Type], $A15, Vehicle_Projections[Scenario], Input_Scenario_Modeled) -> 105.139511 | F15: =SUMIFS(Vehicle_Projections[Vehicle Stock],Vehicle_Projections[Year],Calculations!F$4, Vehicle_Projections[[ Technology Type]], $B15, Vehicle_Projections[Vehicle Type], $A15, Vehicle_Projections[Scenario], Input_Scenario_Modeled) -> 105.253494 | G15: =SUMIFS(Vehicle_Projections[Vehicle Stock],Vehicle_Projections[Year],Calculations!G$4, Vehicle_Projections[[ Technology Type]], $B15, Vehicle_Projections[Vehicle Type], $A15, Vehicle_Projections[Scenario], Input_Scenario_Modeled) -> 105.412773 | H15: =SUMIFS(Vehicle_Projections[Vehicle Stock],Vehicle_Projections[Year],Calculations!H$4, Vehicle_Projections[[ Technology Type]], $B15, Vehicle_Projections[Vehicle Type], $A15, Vehicle_Projections[Scenario], Input_Scenario_Modeled) -> 105.558807 | I15: =SUMIFS(Vehicle_Projections[Vehicle Stock],Vehicle_Projections[Year],Calculations!I$4, Vehicle_Projections[[ Technology Type]], $B15, Vehicle_Projections[Vehicle Type], $A15, Vehicle_Projections[Scenario], Input_Scenario_Modeled) -> 105.757477 | J15: =SUMIFS(Vehicle_Projections[Vehicle Stock],Vehicle_Projections[Year],Calculations!J$4, Vehicle_Projections[[ Technology Type]], $B15, Vehicle_Projections[Vehicle Type], $A15, Vehicle_Projections[Scenario], Input_Scenario_Modeled) -> 105.866913 | K15: =SUMIFS(Vehicle_Projections[Vehicle Stock],Vehicle_Projections[Year],Calculations!K$4, Vehicle_Projections[[ Technology Type]], $B15, Vehicle_Projections[Vehicle Type], $A15, Vehicle_Projections[Scenario], Input_Scenario_Modeled) -> 106.054359 | L15: =SUMIFS(Vehicle_Projections[Vehicle Stock],Vehicle_Projections[Year],Calculations!L$4, Vehicle_Projections[[ Technology Type]], $B15, Vehicle_Projections[Vehicle Type], $A15, Vehicle_Projections[Scenario], Input_Scenario_Modeled) -> 106.251083 | M15: =SUMIFS(Vehicle_Projections[Vehicle Stock],Vehicle_Projections[Year],Calculations!M$4, Vehicle_Projections[[ Technology Type]], $B15, Vehicle_Projections[Vehicle Type], $A15, Vehicle_Projections[Scenario], Input_Scenario_Modeled) -> 106.377174 | N15: =SUMIFS(Vehicle_Projections[Vehicle Stock],Vehicle_Projections[Year],Calculations!N$4, Vehicle_Projections[[ Technology Type]], $B15, Vehicle_Projections[Vehicle Type], $A15, Vehicle_Projections[Scenario], Input_Scenario_Modeled) -> 106.488991 | O15: =SUMIFS(Vehicle_Projections[Vehicle Stock],Vehicle_Projections[Year],Calculations!O$4, Vehicle_Projections[[ Technology Type]], $B15, Vehicle_Projections[Vehicle Type], $A15, Vehicle_Projections[Scenario], Input_Scenario_Modeled) -> 106.440292 | P15: =SUMIFS(Vehicle_Projections[Vehicle Stock],Vehicle_Projections[Year],Calculations!P$4, Vehicle_Projections[[ Technology Type]], $B15, Vehicle_Projections[Vehicle Type], $A15, Vehicle_Projections[Scenario], Input_Scenario_Modeled) -> 106.242165 | Q15: =SUMIFS(Vehicle_Projections[Vehicle Stock],Vehicle_Projections[Year],Calculations!Q$4, Vehicle_Projections[[ Technology Type]], $B15, Vehicle_Projections[Vehicle Type], $A15, Vehicle_Projections[Scenario], Input_Scenario_Modeled) -> 105.843925 | R15: =SUMIFS(Vehicle_Projections[Vehicle Stock],Vehicle_Projections[Year],Calculations!R$4, Vehicle_Projections[[ Technology Type]], $B15, Vehicle_Projections[Vehicle Type], $A15, Vehicle_Projections[Scenario], Input_Scenario_Modeled) -> 105.324333 | S15: =SUMIFS(Vehicle_Projections[Vehicle Stock],Vehicle_Projections[Year],Calculations!S$4, Vehicle_Projections[[ Technology Type]], $B15, Vehicle_Projections[Vehicle Type], $A15, Vehicle_Projections[Scenario], Input_Scenario_Modeled) -> 104.768936 | T15: =SUMIFS(Vehicle_Projections[Vehicle Stock],Vehicle_Projections[Year],Calculations!T$4, Vehicle_Projections[[ Technology Type]], $B15, Vehicle_Projections[Vehicle Type], $A15, Vehicle_Projections[Scenario], Input_Scenario_Modeled) -> 104.129883 | U15: =SUMIFS(Vehicle_Projections[Vehicle Stock],Vehicle_Projections[Year],Calculations!U$4, Vehicle_Projections[[ Technology Type]], $B15, Vehicle_Projections[Vehicle Type], $A15, Vehicle_Projections[Scenario], Input_Scenario_Modeled) -> 103.454353 | V15: =SUMIFS(Vehicle_Projections[Vehicle Stock],Vehicle_Projections[Year],Calculations!V$4, Vehicle_Projections[[ Technology Type]], $B15, Vehicle_Projections[Vehicle Type], $A15, Vehicle_Projections[Scenario], Input_Scenario_Modeled) -> 102.716255 | W15: =SUMIFS(Vehicle_Projections[Vehicle Stock],Vehicle_Projections[Year],Calculations!W$4, Vehicle_Projections[[ Technology Type]], $B15, Vehicle_Projections[Vehicle Type], $A15, Vehicle_Projections[Scenario], Input_Scenario_Modeled) -> 101.894173 | X15: =SUMIFS(Vehicle_Projections[Vehicle Stock],Vehicle_Projections[Year],Calculations!X$4, Vehicle_Projections[[ Technology Type]], $B15, Vehicle_Projections[Vehicle Type], $A15, Vehicle_Projections[Scenario], Input_Scenario_Modeled) -> 100.996574 | Y15: =SUMIFS(Vehicle_Projections[Vehicle Stock],Vehicle_Projections[Year],Calculations!Y$4, Vehicle_Projections[[ Technology Type]], $B15, Vehicle_Projections[Vehicle Type], $A15, Vehicle_Projections[Scenario], Input_Scenario_Modeled) -> 100.068527 | Z15: =SUMIFS(Vehicle_Projections[Vehicle Stock],Vehicle_Projections[Year],Calculations!Z$4, Vehicle_Projections[[ Technology Type]], $B15, Vehicle_Projections[Vehicle Type], $A15, Vehicle_Projections[Scenario], Input_Scenario_Modeled) -> 99.134407 | AA15: =SUMIFS(Vehicle_Projections[Vehicle Stock],Vehicle_Projections[Year],Calculations!AA$4, Vehicle_Projections[[ Technology Type]], $B15, Vehicle_Projections[Vehicle Type], $A15, Vehicle_Projections[Scenario], Input_Scenario_Modeled) -> 98.203331 | AB15: =SUMIFS(Vehicle_Projections[Vehicle Stock],Vehicle_Projections[Year],Calculations!AB$4, Vehicle_Projections[[ Technology Type]], $B15, Vehicle_Projections[Vehicle Type], $A15, Vehicle_Projections[Scenario], Input_Scenario_Modeled) -> 97.292336 | AC15: =SUMIFS(Vehicle_Projections[Vehicle Stock],Vehicle_Projections[Year],Calculations!AC$4, Vehicle_Projections[[ Technology Type]], $B15, Vehicle_Projections[Vehicle Type], $A15, Vehicle_Projections[Scenario], Input_Scenario_Modeled) -> 96.440727 | AD15: =SUMIFS(Vehicle_Projections[Vehicle Stock],Vehicle_Projections[Year],Calculations!AD$4, Vehicle_Projections[[ Technology Type]], $B15, Vehicle_Projections[Vehicle Type], $A15, Vehicle_Projections[Scenario], Input_Scenario_Modeled) -> 95.633842 | AE15: =SUMIFS(Vehicle_Projections[Vehicle Stock],Vehicle_Projections[Year],Calculations!AE$4, Vehicle_Projections[[ Technology Type]], $B15, Vehicle_Projections[Vehicle Type], $A15, Vehicle_Projections[Scenario], Input_Scenario_Modeled) -> 94.880959 | AF15: =SUMIFS(Vehicle_Projections[Vehicle Stock],Vehicle_Projections[Year],Calculations!AF$4, Vehicle_Projections[[ Technology Type]], $B15, Vehicle_Projections[Vehicle Type], $A15, Vehicle_Projections[Scenario], Input_Scenario_Modeled) -> 94.20182 | AG15: =SUMIFS(Vehicle_Projections[Vehicle Stock],Vehicle_Projections[Year],Calculations!AG$4, Vehicle_Projections[[ Technology Type]], $B15, Vehicle_Projections[Vehicle Type], $A15, Vehicle_Projections[Scenario], Input_Scenario_Modeled) -> 93.576584 | AH15: =SUMIFS(Vehicle_Projections[Vehicle Stock],Vehicle_Projections[Year],Calculations!AH$4, Vehicle_Projections[[ Technology Type]], $B15, Vehicle_Projections[Vehicle Type], $A15, Vehicle_Projections[Scenario], Input_Scenario_Modeled) -> 93.036606 | AI15: =SUMIFS(Vehicle_Projections[Vehicle Stock],Vehicle_Projections[Year],Calculations!AI$4, Vehicle_Projections[[ Technology Type]], $B15, Vehicle_Projections[Vehicle Type], $A15, Vehicle_Projections[Scenario], Input_Scenario_Modeled) -> 92.53817 | AJ15: =SUMIFS(Vehicle_Projections[Vehicle Stock],Vehicle_Projections[Year],Calculations!AJ$4, Vehicle_Projections[[ Technology Type]], $B15, Vehicle_Projections[Vehicle Type], $A15, Vehicle_Projections[Scenario], Input_Scenario_Modeled) -> 92.052879 | AK15: =SUMIFS(Vehicle_Projections[Vehicle Stock],Vehicle_Projections[Year],Calculations!AK$4, Vehicle_Projections[[ Technology Type]], $B15, Vehicle_Projections[Vehicle Type], $A15, Vehicle_Projections[Scenario], Input_Scenario_Modeled) -> 91.603561 | AL15: =SUMIFS(Vehicle_Projections[Vehicle Stock],Vehicle_Projections[Year],Calculations!AL$4, Vehicle_Projections[[ Technology Type]], $B15, Vehicle_Projections[Vehicle Type], $A15, Vehicle_Projections[Scenario], Input_Scenario_Modeled) -> 91.180695
A16: Light Trucks | B16: Ethanol-Flex Fuel ICE | C16: Gasoline | D16: Stock | E16: =SUMIFS(Vehicle_Projections[Vehicle Stock],Vehicle_Projections[Year],Calculations!E$4, Vehicle_Projections[[ Technology Type]], $B16, Vehicle_Projections[Vehicle Type], $A16, Vehicle_Projections[Scenario], Input_Scenario_Modeled) -> 0 | F16: =SUMIFS(Vehicle_Projections[Vehicle Stock],Vehicle_Projections[Year],Calculations!F$4, Vehicle_Projections[[ Technology Type]], $B16, Vehicle_Projections[Vehicle Type], $A16, Vehicle_Projections[Scenario], Input_Scenario_Modeled) -> 0 | G16: =SUMIFS(Vehicle_Projections[Vehicle Stock],Vehicle_Projections[Year],Calculations!G$4, Vehicle_Projections[[ Technology Type]], $B16, Vehicle_Projections[Vehicle Type], $A16, Vehicle_Projections[Scenario], Input_Scenario_Modeled) -> 0 | H16: =SUMIFS(Vehicle_Projections[Vehicle Stock],Vehicle_Projections[Year],Calculations!H$4, Vehicle_Projections[[ Technology Type]], $B16, Vehicle_Projections[Vehicle Type], $A16, Vehicle_Projections[Scenario], Input_Scenario_Modeled) -> 0 | I16: =SUMIFS(Vehicle_Projections[Vehicle Stock],Vehicle_Projections[Year],Calculations!I$4, Vehicle_Projections[[ Technology Type]], $B16, Vehicle_Projections[Vehicle Type], $A16, Vehicle_Projections[Scenario], Input_Scenario_Modeled) -> 0 | J16: =SUMIFS(Vehicle_Projections[Vehicle Stock],Vehicle_Projections[Year],Calculations!J$4, Vehicle_Projections[[ Technology Type]], $B16, Vehicle_Projections[Vehicle Type], $A16, Vehicle_Projections[Scenario], Input_Scenario_Modeled) -> 0 | K16: =SUMIFS(Vehicle_Projections[Vehicle Stock],Vehicle_Projections[Year],Calculations!K$4, Vehicle_Projections[[ Technology Type]], $B16, Vehicle_Projections[Vehicle Type], $A16, Vehicle_Projections[Scenario], Input_Scenario_Modeled) -> 0 | L16: =SUMIFS(Vehicle_Projections[Vehicle Stock],Vehicle_Projections[Year],Calculations!L$4, Vehicle_Projections[[ Technology Type]], $B16, Vehicle_Projections[Vehicle Type], $A16, Vehicle_Projections[Scenario], Input_Scenario_Modeled) -> 0 | M16: =SUMIFS(Vehicle_Projections[Vehicle Stock],Vehicle_Projections[Year],Calculations!M$4, Vehicle_Projections[[ Technology Type]], $B16, Vehicle_Projections[Vehicle Type], $A16, Vehicle_Projections[Scenario], Input_Scenario_Modeled) -> 0 | N16: =SUMIFS(Vehicle_Projections[Vehicle Stock],Vehicle_Projections[Year],Calculations!N$4, Vehicle_Projections[[ Technology Type]], $B16, Vehicle_Projections[Vehicle Type], $A16, Vehicle_Projections[Scenario], Input_Scenario_Modeled) -> 0 | O16: =SUMIFS(Vehicle_Projections[Vehicle Stock],Vehicle_Projections[Year],Calculations!O$4, Vehicle_Projections[[ Technology Type]], $B16, Vehicle_Projections[Vehicle Type], $A16, Vehicle_Projections[Scenario], Input_Scenario_Modeled) -> 0 | P16: =SUMIFS(Vehicle_Projections[Vehicle Stock],Vehicle_Projections[Year],Calculations!P$4, Vehicle_Projections[[ Technology Type]], $B16, Vehicle_Projections[Vehicle Type], $A16, Vehicle_Projections[Scenario], Input_Scenario_Modeled) -> 0 | Q16: =SUMIFS(Vehicle_Projections[Vehicle Stock],Vehicle_Projections[Year],Calculations!Q$4, Vehicle_Projections[[ Technology Type]], $B16, Vehicle_Projections[Vehicle Type], $A16, Vehicle_Projections[Scenario], Input_Scenario_Modeled) -> 0 | R16: =SUMIFS(Vehicle_Projections[Vehicle Stock],Vehicle_Projections[Year],Calculations!R$4, Vehicle_Projections[[ Technology Type]], $B16, Vehicle_Projections[Vehicle Type], $A16, Vehicle_Projections[Scenario], Input_Scenario_Modeled) -> 0 | S16: =SUMIFS(Vehicle_Projections[Vehicle Stock],Vehicle_Projections[Year],Calculations!S$4, Vehicle_Projections[[ Technology Type]], $B16, Vehicle_Projections[Vehicle Type], $A16, Vehicle_Projections[Scenario], Input_Scenario_Modeled) -> 0 | T16: =SUMIFS(Vehicle_Projections[Vehicle Stock],Vehicle_Projections[Year],Calculations!T$4, Vehicle_Projections[[ Technology Type]], $B16, Vehicle_Projections[Vehicle Type], $A16, Vehicle_Projections[Scenario], Input_Scenario_Modeled) -> 0 | U16: =SUMIFS(Vehicle_Projections[Vehicle Stock],Vehicle_Projections[Year],Calculations!U$4, Vehicle_Projections[[ Technology Type]], $B16, Vehicle_Projections[Vehicle Type], $A16, Vehicle_Projections[Scenario], Input_Scenario_Modeled) -> 0 | V16: =SUMIFS(Vehicle_Projections[Vehicle Stock],Vehicle_Projections[Year],Calculations!V$4, Vehicle_Projections[[ Technology Type]], $B16, Vehicle_Projections[Vehicle Type], $A16, Vehicle_Projections[Scenario], Input_Scenario_Modeled) -> 0 | W16: =SUMIFS(Vehicle_Projections[Vehicle Stock],Vehicle_Projections[Year],Calculations!W$4, Vehicle_Projections[[ Technology Type]], $B16, Vehicle_Projections[Vehicle Type], $A16, Vehicle_Projections[Scenario], Input_Scenario_Modeled) -> 0 | X16: =SUMIFS(Vehicle_Projections[Vehicle Stock],Vehicle_Projections[Year],Calculations!X$4, Vehicle_Projections[[ Technology Type]], $B16, Vehicle_Projections[Vehicle Type], $A16, Vehicle_Projections[Scenario], Input_Scenario_Modeled) -> 0 | Y16: =SUMIFS(Vehicle_Projections[Vehicle Stock],Vehicle_Projections[Year],Calculations!Y$4, Vehicle_Projections[[ Technology Type]], $B16, Vehicle_Projections[Vehicle Type], $A16, Vehicle_Projections[Scenario], Input_Scenario_Modeled) -> 0 | Z16: =SUMIFS(Vehicle_Projections[Vehicle Stock],Vehicle_Projections[Year],Calculations!Z$4, Vehicle_Projections[[ Technology Type]], $B16, Vehicle_Projections[Vehicle Type], $A16, Vehicle_Projections[Scenario], Input_Scenario_Modeled) -> 0 | AA16: =SUMIFS(Vehicle_Projections[Vehicle Stock],Vehicle_Projections[Year],Calculations!AA$4, Vehicle_Projections[[ Technology Type]], $B16, Vehicle_Projections[Vehicle Type], $A16, Vehicle_Projections[Scenario], Input_Scenario_Modeled) -> 0 | AB16: =SUMIFS(Vehicle_Projections[Vehicle Stock],Vehicle_Projections[Year],Calculations!AB$4, Vehicle_Projections[[ Technology Type]], $B16, Vehicle_Projections[Vehicle Type], $A16, Vehicle_Projections[Scenario], Input_Scenario_Modeled) -> 0 | AC16: =SUMIFS(Vehicle_Projections[Vehicle Stock],Vehicle_Projections[Year],Calculations!AC$4, Vehicle_Projections[[ Technology Type]], $B16, Vehicle_Projections[Vehicle Type], $A16, Vehicle_Projections[Scenario], Input_Scenario_Modeled) -> 0 | AD16: =SUMIFS(Vehicle_Projections[Vehicle Stock],Vehicle_Projections[Year],Calculations!AD$4, Vehicle_Projections[[ Technology Type]], $B16, Vehicle_Projections[Vehicle Type], $A16, Vehicle_Projections[Scenario], Input_Scenario_Modeled) -> 0 | AE16: =SUMIFS(Vehicle_Projections[Vehicle Stock],Vehicle_Projections[Year],Calculations!AE$4, Vehicle_Projections[[ Technology Type]], $B16, Vehicle_Projections[Vehicle Type], $A16, Vehicle_Projections[Scenario], Input_Scenario_Modeled) -> 0 | AF16: =SUMIFS(Vehicle_Projections[Vehicle Stock],Vehicle_Projections[Year],Calculations!AF$4, Vehicle_Projections[[ Technology Type]], $B16, Vehicle_Projections[Vehicle Type], $A16, Vehicle_Projections[Scenario], Input_Scenario_Modeled) -> 0 | AG16: =SUMIFS(Vehicle_Projections[Vehicle Stock],Vehicle_Projections[Year],Calculations!AG$4, Vehicle_Projections[[ Technology Type]], $B16, Vehicle_Projections[Vehicle Type], $A16, Vehicle_Projections[Scenario], Input_Scenario_Modeled) -> 0 | AH16: =SUMIFS(Vehicle_Projections[Vehicle Stock],Vehicle_Projections[Year],Calculations!AH$4, Vehicle_Projections[[ Technology Type]], $B16, Vehicle_Projections[Vehicle Type], $A16, Vehicle_Projections[Scenario], Input_Scenario_Modeled) -> 0 | AI16: =SUMIFS(Vehicle_Projections[Vehicle Stock],Vehicle_Projections[Year],Calculations!AI$4, Vehicle_Projections[[ Technology Type]], $B16, Vehicle_Projections[Vehicle Type], $A16, Vehicle_Projections[Scenario], Input_Scenario_Modeled) -> 0 | AJ16: =SUMIFS(Vehicle_Projections[Vehicle Stock],Vehicle_Projections[Year],Calculations!AJ$4, Vehicle_Projections[[ Technology Type]], $B16, Vehicle_Projections[Vehicle Type], $A16, Vehicle_Projections[Scenario], Input_Scenario_Modeled) -> 0 | AK16: =SUMIFS(Vehicle_Projections[Vehicle Stock],Vehicle_Projections[Year],Calculations!AK$4, Vehicle_Projections[[ Technology Type]], $B16, Vehicle_Projections[Vehicle Type], $A16, Vehicle_Projections[Scenario], Input_Scenario_Modeled) -> 0 | AL16: =SUMIFS(Vehicle_Projections[Vehicle Stock],Vehicle_Projections[Year],Calculations!AL$4, Vehicle_Projections[[ Technology Type]], $B16, Vehicle_Projections[Vehicle Type], $A16, Vehicle_Projections[Scenario], Input_Scenario_Modeled) -> 0
A17: Light Trucks | B17: Electric-Gasoline Hybrid | C17: Gasoline | D17: Stock | E17: =SUMIFS(Vehicle_Projections[Vehicle Stock],Vehicle_Projections[Year],Calculations!E$4, Vehicle_Projections[[ Technology Type]], $B17, Vehicle_Projections[Vehicle Type], $A17, Vehicle_Projections[Scenario], Input_Scenario_Modeled) -> 0.506487 | F17: =SUMIFS(Vehicle_Projections[Vehicle Stock],Vehicle_Projections[Year],Calculations!F$4, Vehicle_Projections[[ Technology Type]], $B17, Vehicle_Projections[Vehicle Type], $A17, Vehicle_Projections[Scenario], Input_Scenario_Modeled) -> 0.539762 | G17: =SUMIFS(Vehicle_Projections[Vehicle Stock],Vehicle_Projections[Year],Calculations!G$4, Vehicle_Projections[[ Technology Type]], $B17, Vehicle_Projections[Vehicle Type], $A17, Vehicle_Projections[Scenario], Input_Scenario_Modeled) -> 0.572327 | H17: =SUMIFS(Vehicle_Projections[Vehicle Stock],Vehicle_Projections[Year],Calculations!H$4, Vehicle_Projections[[ Technology Type]], $B17, Vehicle_Projections[Vehicle Type], $A17, Vehicle_Projections[Scenario], Input_Scenario_Modeled) -> 0.606526 | I17: =SUMIFS(Vehicle_Projections[Vehicle Stock],Vehicle_Projections[Year],Calculations!I$4, Vehicle_Projections[[ Technology Type]], $B17, Vehicle_Projections[Vehicle Type], $A17, Vehicle_Projections[Scenario], Input_Scenario_Modeled) -> 0.640358 | J17: =SUMIFS(Vehicle_Projections[Vehicle Stock],Vehicle_Projections[Year],Calculations!J$4, Vehicle_Projections[[ Technology Type]], $B17, Vehicle_Projections[Vehicle Type], $A17, Vehicle_Projections[Scenario], Input_Scenario_Modeled) -> 0.674769 | K17: =SUMIFS(Vehicle_Projections[Vehicle Stock],Vehicle_Projections[Year],Calculations!K$4, Vehicle_Projections[[ Technology Type]], $B17, Vehicle_Projections[Vehicle Type], $A17, Vehicle_Projections[Scenario], Input_Scenario_Modeled) -> 0.712139 | L17: =SUMIFS(Vehicle_Projections[Vehicle Stock],Vehicle_Projections[Year],Calculations!L$4, Vehicle_Projections[[ Technology Type]], $B17, Vehicle_Projections[Vehicle Type], $A17, Vehicle_Projections[Scenario], Input_Scenario_Modeled) -> 0.752646 | M17: =SUMIFS(Vehicle_Projections[Vehicle Stock],Vehicle_Projections[Year],Calculations!M$4, Vehicle_Projections[[ Technology Type]], $B17, Vehicle_Projections[Vehicle Type], $A17, Vehicle_Projections[Scenario], Input_Scenario_Modeled) -> 0.792561 | N17: =SUMIFS(Vehicle_Projections[Vehicle Stock],Vehicle_Projections[Year],Calculations!N$4, Vehicle_Projections[[ Technology Type]], $B17, Vehicle_Projections[Vehicle Type], $A17, Vehicle_Projections[Scenario], Input_Scenario_Modeled) -> 0.834705 | O17: =SUMIFS(Vehicle_Projections[Vehicle Stock],Vehicle_Projections[Year],Calculations!O$4, Vehicle_Projections[[ Technology Type]], $B17, Vehicle_Projections[Vehicle Type], $A17, Vehicle_Projections[Scenario], Input_Scenario_Modeled) -> 0.876724 | P17: =SUMIFS(Vehicle_Projections[Vehicle Stock],Vehicle_Projections[Year],Calculations!P$4, Vehicle_Projections[[ Technology Type]], $B17, Vehicle_Projections[Vehicle Type], $A17, Vehicle_Projections[Scenario], Input_Scenario_Modeled) -> 0.919064 | Q17: =SUMIFS(Vehicle_Projections[Vehicle Stock],Vehicle_Projections[Year],Calculations!Q$4, Vehicle_Projections[[ Technology Type]], $B17, Vehicle_Projections[Vehicle Type], $A17, Vehicle_Projections[Scenario], Input_Scenario_Modeled) -> 0.962289 | R17: =SUMIFS(Vehicle_Projections[Vehicle Stock],Vehicle_Projections[Year],Calculations!R$4, Vehicle_Projections[[ Technology Type]], $B17, Vehicle_Projections[Vehicle Type], $A17, Vehicle_Projections[Scenario], Input_Scenario_Modeled) -> 1.005662 | S17: =SUMIFS(Vehicle_Projections[Vehicle Stock],Vehicle_Projections[Year],Calculations!S$4, Vehicle_Projections[[ Technology Type]], $B17, Vehicle_Projections[Vehicle Type], $A17, Vehicle_Projections[Scenario], Input_Scenario_Modeled) -> 1.052056 | T17: =SUMIFS(Vehicle_Projections[Vehicle Stock],Vehicle_Projections[Year],Calculations!T$4, Vehicle_Projections[[ Technology Type]], $B17, Vehicle_Projections[Vehicle Type], $A17, Vehicle_Projections[Scenario], Input_Scenario_Modeled) -> 1.100582 | U17: =SUMIFS(Vehicle_Projections[Vehicle Stock],Vehicle_Projections[Year],Calculations!U$4, Vehicle_Projections[[ Technology Type]], $B17, Vehicle_Projections[Vehicle Type], $A17, Vehicle_Projections[Scenario], Input_Scenario_Modeled) -> 1.151416 | V17: =SUMIFS(Vehicle_Projections[Vehicle Stock],Vehicle_Projections[Year],Calculations!V$4, Vehicle_Projections[[ Technology Type]], $B17, Vehicle_Projections[Vehicle Type], $A17, Vehicle_Projections[Scenario], Input_Scenario_Modeled) -> 1.204037 | W17: =SUMIFS(Vehicle_Projections[Vehicle Stock],Vehicle_Projections[Year],Calculations!W$4, Vehicle_Projections[[ Technology Type]], $B17, Vehicle_Projections[Vehicle Type], $A17, Vehicle_Projections[Scenario], Input_Scenario_Modeled) -> 1.257612 | X17: =SUMIFS(Vehicle_Projections[Vehicle Stock],Vehicle_Projections[Year],Calculations!X$4, Vehicle_Projections[[ Technology Type]], $B17, Vehicle_Projections[Vehicle Type], $A17, Vehicle_Projections[Scenario], Input_Scenario_Modeled) -> 1.311985 | Y17: =SUMIFS(Vehicle_Projections[Vehicle Stock],Vehicle_Projections[Year],Calculations!Y$4, Vehicle_Projections[[ Technology Type]], $B17, Vehicle_Projections[Vehicle Type], $A17, Vehicle_Projections[Scenario], Input_Scenario_Modeled) -> 1.367049 | Z17: =SUMIFS(Vehicle_Projections[Vehicle Stock],Vehicle_Projections[Year],Calculations!Z$4, Vehicle_Projections[[ Technology Type]], $B17, Vehicle_Projections[Vehicle Type], $A17, Vehicle_Projections[Scenario], Input_Scenario_Modeled) -> 1.423124 | AA17: =SUMIFS(Vehicle_Projections[Vehicle Stock],Vehicle_Projections[Year],Calculations!AA$4, Vehicle_Projections[[ Technology Type]], $B17, Vehicle_Projections[Vehicle Type], $A17, Vehicle_Projections[Scenario], Input_Scenario_Modeled) -> 1.480276 | AB17: =SUMIFS(Vehicle_Projections[Vehicle Stock],Vehicle_Projections[Year],Calculations!AB$4, Vehicle_Projections[[ Technology Type]], $B17, Vehicle_Projections[Vehicle Type], $A17, Vehicle_Projections[Scenario], Input_Scenario_Modeled) -> 1.538538 | AC17: =SUMIFS(Vehicle_Projections[Vehicle Stock],Vehicle_Projections[Year],Calculations!AC$4, Vehicle_Projections[[ Technology Type]], $B17, Vehicle_Projections[Vehicle Type], $A17, Vehicle_Projections[Scenario], Input_Scenario_Modeled) -> 1.598278 | AD17: =SUMIFS(Vehicle_Projections[Vehicle Stock],Vehicle_Projections[Year],Calculations!AD$4, Vehicle_Projections[[ Technology Type]], $B17, Vehicle_Projections[Vehicle Type], $A17, Vehicle_Projections[Scenario], Input_Scenario_Modeled) -> 1.659007 | AE17: =SUMIFS(Vehicle_Projections[Vehicle Stock],Vehicle_Projections[Year],Calculations!AE$4, Vehicle_Projections[[ Technology Type]], $B17, Vehicle_Projections[Vehicle Type], $A17, Vehicle_Projections[Scenario], Input_Scenario_Modeled) -> 1.721175 | AF17: =SUMIFS(Vehicle_Projections[Vehicle Stock],Vehicle_Projections[Year],Calculations!AF$4, Vehicle_Projections[[ Technology Type]], $B17, Vehicle_Projections[Vehicle Type], $A17, Vehicle_Projections[Scenario], Input_Scenario_Modeled) -> 1.785705 | AG17: =SUMIFS(Vehicle_Projections[Vehicle Stock],Vehicle_Projections[Year],Calculations!AG$4, Vehicle_Projections[[ Technology Type]], $B17, Vehicle_Projections[Vehicle Type], $A17, Vehicle_Projections[Scenario], Input_Scenario_Modeled) -> 1.85247 | AH17: =SUMIFS(Vehicle_Projections[Vehicle Stock],Vehicle_Projections[Year],Calculations!AH$4, Vehicle_Projections[[ Technology Type]], $B17, Vehicle_Projections[Vehicle Type], $A17, Vehicle_Projections[Scenario], Input_Scenario_Modeled) -> 1.922612 | AI17: =SUMIFS(Vehicle_Projections[Vehicle Stock],Vehicle_Projections[Year],Calculations!AI$4, Vehicle_Projections[[ Technology Type]], $B17, Vehicle_Projections[Vehicle Type], $A17, Vehicle_Projections[Scenario], Input_Scenario_Modeled) -> 1.995738 | AJ17: =SUMIFS(Vehicle_Projections[Vehicle Stock],Vehicle_Projections[Year],Calculations!AJ$4, Vehicle_Projections[[ Technology Type]], $B17, Vehicle_Projections[Vehicle Type], $A17, Vehicle_Projections[Scenario], Input_Scenario_Modeled) -> 2.07186 | AK17: =SUMIFS(Vehicle_Projections[Vehicle Stock],Vehicle_Projections[Year],Calculations!AK$4, Vehicle_Projections[[ Technology Type]], $B17, Vehicle_Projections[Vehicle Type], $A17, Vehicle_Projections[Scenario], Input_Scenario_Modeled) -> 2.152038 | AL17: =SUMIFS(Vehicle_Projections[Vehicle Stock],Vehicle_Projections[Year],Calculations!AL$4, Vehicle_Projections[[ Technology Type]], $B17, Vehicle_Projections[Vehicle Type], $A17, Vehicle_Projections[Scenario], Input_Scenario_Modeled) -> 2.23657
A18: Light Trucks | B18: TDI Diesel ICE | C18: Diesel | D18: Stock | E18: =SUMIFS(Vehicle_Projections[Vehicle Stock],Vehicle_Projections[Year],Calculations!E$4, Vehicle_Projections[[ Technology Type]], $B18, Vehicle_Projections[Vehicle Type], $A18, Vehicle_Projections[Scenario], Input_Scenario_Modeled) -> 0.429247 | F18: =SUMIFS(Vehicle_Projections[Vehicle Stock],Vehicle_Projections[Year],Calculations!F$4, Vehicle_Projections[[ Technology Type]], $B18, Vehicle_Projections[Vehicle Type], $A18, Vehicle_Projections[Scenario], Input_Scenario_Modeled) -> 0.494202 | G18: =SUMIFS(Vehicle_Projections[Vehicle Stock],Vehicle_Projections[Year],Calculations!G$4, Vehicle_Projections[[ Technology Type]], $B18, Vehicle_Projections[Vehicle Type], $A18, Vehicle_Projections[Scenario], Input_Scenario_Modeled) -> 0.61249 | H18: =SUMIFS(Vehicle_Projections[Vehicle Stock],Vehicle_Projections[Year],Calculations!H$4, Vehicle_Projections[[ Technology Type]], $B18, Vehicle_Projections[Vehicle Type], $A18, Vehicle_Projections[Scenario], Input_Scenario_Modeled) -> 0.777353 | I18: =SUMIFS(Vehicle_Projections[Vehicle Stock],Vehicle_Projections[Year],Calculations!I$4, Vehicle_Projections[[ Technology Type]], $B18, Vehicle_Projections[Vehicle Type], $A18, Vehicle_Projections[Scenario], Input_Scenario_Modeled) -> 0.943354 | J18: =SUMIFS(Vehicle_Projections[Vehicle Stock],Vehicle_Projections[Year],Calculations!J$4, Vehicle_Projections[[ Technology Type]], $B18, Vehicle_Projections[Vehicle Type], $A18, Vehicle_Projections[Scenario], Input_Scenario_Modeled) -> 1.108745 | K18: =SUMIFS(Vehicle_Projections[Vehicle Stock],Vehicle_Projections[Year],Calculations!K$4, Vehicle_Projections[[ Technology Type]], $B18, Vehicle_Projections[Vehicle Type], $A18, Vehicle_Projections[Scenario], Input_Scenario_Modeled) -> 1.274453 | L18: =SUMIFS(Vehicle_Projections[Vehicle Stock],Vehicle_Projections[Year],Calculations!L$4, Vehicle_Projections[[ Technology Type]], $B18, Vehicle_Projections[Vehicle Type], $A18, Vehicle_Projections[Scenario], Input_Scenario_Modeled) -> 1.436772 | M18: =SUMIFS(Vehicle_Projections[Vehicle Stock],Vehicle_Projections[Year],Calculations!M$4, Vehicle_Projections[[ Technology Type]], $B18, Vehicle_Projections[Vehicle Type], $A18, Vehicle_Projections[Scenario], Input_Scenario_Modeled) -> 1.594936 | N18: =SUMIFS(Vehicle_Projections[Vehicle Stock],Vehicle_Projections[Year],Calculations!N$4, Vehicle_Projections[[ Technology Type]], $B18, Vehicle_Projections[Vehicle Type], $A18, Vehicle_Projections[Scenario], Input_Scenario_Modeled) -> 1.745153 | O18: =SUMIFS(Vehicle_Projections[Vehicle Stock],Vehicle_Projections[Year],Calculations!O$4, Vehicle_Projections[[ Technology Type]], $B18, Vehicle_Projections[Vehicle Type], $A18, Vehicle_Projections[Scenario], Input_Scenario_Modeled) -> 1.879648 | P18: =SUMIFS(Vehicle_Projections[Vehicle Stock],Vehicle_Projections[Year],Calculations!P$4, Vehicle_Projections[[ Technology Type]], $B18, Vehicle_Projections[Vehicle Type], $A18, Vehicle_Projections[Scenario], Input_Scenario_Modeled) -> 2.000192 | Q18: =SUMIFS(Vehicle_Projections[Vehicle Stock],Vehicle_Projections[Year],Calculations!Q$4, Vehicle_Projections[[ Technology Type]], $B18, Vehicle_Projections[Vehicle Type], $A18, Vehicle_Projections[Scenario], Input_Scenario_Modeled) -> 2.104411 | R18: =SUMIFS(Vehicle_Projections[Vehicle Stock],Vehicle_Projections[Year],Calculations!R$4, Vehicle_Projections[[ Technology Type]], $B18, Vehicle_Projections[Vehicle Type], $A18, Vehicle_Projections[Scenario], Input_Scenario_Modeled) -> 2.194759 | S18: =SUMIFS(Vehicle_Projections[Vehicle Stock],Vehicle_Projections[Year],Calculations!S$4, Vehicle_Projections[[ Technology Type]], $B18, Vehicle_Projections[Vehicle Type], $A18, Vehicle_Projections[Scenario], Input_Scenario_Modeled) -> 2.274534 | T18: =SUMIFS(Vehicle_Projections[Vehicle Stock],Vehicle_Projections[Year],Calculations!T$4, Vehicle_Projections[[ Technology Type]], $B18, Vehicle_Projections[Vehicle Type], $A18, Vehicle_Projections[Scenario], Input_Scenario_Modeled) -> 2.339217 | U18: =SUMIFS(Vehicle_Projections[Vehicle Stock],Vehicle_Projections[Year],Calculations!U$4, Vehicle_Projections[[ Technology Type]], $B18, Vehicle_Projections[Vehicle Type], $A18, Vehicle_Projections[Scenario], Input_Scenario_Modeled) -> 2.389884 | V18: =SUMIFS(Vehicle_Projections[Vehicle Stock],Vehicle_Projections[Year],Calculations!V$4, Vehicle_Projections[[ Technology Type]], $B18, Vehicle_Projections[Vehicle Type], $A18, Vehicle_Projections[Scenario], Input_Scenario_Modeled) -> 2.42916 | W18: =SUMIFS(Vehicle_Projections[Vehicle Stock],Vehicle_Projections[Year],Calculations!W$4, Vehicle_Projections[[ Technology Type]], $B18, Vehicle_Projections[Vehicle Type], $A18, Vehicle_Projections[Scenario], Input_Scenario_Modeled) -> 2.456599 | X18: =SUMIFS(Vehicle_Projections[Vehicle Stock],Vehicle_Projections[Year],Calculations!X$4, Vehicle_Projections[[ Technology Type]], $B18, Vehicle_Projections[Vehicle Type], $A18, Vehicle_Projections[Scenario], Input_Scenario_Modeled) -> 2.473171 | Y18: =SUMIFS(Vehicle_Projections[Vehicle Stock],Vehicle_Projections[Year],Calculations!Y$4, Vehicle_Projections[[ Technology Type]], $B18, Vehicle_Projections[Vehicle Type], $A18, Vehicle_Projections[Scenario], Input_Scenario_Modeled) -> 2.482533 | Z18: =SUMIFS(Vehicle_Projections[Vehicle Stock],Vehicle_Projections[Year],Calculations!Z$4, Vehicle_Projections[[ Technology Type]], $B18, Vehicle_Projections[Vehicle Type], $A18, Vehicle_Projections[Scenario], Input_Scenario_Modeled) -> 2.484463 | AA18: =SUMIFS(Vehicle_Projections[Vehicle Stock],Vehicle_Projections[Year],Calculations!AA$4, Vehicle_Projections[[ Technology Type]], $B18, Vehicle_Projections[Vehicle Type], $A18, Vehicle_Projections[Scenario], Input_Scenario_Modeled) -> 2.479049 | AB18: =SUMIFS(Vehicle_Projections[Vehicle Stock],Vehicle_Projections[Year],Calculations!AB$4, Vehicle_Projections[[ Technology Type]], $B18, Vehicle_Projections[Vehicle Type], $A18, Vehicle_Projections[Scenario], Input_Scenario_Modeled) -> 2.467787 | AC18: =SUMIFS(Vehicle_Projections[Vehicle Stock],Vehicle_Projections[Year],Calculations!AC$4, Vehicle_Projections[[ Technology Type]], $B18, Vehicle_Projections[Vehicle Type], $A18, Vehicle_Projections[Scenario], Input_Scenario_Modeled) -> 2.452773 | AD18: =SUMIFS(Vehicle_Projections[Vehicle Stock],Vehicle_Projections[Year],Calculations!AD$4, Vehicle_Projections[[ Technology Type]], $B18, Vehicle_Projections[Vehicle Type], $A18, Vehicle_Projections[Scenario], Input_Scenario_Modeled) -> 2.433501 | AE18: =SUMIFS(Vehicle_Projections[Vehicle Stock],Vehicle_Projections[Year],Calculations!AE$4, Vehicle_Projections[[ Technology Type]], $B18, Vehicle_Projections[Vehicle Type], $A18, Vehicle_Projections[Scenario], Input_Scenario_Modeled) -> 2.411256 | AF18: =SUMIFS(Vehicle_Projections[Vehicle Stock],Vehicle_Projections[Year],Calculations!AF$4, Vehicle_Projections[[ Technology Type]], $B18, Vehicle_Projections[Vehicle Type], $A18, Vehicle_Projections[Scenario], Input_Scenario_Modeled) -> 2.388016 | AG18: =SUMIFS(Vehicle_Projections[Vehicle Stock],Vehicle_Projections[Year],Calculations!AG$4, Vehicle_Projections[[ Technology Type]], $B18, Vehicle_Projections[Vehicle Type], $A18, Vehicle_Projections[Scenario], Input_Scenario_Modeled) -> 2.363396 | AH18: =SUMIFS(Vehicle_Projections[Vehicle Stock],Vehicle_Projections[Year],Calculations!AH$4, Vehicle_Projections[[ Technology Type]], $B18, Vehicle_Projections[Vehicle Type], $A18, Vehicle_Projections[Scenario], Input_Scenario_Modeled) -> 2.340392 | AI18: =SUMIFS(Vehicle_Projections[Vehicle Stock],Vehicle_Projections[Year],Calculations!AI$4, Vehicle_Projections[[ Technology Type]], $B18, Vehicle_Projections[Vehicle Type], $A18, Vehicle_Projections[Scenario], Input_Scenario_Modeled) -> 2.318142 | AJ18: =SUMIFS(Vehicle_Projections[Vehicle Stock],Vehicle_Projections[Year],Calculations!AJ$4, Vehicle_Projections[[ Technology Type]], $B18, Vehicle_Projections[Vehicle Type], $A18, Vehicle_Projections[Scenario], Input_Scenario_Modeled) -> 2.295082 | AK18: =SUMIFS(Vehicle_Projections[Vehicle Stock],Vehicle_Projections[Year],Calculations!AK$4, Vehicle_Projections[[ Technology Type]], $B18, Vehicle_Projections[Vehicle Type], $A18, Vehicle_Projections[Scenario], Input_Scenario_Modeled) -> 2.271864 | AL18: =SUMIFS(Vehicle_Projections[Vehicle Stock],Vehicle_Projections[Year],Calculations!AL$4, Vehicle_Projections[[ Technology Type]], $B18, Vehicle_Projections[Vehicle Type], $A18, Vehicle_Projections[Scenario], Input_Scenario_Modeled) -> 2.248193
A19: Light Trucks | B19: Electric-Diesel Hybrid | C19: Diesel | D19: Stock | E19: =SUMIFS(Vehicle_Projections[Vehicle Stock],Vehicle_Projections[Year],Calculations!E$4, Vehicle_Projections[[ Technology Type]], $B19, Vehicle_Projections[Vehicle Type], $A19, Vehicle_Projections[Scenario], Input_Scenario_Modeled) -> 0 | F19: =SUMIFS(Vehicle_Projections[Vehicle Stock],Vehicle_Projections[Year],Calculations!F$4, Vehicle_Projections[[ Technology Type]], $B19, Vehicle_Projections[Vehicle Type], $A19, Vehicle_Projections[Scenario], Input_Scenario_Modeled) -> 0 | G19: =SUMIFS(Vehicle_Projections[Vehicle Stock],Vehicle_Projections[Year],Calculations!G$4, Vehicle_Projections[[ Technology Type]], $B19, Vehicle_Projections[Vehicle Type], $A19, Vehicle_Projections[Scenario], Input_Scenario_Modeled) -> 0 | H19: =SUMIFS(Vehicle_Projections[Vehicle Stock],Vehicle_Projections[Year],Calculations!H$4, Vehicle_Projections[[ Technology Type]], $B19, Vehicle_Projections[Vehicle Type], $A19, Vehicle_Projections[Scenario], Input_Scenario_Modeled) -> 0 | I19: =SUMIFS(Vehicle_Projections[Vehicle Stock],Vehicle_Projections[Year],Calculations!I$4, Vehicle_Projections[[ Technology Type]], $B19, Vehicle_Projections[Vehicle Type], $A19, Vehicle_Projections[Scenario], Input_Scenario_Modeled) -> 0 | J19: =SUMIFS(Vehicle_Projections[Vehicle Stock],Vehicle_Projections[Year],Calculations!J$4, Vehicle_Projections[[ Technology Type]], $B19, Vehicle_Projections[Vehicle Type], $A19, Vehicle_Projections[Scenario], Input_Scenario_Modeled) -> 0 | K19: =SUMIFS(Vehicle_Projections[Vehicle Stock],Vehicle_Projections[Year],Calculations!K$4, Vehicle_Projections[[ Technology Type]], $B19, Vehicle_Projections[Vehicle Type], $A19, Vehicle_Projections[Scenario], Input_Scenario_Modeled) -> 0 | L19: =SUMIFS(Vehicle_Projections[Vehicle Stock],Vehicle_Projections[Year],Calculations!L$4, Vehicle_Projections[[ Technology Type]], $B19, Vehicle_Projections[Vehicle Type], $A19, Vehicle_Projections[Scenario], Input_Scenario_Modeled) -> 0 | M19: =SUMIFS(Vehicle_Projections[Vehicle Stock],Vehicle_Projections[Year],Calculations!M$4, Vehicle_Projections[[ Technology Type]], $B19, Vehicle_Projections[Vehicle Type], $A19, Vehicle_Projections[Scenario], Input_Scenario_Modeled) -> 0 | N19: =SUMIFS(Vehicle_Projections[Vehicle Stock],Vehicle_Projections[Year],Calculations!N$4, Vehicle_Projections[[ Technology Type]], $B19, Vehicle_Projections[Vehicle Type], $A19, Vehicle_Projections[Scenario], Input_Scenario_Modeled) -> 1.3e-05 | O19: =SUMIFS(Vehicle_Projections[Vehicle Stock],Vehicle_Projections[Year],Calculations!O$4, Vehicle_Projections[[ Technology Type]], $B19, Vehicle_Projections[Vehicle Type], $A19, Vehicle_Projections[Scenario], Input_Scenario_Modeled) -> 3e-05 | P19: =SUMIFS(Vehicle_Projections[Vehicle Stock],Vehicle_Projections[Year],Calculations!P$4, Vehicle_Projections[[ Technology Type]], $B19, Vehicle_Projections[Vehicle Type], $A19, Vehicle_Projections[Scenario], Input_Scenario_Modeled) -> 5.1e-05 | Q19: =SUMIFS(Vehicle_Projections[Vehicle Stock],Vehicle_Projections[Year],Calculations!Q$4, Vehicle_Projections[[ Technology Type]], $B19, Vehicle_Projections[Vehicle Type], $A19, Vehicle_Projections[Scenario], Input_Scenario_Modeled) -> 7.8e-05 | R19: =SUMIFS(Vehicle_Projections[Vehicle Stock],Vehicle_Projections[Year],Calculations!R$4, Vehicle_Projections[[ Technology Type]], $B19, Vehicle_Projections[Vehicle Type], $A19, Vehicle_Projections[Scenario], Input_Scenario_Modeled) -> 0.00012 | S19: =SUMIFS(Vehicle_Projections[Vehicle Stock],Vehicle_Projections[Year],Calculations!S$4, Vehicle_Projections[[ Technology Type]], $B19, Vehicle_Projections[Vehicle Type], $A19, Vehicle_Projections[Scenario], Input_Scenario_Modeled) -> 0.000178 | T19: =SUMIFS(Vehicle_Projections[Vehicle Stock],Vehicle_Projections[Year],Calculations!T$4, Vehicle_Projections[[ Technology Type]], $B19, Vehicle_Projections[Vehicle Type], $A19, Vehicle_Projections[Scenario], Input_Scenario_Modeled) -> 0.000248 | U19: =SUMIFS(Vehicle_Projections[Vehicle Stock],Vehicle_Projections[Year],Calculations!U$4, Vehicle_Projections[[ Technology Type]], $B19, Vehicle_Projections[Vehicle Type], $A19, Vehicle_Projections[Scenario], Input_Scenario_Modeled) -> 0.000331 | V19: =SUMIFS(Vehicle_Projections[Vehicle Stock],Vehicle_Projections[Year],Calculations!V$4, Vehicle_Projections[[ Technology Type]], $B19, Vehicle_Projections[Vehicle Type], $A19, Vehicle_Projections[Scenario], Input_Scenario_Modeled) -> 0.000429 | W19: =SUMIFS(Vehicle_Projections[Vehicle Stock],Vehicle_Projections[Year],Calculations!W$4, Vehicle_Projections[[ Technology Type]], $B19, Vehicle_Projections[Vehicle Type], $A19, Vehicle_Projections[Scenario], Input_Scenario_Modeled) -> 0.000542 | X19: =SUMIFS(Vehicle_Projections[Vehicle Stock],Vehicle_Projections[Year],Calculations!X$4, Vehicle_Projections[[ Technology Type]], $B19, Vehicle_Projections[Vehicle Type], $A19, Vehicle_Projections[Scenario], Input_Scenario_Modeled) -> 0.000672 | Y19: =SUMIFS(Vehicle_Projections[Vehicle Stock],Vehicle_Projections[Year],Calculations!Y$4, Vehicle_Projections[[ Technology Type]], $B19, Vehicle_Projections[Vehicle Type], $A19, Vehicle_Projections[Scenario], Input_Scenario_Modeled) -> 0.000821 | Z19: =SUMIFS(Vehicle_Projections[Vehicle Stock],Vehicle_Projections[Year],Calculations!Z$4, Vehicle_Projections[[ Technology Type]], $B19, Vehicle_Projections[Vehicle Type], $A19, Vehicle_Projections[Scenario], Input_Scenario_Modeled) -> 0.000987 | AA19: =SUMIFS(Vehicle_Projections[Vehicle Stock],Vehicle_Projections[Year],Calculations!AA$4, Vehicle_Projections[[ Technology Type]], $B19, Vehicle_Projections[Vehicle Type], $A19, Vehicle_Projections[Scenario], Input_Scenario_Modeled) -> 0.001171 | AB19: =SUMIFS(Vehicle_Projections[Vehicle Stock],Vehicle_Projections[Year],Calculations!AB$4, Vehicle_Projections[[ Technology Type]], $B19, Vehicle_Projections[Vehicle Type], $A19, Vehicle_Projections[Scenario], Input_Scenario_Modeled) -> 0.00137 | AC19: =SUMIFS(Vehicle_Projections[Vehicle Stock],Vehicle_Projections[Year],Calculations!AC$4, Vehicle_Projections[[ Technology Type]], $B19, Vehicle_Projections[Vehicle Type], $A19, Vehicle_Projections[Scenario], Input_Scenario_Modeled) -> 0.001583 | AD19: =SUMIFS(Vehicle_Projections[Vehicle Stock],Vehicle_Projections[Year],Calculations!AD$4, Vehicle_Projections[[ Technology Type]], $B19, Vehicle_Projections[Vehicle Type], $A19, Vehicle_Projections[Scenario], Input_Scenario_Modeled) -> 0.001805 | AE19: =SUMIFS(Vehicle_Projections[Vehicle Stock],Vehicle_Projections[Year],Calculations!AE$4, Vehicle_Projections[[ Technology Type]], $B19, Vehicle_Projections[Vehicle Type], $A19, Vehicle_Projections[Scenario], Input_Scenario_Modeled) -> 0.002034 | AF19: =SUMIFS(Vehicle_Projections[Vehicle Stock],Vehicle_Projections[Year],Calculations!AF$4, Vehicle_Projections[[ Technology Type]], $B19, Vehicle_Projections[Vehicle Type], $A19, Vehicle_Projections[Scenario], Input_Scenario_Modeled) -> 0.002268 | AG19: =SUMIFS(Vehicle_Projections[Vehicle Stock],Vehicle_Projections[Year],Calculations!AG$4, Vehicle_Projections[[ Technology Type]], $B19, Vehicle_Projections[Vehicle Type], $A19, Vehicle_Projections[Scenario], Input_Scenario_Modeled) -> 0.002503 | AH19: =SUMIFS(Vehicle_Projections[Vehicle Stock],Vehicle_Projections[Year],Calculations!AH$4, Vehicle_Projections[[ Technology Type]], $B19, Vehicle_Projections[Vehicle Type], $A19, Vehicle_Projections[Scenario], Input_Scenario_Modeled) -> 0.002738 | AI19: =SUMIFS(Vehicle_Projections[Vehicle Stock],Vehicle_Projections[Year],Calculations!AI$4, Vehicle_Projections[[ Technology Type]], $B19, Vehicle_Projections[Vehicle Type], $A19, Vehicle_Projections[Scenario], Input_Scenario_Modeled) -> 0.00297 | AJ19: =SUMIFS(Vehicle_Projections[Vehicle Stock],Vehicle_Projections[Year],Calculations!AJ$4, Vehicle_Projections[[ Technology Type]], $B19, Vehicle_Projections[Vehicle Type], $A19, Vehicle_Projections[Scenario], Input_Scenario_Modeled) -> 0.003194 | AK19: =SUMIFS(Vehicle_Projections[Vehicle Stock],Vehicle_Projections[Year],Calculations!AK$4, Vehicle_Projections[[ Technology Type]], $B19, Vehicle_Projections[Vehicle Type], $A19, Vehicle_Projections[Scenario], Input_Scenario_Modeled) -> 0.003412 | AL19: =SUMIFS(Vehicle_Projections[Vehicle Stock],Vehicle_Projections[Year],Calculations!AL$4, Vehicle_Projections[[ Technology Type]], $B19, Vehicle_Projections[Vehicle Type], $A19, Vehicle_Projections[Scenario], Input_Scenario_Modeled) -> 0.003621
A20: Light Trucks | B20: 100 Mile Electric Vehicle | C20: Electricity | D20: Stock | E20: =SUMIFS(Vehicle_Projections[Vehicle Stock],Vehicle_Projections[Year],Calculations!E$4, Vehicle_Projections[[ Technology Type]], $B20, Vehicle_Projections[Vehicle Type], $A20, Vehicle_Projections[Scenario], Input_Scenario_Modeled) -> 0.004057 | F20: =SUMIFS(Vehicle_Projections[Vehicle Stock],Vehicle_Projections[Year],Calculations!F$4, Vehicle_Projections[[ Technology Type]], $B20, Vehicle_Projections[Vehicle Type], $A20, Vehicle_Projections[Scenario], Input_Scenario_Modeled) -> 0.009334 | G20: =SUMIFS(Vehicle_Projections[Vehicle Stock],Vehicle_Projections[Year],Calculations!G$4, Vehicle_Projections[[ Technology Type]], $B20, Vehicle_Projections[Vehicle Type], $A20, Vehicle_Projections[Scenario], Input_Scenario_Modeled) -> 0.031371 | H20: =SUMIFS(Vehicle_Projections[Vehicle Stock],Vehicle_Projections[Year],Calculations!H$4, Vehicle_Projections[[ Technology Type]], $B20, Vehicle_Projections[Vehicle Type], $A20, Vehicle_Projections[Scenario], Input_Scenario_Modeled) -> 0.061464 | I20: =SUMIFS(Vehicle_Projections[Vehicle Stock],Vehicle_Projections[Year],Calculations!I$4, Vehicle_Projections[[ Technology Type]], $B20, Vehicle_Projections[Vehicle Type], $A20, Vehicle_Projections[Scenario], Input_Scenario_Modeled) -> 0.10489 | J20: =SUMIFS(Vehicle_Projections[Vehicle Stock],Vehicle_Projections[Year],Calculations!J$4, Vehicle_Projections[[ Technology Type]], $B20, Vehicle_Projections[Vehicle Type], $A20, Vehicle_Projections[Scenario], Input_Scenario_Modeled) -> 0.161669 | K20: =SUMIFS(Vehicle_Projections[Vehicle Stock],Vehicle_Projections[Year],Calculations!K$4, Vehicle_Projections[[ Technology Type]], $B20, Vehicle_Projections[Vehicle Type], $A20, Vehicle_Projections[Scenario], Input_Scenario_Modeled) -> 0.219542 | L20: =SUMIFS(Vehicle_Projections[Vehicle Stock],Vehicle_Projections[Year],Calculations!L$4, Vehicle_Projections[[ Technology Type]], $B20, Vehicle_Projections[Vehicle Type], $A20, Vehicle_Projections[Scenario], Input_Scenario_Modeled) -> 0.282775 | M20: =SUMIFS(Vehicle_Projections[Vehicle Stock],Vehicle_Projections[Year],Calculations!M$4, Vehicle_Projections[[ Technology Type]], $B20, Vehicle_Projections[Vehicle Type], $A20, Vehicle_Projections[Scenario], Input_Scenario_Modeled) -> 0.350063 | N20: =SUMIFS(Vehicle_Projections[Vehicle Stock],Vehicle_Projections[Year],Calculations!N$4, Vehicle_Projections[[ Technology Type]], $B20, Vehicle_Projections[Vehicle Type], $A20, Vehicle_Projections[Scenario], Input_Scenario_Modeled) -> 0.416434 | O20: =SUMIFS(Vehicle_Projections[Vehicle Stock],Vehicle_Projections[Year],Calculations!O$4, Vehicle_Projections[[ Technology Type]], $B20, Vehicle_Projections[Vehicle Type], $A20, Vehicle_Projections[Scenario], Input_Scenario_Modeled) -> 0.481525 | P20: =SUMIFS(Vehicle_Projections[Vehicle Stock],Vehicle_Projections[Year],Calculations!P$4, Vehicle_Projections[[ Technology Type]], $B20, Vehicle_Projections[Vehicle Type], $A20, Vehicle_Projections[Scenario], Input_Scenario_Modeled) -> 0.542539 | Q20: =SUMIFS(Vehicle_Projections[Vehicle Stock],Vehicle_Projections[Year],Calculations!Q$4, Vehicle_Projections[[ Technology Type]], $B20, Vehicle_Projections[Vehicle Type], $A20, Vehicle_Projections[Scenario], Input_Scenario_Modeled) -> 0.602825 | R20: =SUMIFS(Vehicle_Projections[Vehicle Stock],Vehicle_Projections[Year],Calculations!R$4, Vehicle_Projections[[ Technology Type]], $B20, Vehicle_Projections[Vehicle Type], $A20, Vehicle_Projections[Scenario], Input_Scenario_Modeled) -> 0.661339 | S20: =SUMIFS(Vehicle_Projections[Vehicle Stock],Vehicle_Projections[Year],Calculations!S$4, Vehicle_Projections[[ Technology Type]], $B20, Vehicle_Projections[Vehicle Type], $A20, Vehicle_Projections[Scenario], Input_Scenario_Modeled) -> 0.718898 | T20: =SUMIFS(Vehicle_Projections[Vehicle Stock],Vehicle_Projections[Year],Calculations!T$4, Vehicle_Projections[[ Technology Type]], $B20, Vehicle_Projections[Vehicle Type], $A20, Vehicle_Projections[Scenario], Input_Scenario_Modeled) -> 0.770852 | U20: =SUMIFS(Vehicle_Projections[Vehicle Stock],Vehicle_Projections[Year],Calculations!U$4, Vehicle_Projections[[ Technology Type]], $B20, Vehicle_Projections[Vehicle Type], $A20, Vehicle_Projections[Scenario], Input_Scenario_Modeled) -> 0.821481 | V20: =SUMIFS(Vehicle_Projections[Vehicle Stock],Vehicle_Projections[Year],Calculations!V$4, Vehicle_Projections[[ Technology Type]], $B20, Vehicle_Projections[Vehicle Type], $A20, Vehicle_Projections[Scenario], Input_Scenario_Modeled) -> 0.871826 | W20: =SUMIFS(Vehicle_Projections[Vehicle Stock],Vehicle_Projections[Year],Calculations!W$4, Vehicle_Projections[[ Technology Type]], $B20, Vehicle_Projections[Vehicle Type], $A20, Vehicle_Projections[Scenario], Input_Scenario_Modeled) -> 0.922183 | X20: =SUMIFS(Vehicle_Projections[Vehicle Stock],Vehicle_Projections[Year],Calculations!X$4, Vehicle_Projections[[ Technology Type]], $B20, Vehicle_Projections[Vehicle Type], $A20, Vehicle_Projections[Scenario], Input_Scenario_Modeled) -> 0.973333 | Y20: =SUMIFS(Vehicle_Projections[Vehicle Stock],Vehicle_Projections[Year],Calculations!Y$4, Vehicle_Projections[[ Technology Type]], $B20, Vehicle_Projections[Vehicle Type], $A20, Vehicle_Projections[Scenario], Input_Scenario_Modeled) -> 1.024417 | Z20: =SUMIFS(Vehicle_Projections[Vehicle Stock],Vehicle_Projections[Year],Calculations!Z$4, Vehicle_Projections[[ Technology Type]], $B20, Vehicle_Projections[Vehicle Type], $A20, Vehicle_Projections[Scenario], Input_Scenario_Modeled) -> 1.077613 | AA20: =SUMIFS(Vehicle_Projections[Vehicle Stock],Vehicle_Projections[Year],Calculations!AA$4, Vehicle_Projections[[ Technology Type]], $B20, Vehicle_Projections[Vehicle Type], $A20, Vehicle_Projections[Scenario], Input_Scenario_Modeled) -> 1.133643 | AB20: =SUMIFS(Vehicle_Projections[Vehicle Stock],Vehicle_Projections[Year],Calculations!AB$4, Vehicle_Projections[[ Technology Type]], $B20, Vehicle_Projections[Vehicle Type], $A20, Vehicle_Projections[Scenario], Input_Scenario_Modeled) -> 1.193458 | AC20: =SUMIFS(Vehicle_Projections[Vehicle Stock],Vehicle_Projections[Year],Calculations!AC$4, Vehicle_Projections[[ Technology Type]], $B20, Vehicle_Projections[Vehicle Type], $A20, Vehicle_Projections[Scenario], Input_Scenario_Modeled) -> 1.256843 | AD20: =SUMIFS(Vehicle_Projections[Vehicle Stock],Vehicle_Projections[Year],Calculations!AD$4, Vehicle_Projections[[ Technology Type]], $B20, Vehicle_Projections[Vehicle Type], $A20, Vehicle_Projections[Scenario], Input_Scenario_Modeled) -> 1.324353 | AE20: =SUMIFS(Vehicle_Projections[Vehicle Stock],Vehicle_Projections[Year],Calculations!AE$4, Vehicle_Projections[[ Technology Type]], $B20, Vehicle_Projections[Vehicle Type], $A20, Vehicle_Projections[Scenario], Input_Scenario_Modeled) -> 1.396715 | AF20: =SUMIFS(Vehicle_Projections[Vehicle Stock],Vehicle_Projections[Year],Calculations!AF$4, Vehicle_Projections[[ Technology Type]], $B20, Vehicle_Projections[Vehicle Type], $A20, Vehicle_Projections[Scenario], Input_Scenario_Modeled) -> 1.475077 | AG20: =SUMIFS(Vehicle_Projections[Vehicle Stock],Vehicle_Projections[Year],Calculations!AG$4, Vehicle_Projections[[ Technology Type]], $B20, Vehicle_Projections[Vehicle Type], $A20, Vehicle_Projections[Scenario], Input_Scenario_Modeled) -> 1.559884 | AH20: =SUMIFS(Vehicle_Projections[Vehicle Stock],Vehicle_Projections[Year],Calculations!AH$4, Vehicle_Projections[[ Technology Type]], $B20, Vehicle_Projections[Vehicle Type], $A20, Vehicle_Projections[Scenario], Input_Scenario_Modeled) -> 1.652368 | AI20: =SUMIFS(Vehicle_Projections[Vehicle Stock],Vehicle_Projections[Year],Calculations!AI$4, Vehicle_Projections[[ Technology Type]], $B20, Vehicle_Projections[Vehicle Type], $A20, Vehicle_Projections[Scenario], Input_Scenario_Modeled) -> 1.753064 | AJ20: =SUMIFS(Vehicle_Projections[Vehicle Stock],Vehicle_Projections[Year],Calculations!AJ$4, Vehicle_Projections[[ Technology Type]], $B20, Vehicle_Projections[Vehicle Type], $A20, Vehicle_Projections[Scenario], Input_Scenario_Modeled) -> 1.863072 | AK20: =SUMIFS(Vehicle_Projections[Vehicle Stock],Vehicle_Projections[Year],Calculations!AK$4, Vehicle_Projections[[ Technology Type]], $B20, Vehicle_Projections[Vehicle Type], $A20, Vehicle_Projections[Scenario], Input_Scenario_Modeled) -> 1.98331 | AL20: =SUMIFS(Vehicle_Projections[Vehicle Stock],Vehicle_Projections[Year],Calculations!AL$4, Vehicle_Projections[[ Technology Type]], $B20, Vehicle_Projections[Vehicle Type], $A20, Vehicle_Projections[Scenario], Input_Scenario_Modeled) -> 2.114828
A21: Light Trucks | B21: 200 Mile Electric Vehicle | C21: Electricity | D21: Stock | E21: =SUMIFS(Vehicle_Projections[Vehicle Stock],Vehicle_Projections[Year],Calculations!E$4, Vehicle_Projections[[ Technology Type]], $B21, Vehicle_Projections[Vehicle Type], $A21, Vehicle_Projections[Scenario], Input_Scenario_Modeled) -> 0.002434 | F21: =SUMIFS(Vehicle_Projections[Vehicle Stock],Vehicle_Projections[Year],Calculations!F$4, Vehicle_Projections[[ Technology Type]], $B21, Vehicle_Projections[Vehicle Type], $A21, Vehicle_Projections[Scenario], Input_Scenario_Modeled) -> 0.005456 | G21: =SUMIFS(Vehicle_Projections[Vehicle Stock],Vehicle_Projections[Year],Calculations!G$4, Vehicle_Projections[[ Technology Type]], $B21, Vehicle_Projections[Vehicle Type], $A21, Vehicle_Projections[Scenario], Input_Scenario_Modeled) -> 0.011627 | H21: =SUMIFS(Vehicle_Projections[Vehicle Stock],Vehicle_Projections[Year],Calculations!H$4, Vehicle_Projections[[ Technology Type]], $B21, Vehicle_Projections[Vehicle Type], $A21, Vehicle_Projections[Scenario], Input_Scenario_Modeled) -> 0.021976 | I21: =SUMIFS(Vehicle_Projections[Vehicle Stock],Vehicle_Projections[Year],Calculations!I$4, Vehicle_Projections[[ Technology Type]], $B21, Vehicle_Projections[Vehicle Type], $A21, Vehicle_Projections[Scenario], Input_Scenario_Modeled) -> 0.040388 | J21: =SUMIFS(Vehicle_Projections[Vehicle Stock],Vehicle_Projections[Year],Calculations!J$4, Vehicle_Projections[[ Technology Type]], $B21, Vehicle_Projections[Vehicle Type], $A21, Vehicle_Projections[Scenario], Input_Scenario_Modeled) -> 0.067036 | K21: =SUMIFS(Vehicle_Projections[Vehicle Stock],Vehicle_Projections[Year],Calculations!K$4, Vehicle_Projections[[ Technology Type]], $B21, Vehicle_Projections[Vehicle Type], $A21, Vehicle_Projections[Scenario], Input_Scenario_Modeled) -> 0.094706 | L21: =SUMIFS(Vehicle_Projections[Vehicle Stock],Vehicle_Projections[Year],Calculations!L$4, Vehicle_Projections[[ Technology Type]], $B21, Vehicle_Projections[Vehicle Type], $A21, Vehicle_Projections[Scenario], Input_Scenario_Modeled) -> 0.125752 | M21: =SUMIFS(Vehicle_Projections[Vehicle Stock],Vehicle_Projections[Year],Calculations!M$4, Vehicle_Projections[[ Technology Type]], $B21, Vehicle_Projections[Vehicle Type], $A21, Vehicle_Projections[Scenario], Input_Scenario_Modeled) -> 0.159603 | N21: =SUMIFS(Vehicle_Projections[Vehicle Stock],Vehicle_Projections[Year],Calculations!N$4, Vehicle_Projections[[ Technology Type]], $B21, Vehicle_Projections[Vehicle Type], $A21, Vehicle_Projections[Scenario], Input_Scenario_Modeled) -> 0.193028 | O21: =SUMIFS(Vehicle_Projections[Vehicle Stock],Vehicle_Projections[Year],Calculations!O$4, Vehicle_Projections[[ Technology Type]], $B21, Vehicle_Projections[Vehicle Type], $A21, Vehicle_Projections[Scenario], Input_Scenario_Modeled) -> 0.225858 | P21: =SUMIFS(Vehicle_Projections[Vehicle Stock],Vehicle_Projections[Year],Calculations!P$4, Vehicle_Projections[[ Technology Type]], $B21, Vehicle_Projections[Vehicle Type], $A21, Vehicle_Projections[Scenario], Input_Scenario_Modeled) -> 0.25657 | Q21: =SUMIFS(Vehicle_Projections[Vehicle Stock],Vehicle_Projections[Year],Calculations!Q$4, Vehicle_Projections[[ Technology Type]], $B21, Vehicle_Projections[Vehicle Type], $A21, Vehicle_Projections[Scenario], Input_Scenario_Modeled) -> 0.286841 | R21: =SUMIFS(Vehicle_Projections[Vehicle Stock],Vehicle_Projections[Year],Calculations!R$4, Vehicle_Projections[[ Technology Type]], $B21, Vehicle_Projections[Vehicle Type], $A21, Vehicle_Projections[Scenario], Input_Scenario_Modeled) -> 0.316105 | S21: =SUMIFS(Vehicle_Projections[Vehicle Stock],Vehicle_Projections[Year],Calculations!S$4, Vehicle_Projections[[ Technology Type]], $B21, Vehicle_Projections[Vehicle Type], $A21, Vehicle_Projections[Scenario], Input_Scenario_Modeled) -> 0.344484 | T21: =SUMIFS(Vehicle_Projections[Vehicle Stock],Vehicle_Projections[Year],Calculations!T$4, Vehicle_Projections[[ Technology Type]], $B21, Vehicle_Projections[Vehicle Type], $A21, Vehicle_Projections[Scenario], Input_Scenario_Modeled) -> 0.369321 | U21: =SUMIFS(Vehicle_Projections[Vehicle Stock],Vehicle_Projections[Year],Calculations!U$4, Vehicle_Projections[[ Technology Type]], $B21, Vehicle_Projections[Vehicle Type], $A21, Vehicle_Projections[Scenario], Input_Scenario_Modeled) -> 0.392724 | V21: =SUMIFS(Vehicle_Projections[Vehicle Stock],Vehicle_Projections[Year],Calculations!V$4, Vehicle_Projections[[ Technology Type]], $B21, Vehicle_Projections[Vehicle Type], $A21, Vehicle_Projections[Scenario], Input_Scenario_Modeled) -> 0.414984 | W21: =SUMIFS(Vehicle_Projections[Vehicle Stock],Vehicle_Projections[Year],Calculations!W$4, Vehicle_Projections[[ Technology Type]], $B21, Vehicle_Projections[Vehicle Type], $A21, Vehicle_Projections[Scenario], Input_Scenario_Modeled) -> 0.435888 | X21: =SUMIFS(Vehicle_Projections[Vehicle Stock],Vehicle_Projections[Year],Calculations!X$4, Vehicle_Projections[[ Technology Type]], $B21, Vehicle_Projections[Vehicle Type], $A21, Vehicle_Projections[Scenario], Input_Scenario_Modeled) -> 0.455562 | Y21: =SUMIFS(Vehicle_Projections[Vehicle Stock],Vehicle_Projections[Year],Calculations!Y$4, Vehicle_Projections[[ Technology Type]], $B21, Vehicle_Projections[Vehicle Type], $A21, Vehicle_Projections[Scenario], Input_Scenario_Modeled) -> 0.473378 | Z21: =SUMIFS(Vehicle_Projections[Vehicle Stock],Vehicle_Projections[Year],Calculations!Z$4, Vehicle_Projections[[ Technology Type]], $B21, Vehicle_Projections[Vehicle Type], $A21, Vehicle_Projections[Scenario], Input_Scenario_Modeled) -> 0.490042 | AA21: =SUMIFS(Vehicle_Projections[Vehicle Stock],Vehicle_Projections[Year],Calculations!AA$4, Vehicle_Projections[[ Technology Type]], $B21, Vehicle_Projections[Vehicle Type], $A21, Vehicle_Projections[Scenario], Input_Scenario_Modeled) -> 0.505681 | AB21: =SUMIFS(Vehicle_Projections[Vehicle Stock],Vehicle_Projections[Year],Calculations!AB$4, Vehicle_Projections[[ Technology Type]], $B21, Vehicle_Projections[Vehicle Type], $A21, Vehicle_Projections[Scenario], Input_Scenario_Modeled) -> 0.520434 | AC21: =SUMIFS(Vehicle_Projections[Vehicle Stock],Vehicle_Projections[Year],Calculations!AC$4, Vehicle_Projections[[ Technology Type]], $B21, Vehicle_Projections[Vehicle Type], $A21, Vehicle_Projections[Scenario], Input_Scenario_Modeled) -> 0.534049 | AD21: =SUMIFS(Vehicle_Projections[Vehicle Stock],Vehicle_Projections[Year],Calculations!AD$4, Vehicle_Projections[[ Technology Type]], $B21, Vehicle_Projections[Vehicle Type], $A21, Vehicle_Projections[Scenario], Input_Scenario_Modeled) -> 0.546629 | AE21: =SUMIFS(Vehicle_Projections[Vehicle Stock],Vehicle_Projections[Year],Calculations!AE$4, Vehicle_Projections[[ Technology Type]], $B21, Vehicle_Projections[Vehicle Type], $A21, Vehicle_Projections[Scenario], Input_Scenario_Modeled) -> 0.558308 | AF21: =SUMIFS(Vehicle_Projections[Vehicle Stock],Vehicle_Projections[Year],Calculations!AF$4, Vehicle_Projections[[ Technology Type]], $B21, Vehicle_Projections[Vehicle Type], $A21, Vehicle_Projections[Scenario], Input_Scenario_Modeled) -> 0.56926 | AG21: =SUMIFS(Vehicle_Projections[Vehicle Stock],Vehicle_Projections[Year],Calculations!AG$4, Vehicle_Projections[[ Technology Type]], $B21, Vehicle_Projections[Vehicle Type], $A21, Vehicle_Projections[Scenario], Input_Scenario_Modeled) -> 0.579469 | AH21: =SUMIFS(Vehicle_Projections[Vehicle Stock],Vehicle_Projections[Year],Calculations!AH$4, Vehicle_Projections[[ Technology Type]], $B21, Vehicle_Projections[Vehicle Type], $A21, Vehicle_Projections[Scenario], Input_Scenario_Modeled) -> 0.589008 | AI21: =SUMIFS(Vehicle_Projections[Vehicle Stock],Vehicle_Projections[Year],Calculations!AI$4, Vehicle_Projections[[ Technology Type]], $B21, Vehicle_Projections[Vehicle Type], $A21, Vehicle_Projections[Scenario], Input_Scenario_Modeled) -> 0.598045 | AJ21: =SUMIFS(Vehicle_Projections[Vehicle Stock],Vehicle_Projections[Year],Calculations!AJ$4, Vehicle_Projections[[ Technology Type]], $B21, Vehicle_Projections[Vehicle Type], $A21, Vehicle_Projections[Scenario], Input_Scenario_Modeled) -> 0.606768 | AK21: =SUMIFS(Vehicle_Projections[Vehicle Stock],Vehicle_Projections[Year],Calculations!AK$4, Vehicle_Projections[[ Technology Type]], $B21, Vehicle_Projections[Vehicle Type], $A21, Vehicle_Projections[Scenario], Input_Scenario_Modeled) -> 0.615205 | AL21: =SUMIFS(Vehicle_Projections[Vehicle Stock],Vehicle_Projections[Year],Calculations!AL$4, Vehicle_Projections[[ Technology Type]], $B21, Vehicle_Projections[Vehicle Type], $A21, Vehicle_Projections[Scenario], Input_Scenario_Modeled) -> 0.623517
A22: Light Trucks | B22: 300 Mile Electric Vehicle | C22: Electricity | D22: Stock | E22: =SUMIFS(Vehicle_Projections[Vehicle Stock],Vehicle_Projections[Year],Calculations!E$4, Vehicle_Projections[[ Technology Type]], $B22, Vehicle_Projections[Vehicle Type], $A22, Vehicle_Projections[Scenario], Input_Scenario_Modeled) -> 0.001352 | F22: =SUMIFS(Vehicle_Projections[Vehicle Stock],Vehicle_Projections[Year],Calculations!F$4, Vehicle_Projections[[ Technology Type]], $B22, Vehicle_Projections[Vehicle Type], $A22, Vehicle_Projections[Scenario], Input_Scenario_Modeled) -> 0.003896 | G22: =SUMIFS(Vehicle_Projections[Vehicle Stock],Vehicle_Projections[Year],Calculations!G$4, Vehicle_Projections[[ Technology Type]], $B22, Vehicle_Projections[Vehicle Type], $A22, Vehicle_Projections[Scenario], Input_Scenario_Modeled) -> 0.009249 | H22: =SUMIFS(Vehicle_Projections[Vehicle Stock],Vehicle_Projections[Year],Calculations!H$4, Vehicle_Projections[[ Technology Type]], $B22, Vehicle_Projections[Vehicle Type], $A22, Vehicle_Projections[Scenario], Input_Scenario_Modeled) -> 0.018109 | I22: =SUMIFS(Vehicle_Projections[Vehicle Stock],Vehicle_Projections[Year],Calculations!I$4, Vehicle_Projections[[ Technology Type]], $B22, Vehicle_Projections[Vehicle Type], $A22, Vehicle_Projections[Scenario], Input_Scenario_Modeled) -> 0.033702 | J22: =SUMIFS(Vehicle_Projections[Vehicle Stock],Vehicle_Projections[Year],Calculations!J$4, Vehicle_Projections[[ Technology Type]], $B22, Vehicle_Projections[Vehicle Type], $A22, Vehicle_Projections[Scenario], Input_Scenario_Modeled) -> 0.056246 | K22: =SUMIFS(Vehicle_Projections[Vehicle Stock],Vehicle_Projections[Year],Calculations!K$4, Vehicle_Projections[[ Technology Type]], $B22, Vehicle_Projections[Vehicle Type], $A22, Vehicle_Projections[Scenario], Input_Scenario_Modeled) -> 0.079689 | L22: =SUMIFS(Vehicle_Projections[Vehicle Stock],Vehicle_Projections[Year],Calculations!L$4, Vehicle_Projections[[ Technology Type]], $B22, Vehicle_Projections[Vehicle Type], $A22, Vehicle_Projections[Scenario], Input_Scenario_Modeled) -> 0.106024 | M22: =SUMIFS(Vehicle_Projections[Vehicle Stock],Vehicle_Projections[Year],Calculations!M$4, Vehicle_Projections[[ Technology Type]], $B22, Vehicle_Projections[Vehicle Type], $A22, Vehicle_Projections[Scenario], Input_Scenario_Modeled) -> 0.134805 | N22: =SUMIFS(Vehicle_Projections[Vehicle Stock],Vehicle_Projections[Year],Calculations!N$4, Vehicle_Projections[[ Technology Type]], $B22, Vehicle_Projections[Vehicle Type], $A22, Vehicle_Projections[Scenario], Input_Scenario_Modeled) -> 0.163316 | O22: =SUMIFS(Vehicle_Projections[Vehicle Stock],Vehicle_Projections[Year],Calculations!O$4, Vehicle_Projections[[ Technology Type]], $B22, Vehicle_Projections[Vehicle Type], $A22, Vehicle_Projections[Scenario], Input_Scenario_Modeled) -> 0.19142 | P22: =SUMIFS(Vehicle_Projections[Vehicle Stock],Vehicle_Projections[Year],Calculations!P$4, Vehicle_Projections[[ Technology Type]], $B22, Vehicle_Projections[Vehicle Type], $A22, Vehicle_Projections[Scenario], Input_Scenario_Modeled) -> 0.217875 | Q22: =SUMIFS(Vehicle_Projections[Vehicle Stock],Vehicle_Projections[Year],Calculations!Q$4, Vehicle_Projections[[ Technology Type]], $B22, Vehicle_Projections[Vehicle Type], $A22, Vehicle_Projections[Scenario], Input_Scenario_Modeled) -> 0.244055 | R22: =SUMIFS(Vehicle_Projections[Vehicle Stock],Vehicle_Projections[Year],Calculations!R$4, Vehicle_Projections[[ Technology Type]], $B22, Vehicle_Projections[Vehicle Type], $A22, Vehicle_Projections[Scenario], Input_Scenario_Modeled) -> 0.2695 | S22: =SUMIFS(Vehicle_Projections[Vehicle Stock],Vehicle_Projections[Year],Calculations!S$4, Vehicle_Projections[[ Technology Type]], $B22, Vehicle_Projections[Vehicle Type], $A22, Vehicle_Projections[Scenario], Input_Scenario_Modeled) -> 0.294302 | T22: =SUMIFS(Vehicle_Projections[Vehicle Stock],Vehicle_Projections[Year],Calculations!T$4, Vehicle_Projections[[ Technology Type]], $B22, Vehicle_Projections[Vehicle Type], $A22, Vehicle_Projections[Scenario], Input_Scenario_Modeled) -> 0.3163 | U22: =SUMIFS(Vehicle_Projections[Vehicle Stock],Vehicle_Projections[Year],Calculations!U$4, Vehicle_Projections[[ Technology Type]], $B22, Vehicle_Projections[Vehicle Type], $A22, Vehicle_Projections[Scenario], Input_Scenario_Modeled) -> 0.337132 | V22: =SUMIFS(Vehicle_Projections[Vehicle Stock],Vehicle_Projections[Year],Calculations!V$4, Vehicle_Projections[[ Technology Type]], $B22, Vehicle_Projections[Vehicle Type], $A22, Vehicle_Projections[Scenario], Input_Scenario_Modeled) -> 0.357021 | W22: =SUMIFS(Vehicle_Projections[Vehicle Stock],Vehicle_Projections[Year],Calculations!W$4, Vehicle_Projections[[ Technology Type]], $B22, Vehicle_Projections[Vehicle Type], $A22, Vehicle_Projections[Scenario], Input_Scenario_Modeled) -> 0.375756 | X22: =SUMIFS(Vehicle_Projections[Vehicle Stock],Vehicle_Projections[Year],Calculations!X$4, Vehicle_Projections[[ Technology Type]], $B22, Vehicle_Projections[Vehicle Type], $A22, Vehicle_Projections[Scenario], Input_Scenario_Modeled) -> 0.393411 | Y22: =SUMIFS(Vehicle_Projections[Vehicle Stock],Vehicle_Projections[Year],Calculations!Y$4, Vehicle_Projections[[ Technology Type]], $B22, Vehicle_Projections[Vehicle Type], $A22, Vehicle_Projections[Scenario], Input_Scenario_Modeled) -> 0.409473 | Z22: =SUMIFS(Vehicle_Projections[Vehicle Stock],Vehicle_Projections[Year],Calculations!Z$4, Vehicle_Projections[[ Technology Type]], $B22, Vehicle_Projections[Vehicle Type], $A22, Vehicle_Projections[Scenario], Input_Scenario_Modeled) -> 0.424476 | AA22: =SUMIFS(Vehicle_Projections[Vehicle Stock],Vehicle_Projections[Year],Calculations!AA$4, Vehicle_Projections[[ Technology Type]], $B22, Vehicle_Projections[Vehicle Type], $A22, Vehicle_Projections[Scenario], Input_Scenario_Modeled) -> 0.4385 | AB22: =SUMIFS(Vehicle_Projections[Vehicle Stock],Vehicle_Projections[Year],Calculations!AB$4, Vehicle_Projections[[ Technology Type]], $B22, Vehicle_Projections[Vehicle Type], $A22, Vehicle_Projections[Scenario], Input_Scenario_Modeled) -> 0.451641 | AC22: =SUMIFS(Vehicle_Projections[Vehicle Stock],Vehicle_Projections[Year],Calculations!AC$4, Vehicle_Projections[[ Technology Type]], $B22, Vehicle_Projections[Vehicle Type], $A22, Vehicle_Projections[Scenario], Input_Scenario_Modeled) -> 0.4637 | AD22: =SUMIFS(Vehicle_Projections[Vehicle Stock],Vehicle_Projections[Year],Calculations!AD$4, Vehicle_Projections[[ Technology Type]], $B22, Vehicle_Projections[Vehicle Type], $A22, Vehicle_Projections[Scenario], Input_Scenario_Modeled) -> 0.474739 | AE22: =SUMIFS(Vehicle_Projections[Vehicle Stock],Vehicle_Projections[Year],Calculations!AE$4, Vehicle_Projections[[ Technology Type]], $B22, Vehicle_Projections[Vehicle Type], $A22, Vehicle_Projections[Scenario], Input_Scenario_Modeled) -> 0.48487 | AF22: =SUMIFS(Vehicle_Projections[Vehicle Stock],Vehicle_Projections[Year],Calculations!AF$4, Vehicle_Projections[[ Technology Type]], $B22, Vehicle_Projections[Vehicle Type], $A22, Vehicle_Projections[Scenario], Input_Scenario_Modeled) -> 0.494231 | AG22: =SUMIFS(Vehicle_Projections[Vehicle Stock],Vehicle_Projections[Year],Calculations!AG$4, Vehicle_Projections[[ Technology Type]], $B22, Vehicle_Projections[Vehicle Type], $A22, Vehicle_Projections[Scenario], Input_Scenario_Modeled) -> 0.50279 | AH22: =SUMIFS(Vehicle_Projections[Vehicle Stock],Vehicle_Projections[Year],Calculations!AH$4, Vehicle_Projections[[ Technology Type]], $B22, Vehicle_Projections[Vehicle Type], $A22, Vehicle_Projections[Scenario], Input_Scenario_Modeled) -> 0.510604 | AI22: =SUMIFS(Vehicle_Projections[Vehicle Stock],Vehicle_Projections[Year],Calculations!AI$4, Vehicle_Projections[[ Technology Type]], $B22, Vehicle_Projections[Vehicle Type], $A22, Vehicle_Projections[Scenario], Input_Scenario_Modeled) -> 0.517805 | AJ22: =SUMIFS(Vehicle_Projections[Vehicle Stock],Vehicle_Projections[Year],Calculations!AJ$4, Vehicle_Projections[[ Technology Type]], $B22, Vehicle_Projections[Vehicle Type], $A22, Vehicle_Projections[Scenario], Input_Scenario_Modeled) -> 0.524536 | AK22: =SUMIFS(Vehicle_Projections[Vehicle Stock],Vehicle_Projections[Year],Calculations!AK$4, Vehicle_Projections[[ Technology Type]], $B22, Vehicle_Projections[Vehicle Type], $A22, Vehicle_Projections[Scenario], Input_Scenario_Modeled) -> 0.530819 | AL22: =SUMIFS(Vehicle_Projections[Vehicle Stock],Vehicle_Projections[Year],Calculations!AL$4, Vehicle_Projections[[ Technology Type]], $B22, Vehicle_Projections[Vehicle Type], $A22, Vehicle_Projections[Scenario], Input_Scenario_Modeled) -> 0.536774
A23: Light Trucks | B23: Plug-in 10 Gasoline Hybrid | C23: Electricity | D23: Stock | E23: =SUMIFS(Vehicle_Projections[Vehicle Stock],Vehicle_Projections[Year],Calculations!E$4, Vehicle_Projections[[ Technology Type]], $B23, Vehicle_Projections[Vehicle Type], $A23, Vehicle_Projections[Scenario], Input_Scenario_Modeled) -> 0.025121 | F23: =SUMIFS(Vehicle_Projections[Vehicle Stock],Vehicle_Projections[Year],Calculations!F$4, Vehicle_Projections[[ Technology Type]], $B23, Vehicle_Projections[Vehicle Type], $A23, Vehicle_Projections[Scenario], Input_Scenario_Modeled) -> 0.049594 | G23: =SUMIFS(Vehicle_Projections[Vehicle Stock],Vehicle_Projections[Year],Calculations!G$4, Vehicle_Projections[[ Technology Type]], $B23, Vehicle_Projections[Vehicle Type], $A23, Vehicle_Projections[Scenario], Input_Scenario_Modeled) -> 0.082252 | H23: =SUMIFS(Vehicle_Projections[Vehicle Stock],Vehicle_Projections[Year],Calculations!H$4, Vehicle_Projections[[ Technology Type]], $B23, Vehicle_Projections[Vehicle Type], $A23, Vehicle_Projections[Scenario], Input_Scenario_Modeled) -> 0.119889 | I23: =SUMIFS(Vehicle_Projections[Vehicle Stock],Vehicle_Projections[Year],Calculations!I$4, Vehicle_Projections[[ Technology Type]], $B23, Vehicle_Projections[Vehicle Type], $A23, Vehicle_Projections[Scenario], Input_Scenario_Modeled) -> 0.17269 | J23: =SUMIFS(Vehicle_Projections[Vehicle Stock],Vehicle_Projections[Year],Calculations!J$4, Vehicle_Projections[[ Technology Type]], $B23, Vehicle_Projections[Vehicle Type], $A23, Vehicle_Projections[Scenario], Input_Scenario_Modeled) -> 0.232925 | K23: =SUMIFS(Vehicle_Projections[Vehicle Stock],Vehicle_Projections[Year],Calculations!K$4, Vehicle_Projections[[ Technology Type]], $B23, Vehicle_Projections[Vehicle Type], $A23, Vehicle_Projections[Scenario], Input_Scenario_Modeled) -> 0.296285 | L23: =SUMIFS(Vehicle_Projections[Vehicle Stock],Vehicle_Projections[Year],Calculations!L$4, Vehicle_Projections[[ Technology Type]], $B23, Vehicle_Projections[Vehicle Type], $A23, Vehicle_Projections[Scenario], Input_Scenario_Modeled) -> 0.362306 | M23: =SUMIFS(Vehicle_Projections[Vehicle Stock],Vehicle_Projections[Year],Calculations!M$4, Vehicle_Projections[[ Technology Type]], $B23, Vehicle_Projections[Vehicle Type], $A23, Vehicle_Projections[Scenario], Input_Scenario_Modeled) -> 0.432146 | N23: =SUMIFS(Vehicle_Projections[Vehicle Stock],Vehicle_Projections[Year],Calculations!N$4, Vehicle_Projections[[ Technology Type]], $B23, Vehicle_Projections[Vehicle Type], $A23, Vehicle_Projections[Scenario], Input_Scenario_Modeled) -> 0.500502 | O23: =SUMIFS(Vehicle_Projections[Vehicle Stock],Vehicle_Projections[Year],Calculations!O$4, Vehicle_Projections[[ Technology Type]], $B23, Vehicle_Projections[Vehicle Type], $A23, Vehicle_Projections[Scenario], Input_Scenario_Modeled) -> 0.566867 | P23: =SUMIFS(Vehicle_Projections[Vehicle Stock],Vehicle_Projections[Year],Calculations!P$4, Vehicle_Projections[[ Technology Type]], $B23, Vehicle_Projections[Vehicle Type], $A23, Vehicle_Projections[Scenario], Input_Scenario_Modeled) -> 0.629824 | Q23: =SUMIFS(Vehicle_Projections[Vehicle Stock],Vehicle_Projections[Year],Calculations!Q$4, Vehicle_Projections[[ Technology Type]], $B23, Vehicle_Projections[Vehicle Type], $A23, Vehicle_Projections[Scenario], Input_Scenario_Modeled) -> 0.690987 | R23: =SUMIFS(Vehicle_Projections[Vehicle Stock],Vehicle_Projections[Year],Calculations!R$4, Vehicle_Projections[[ Technology Type]], $B23, Vehicle_Projections[Vehicle Type], $A23, Vehicle_Projections[Scenario], Input_Scenario_Modeled) -> 0.750032 | S23: =SUMIFS(Vehicle_Projections[Vehicle Stock],Vehicle_Projections[Year],Calculations!S$4, Vehicle_Projections[[ Technology Type]], $B23, Vehicle_Projections[Vehicle Type], $A23, Vehicle_Projections[Scenario], Input_Scenario_Modeled) -> 0.806795 | T23: =SUMIFS(Vehicle_Projections[Vehicle Stock],Vehicle_Projections[Year],Calculations!T$4, Vehicle_Projections[[ Technology Type]], $B23, Vehicle_Projections[Vehicle Type], $A23, Vehicle_Projections[Scenario], Input_Scenario_Modeled) -> 0.861263 | U23: =SUMIFS(Vehicle_Projections[Vehicle Stock],Vehicle_Projections[Year],Calculations!U$4, Vehicle_Projections[[ Technology Type]], $B23, Vehicle_Projections[Vehicle Type], $A23, Vehicle_Projections[Scenario], Input_Scenario_Modeled) -> 0.9135 | V23: =SUMIFS(Vehicle_Projections[Vehicle Stock],Vehicle_Projections[Year],Calculations!V$4, Vehicle_Projections[[ Technology Type]], $B23, Vehicle_Projections[Vehicle Type], $A23, Vehicle_Projections[Scenario], Input_Scenario_Modeled) -> 0.963907 | W23: =SUMIFS(Vehicle_Projections[Vehicle Stock],Vehicle_Projections[Year],Calculations!W$4, Vehicle_Projections[[ Technology Type]], $B23, Vehicle_Projections[Vehicle Type], $A23, Vehicle_Projections[Scenario], Input_Scenario_Modeled) -> 1.012438 | X23: =SUMIFS(Vehicle_Projections[Vehicle Stock],Vehicle_Projections[Year],Calculations!X$4, Vehicle_Projections[[ Technology Type]], $B23, Vehicle_Projections[Vehicle Type], $A23, Vehicle_Projections[Scenario], Input_Scenario_Modeled) -> 1.059738 | Y23: =SUMIFS(Vehicle_Projections[Vehicle Stock],Vehicle_Projections[Year],Calculations!Y$4, Vehicle_Projections[[ Technology Type]], $B23, Vehicle_Projections[Vehicle Type], $A23, Vehicle_Projections[Scenario], Input_Scenario_Modeled) -> 1.106577 | Z23: =SUMIFS(Vehicle_Projections[Vehicle Stock],Vehicle_Projections[Year],Calculations!Z$4, Vehicle_Projections[[ Technology Type]], $B23, Vehicle_Projections[Vehicle Type], $A23, Vehicle_Projections[Scenario], Input_Scenario_Modeled) -> 1.151102 | AA23: =SUMIFS(Vehicle_Projections[Vehicle Stock],Vehicle_Projections[Year],Calculations!AA$4, Vehicle_Projections[[ Technology Type]], $B23, Vehicle_Projections[Vehicle Type], $A23, Vehicle_Projections[Scenario], Input_Scenario_Modeled) -> 1.195494 | AB23: =SUMIFS(Vehicle_Projections[Vehicle Stock],Vehicle_Projections[Year],Calculations!AB$4, Vehicle_Projections[[ Technology Type]], $B23, Vehicle_Projections[Vehicle Type], $A23, Vehicle_Projections[Scenario], Input_Scenario_Modeled) -> 1.240289 | AC23: =SUMIFS(Vehicle_Projections[Vehicle Stock],Vehicle_Projections[Year],Calculations!AC$4, Vehicle_Projections[[ Technology Type]], $B23, Vehicle_Projections[Vehicle Type], $A23, Vehicle_Projections[Scenario], Input_Scenario_Modeled) -> 1.285596 | AD23: =SUMIFS(Vehicle_Projections[Vehicle Stock],Vehicle_Projections[Year],Calculations!AD$4, Vehicle_Projections[[ Technology Type]], $B23, Vehicle_Projections[Vehicle Type], $A23, Vehicle_Projections[Scenario], Input_Scenario_Modeled) -> 1.331576 | AE23: =SUMIFS(Vehicle_Projections[Vehicle Stock],Vehicle_Projections[Year],Calculations!AE$4, Vehicle_Projections[[ Technology Type]], $B23, Vehicle_Projections[Vehicle Type], $A23, Vehicle_Projections[Scenario], Input_Scenario_Modeled) -> 1.378832 | AF23: =SUMIFS(Vehicle_Projections[Vehicle Stock],Vehicle_Projections[Year],Calculations!AF$4, Vehicle_Projections[[ Technology Type]], $B23, Vehicle_Projections[Vehicle Type], $A23, Vehicle_Projections[Scenario], Input_Scenario_Modeled) -> 1.428152 | AG23: =SUMIFS(Vehicle_Projections[Vehicle Stock],Vehicle_Projections[Year],Calculations!AG$4, Vehicle_Projections[[ Technology Type]], $B23, Vehicle_Projections[Vehicle Type], $A23, Vehicle_Projections[Scenario], Input_Scenario_Modeled) -> 1.479411 | AH23: =SUMIFS(Vehicle_Projections[Vehicle Stock],Vehicle_Projections[Year],Calculations!AH$4, Vehicle_Projections[[ Technology Type]], $B23, Vehicle_Projections[Vehicle Type], $A23, Vehicle_Projections[Scenario], Input_Scenario_Modeled) -> 1.533245 | AI23: =SUMIFS(Vehicle_Projections[Vehicle Stock],Vehicle_Projections[Year],Calculations!AI$4, Vehicle_Projections[[ Technology Type]], $B23, Vehicle_Projections[Vehicle Type], $A23, Vehicle_Projections[Scenario], Input_Scenario_Modeled) -> 1.590075 | AJ23: =SUMIFS(Vehicle_Projections[Vehicle Stock],Vehicle_Projections[Year],Calculations!AJ$4, Vehicle_Projections[[ Technology Type]], $B23, Vehicle_Projections[Vehicle Type], $A23, Vehicle_Projections[Scenario], Input_Scenario_Modeled) -> 1.650259 | AK23: =SUMIFS(Vehicle_Projections[Vehicle Stock],Vehicle_Projections[Year],Calculations!AK$4, Vehicle_Projections[[ Technology Type]], $B23, Vehicle_Projections[Vehicle Type], $A23, Vehicle_Projections[Scenario], Input_Scenario_Modeled) -> 1.714203 | AL23: =SUMIFS(Vehicle_Projections[Vehicle Stock],Vehicle_Projections[Year],Calculations!AL$4, Vehicle_Projections[[ Technology Type]], $B23, Vehicle_Projections[Vehicle Type], $A23, Vehicle_Projections[Scenario], Input_Scenario_Modeled) -> 1.782442
A24: Light Trucks | B24: Plug-in 40 Gasoline Hybrid | C24: Electricity | D24: Stock | E24: =SUMIFS(Vehicle_Projections[Vehicle Stock],Vehicle_Projections[Year],Calculations!E$4, Vehicle_Projections[[ Technology Type]], $B24, Vehicle_Projections[Vehicle Type], $A24, Vehicle_Projections[Scenario], Input_Scenario_Modeled) -> 0.007578 | F24: =SUMIFS(Vehicle_Projections[Vehicle Stock],Vehicle_Projections[Year],Calculations!F$4, Vehicle_Projections[[ Technology Type]], $B24, Vehicle_Projections[Vehicle Type], $A24, Vehicle_Projections[Scenario], Input_Scenario_Modeled) -> 0.022682 | G24: =SUMIFS(Vehicle_Projections[Vehicle Stock],Vehicle_Projections[Year],Calculations!G$4, Vehicle_Projections[[ Technology Type]], $B24, Vehicle_Projections[Vehicle Type], $A24, Vehicle_Projections[Scenario], Input_Scenario_Modeled) -> 0.042734 | H24: =SUMIFS(Vehicle_Projections[Vehicle Stock],Vehicle_Projections[Year],Calculations!H$4, Vehicle_Projections[[ Technology Type]], $B24, Vehicle_Projections[Vehicle Type], $A24, Vehicle_Projections[Scenario], Input_Scenario_Modeled) -> 0.066282 | I24: =SUMIFS(Vehicle_Projections[Vehicle Stock],Vehicle_Projections[Year],Calculations!I$4, Vehicle_Projections[[ Technology Type]], $B24, Vehicle_Projections[Vehicle Type], $A24, Vehicle_Projections[Scenario], Input_Scenario_Modeled) -> 0.09864 | J24: =SUMIFS(Vehicle_Projections[Vehicle Stock],Vehicle_Projections[Year],Calculations!J$4, Vehicle_Projections[[ Technology Type]], $B24, Vehicle_Projections[Vehicle Type], $A24, Vehicle_Projections[Scenario], Input_Scenario_Modeled) -> 0.135015 | K24: =SUMIFS(Vehicle_Projections[Vehicle Stock],Vehicle_Projections[Year],Calculations!K$4, Vehicle_Projections[[ Technology Type]], $B24, Vehicle_Projections[Vehicle Type], $A24, Vehicle_Projections[Scenario], Input_Scenario_Modeled) -> 0.172974 | L24: =SUMIFS(Vehicle_Projections[Vehicle Stock],Vehicle_Projections[Year],Calculations!L$4, Vehicle_Projections[[ Technology Type]], $B24, Vehicle_Projections[Vehicle Type], $A24, Vehicle_Projections[Scenario], Input_Scenario_Modeled) -> 0.212365 | M24: =SUMIFS(Vehicle_Projections[Vehicle Stock],Vehicle_Projections[Year],Calculations!M$4, Vehicle_Projections[[ Technology Type]], $B24, Vehicle_Projections[Vehicle Type], $A24, Vehicle_Projections[Scenario], Input_Scenario_Modeled) -> 0.25395 | N24: =SUMIFS(Vehicle_Projections[Vehicle Stock],Vehicle_Projections[Year],Calculations!N$4, Vehicle_Projections[[ Technology Type]], $B24, Vehicle_Projections[Vehicle Type], $A24, Vehicle_Projections[Scenario], Input_Scenario_Modeled) -> 0.294536 | O24: =SUMIFS(Vehicle_Projections[Vehicle Stock],Vehicle_Projections[Year],Calculations!O$4, Vehicle_Projections[[ Technology Type]], $B24, Vehicle_Projections[Vehicle Type], $A24, Vehicle_Projections[Scenario], Input_Scenario_Modeled) -> 0.333853 | P24: =SUMIFS(Vehicle_Projections[Vehicle Stock],Vehicle_Projections[Year],Calculations!P$4, Vehicle_Projections[[ Technology Type]], $B24, Vehicle_Projections[Vehicle Type], $A24, Vehicle_Projections[Scenario], Input_Scenario_Modeled) -> 0.370999 | Q24: =SUMIFS(Vehicle_Projections[Vehicle Stock],Vehicle_Projections[Year],Calculations!Q$4, Vehicle_Projections[[ Technology Type]], $B24, Vehicle_Projections[Vehicle Type], $A24, Vehicle_Projections[Scenario], Input_Scenario_Modeled) -> 0.406912 | R24: =SUMIFS(Vehicle_Projections[Vehicle Stock],Vehicle_Projections[Year],Calculations!R$4, Vehicle_Projections[[ Technology Type]], $B24, Vehicle_Projections[Vehicle Type], $A24, Vehicle_Projections[Scenario], Input_Scenario_Modeled) -> 0.441305 | S24: =SUMIFS(Vehicle_Projections[Vehicle Stock],Vehicle_Projections[Year],Calculations!S$4, Vehicle_Projections[[ Technology Type]], $B24, Vehicle_Projections[Vehicle Type], $A24, Vehicle_Projections[Scenario], Input_Scenario_Modeled) -> 0.473907 | T24: =SUMIFS(Vehicle_Projections[Vehicle Stock],Vehicle_Projections[Year],Calculations!T$4, Vehicle_Projections[[ Technology Type]], $B24, Vehicle_Projections[Vehicle Type], $A24, Vehicle_Projections[Scenario], Input_Scenario_Modeled) -> 0.504603 | U24: =SUMIFS(Vehicle_Projections[Vehicle Stock],Vehicle_Projections[Year],Calculations!U$4, Vehicle_Projections[[ Technology Type]], $B24, Vehicle_Projections[Vehicle Type], $A24, Vehicle_Projections[Scenario], Input_Scenario_Modeled) -> 0.533447 | V24: =SUMIFS(Vehicle_Projections[Vehicle Stock],Vehicle_Projections[Year],Calculations!V$4, Vehicle_Projections[[ Technology Type]], $B24, Vehicle_Projections[Vehicle Type], $A24, Vehicle_Projections[Scenario], Input_Scenario_Modeled) -> 0.560693 | W24: =SUMIFS(Vehicle_Projections[Vehicle Stock],Vehicle_Projections[Year],Calculations!W$4, Vehicle_Projections[[ Technology Type]], $B24, Vehicle_Projections[Vehicle Type], $A24, Vehicle_Projections[Scenario], Input_Scenario_Modeled) -> 0.586273 | X24: =SUMIFS(Vehicle_Projections[Vehicle Stock],Vehicle_Projections[Year],Calculations!X$4, Vehicle_Projections[[ Technology Type]], $B24, Vehicle_Projections[Vehicle Type], $A24, Vehicle_Projections[Scenario], Input_Scenario_Modeled) -> 0.61053 | Y24: =SUMIFS(Vehicle_Projections[Vehicle Stock],Vehicle_Projections[Year],Calculations!Y$4, Vehicle_Projections[[ Technology Type]], $B24, Vehicle_Projections[Vehicle Type], $A24, Vehicle_Projections[Scenario], Input_Scenario_Modeled) -> 0.633866 | Z24: =SUMIFS(Vehicle_Projections[Vehicle Stock],Vehicle_Projections[Year],Calculations!Z$4, Vehicle_Projections[[ Technology Type]], $B24, Vehicle_Projections[Vehicle Type], $A24, Vehicle_Projections[Scenario], Input_Scenario_Modeled) -> 0.655196 | AA24: =SUMIFS(Vehicle_Projections[Vehicle Stock],Vehicle_Projections[Year],Calculations!AA$4, Vehicle_Projections[[ Technology Type]], $B24, Vehicle_Projections[Vehicle Type], $A24, Vehicle_Projections[Scenario], Input_Scenario_Modeled) -> 0.675623 | AB24: =SUMIFS(Vehicle_Projections[Vehicle Stock],Vehicle_Projections[Year],Calculations!AB$4, Vehicle_Projections[[ Technology Type]], $B24, Vehicle_Projections[Vehicle Type], $A24, Vehicle_Projections[Scenario], Input_Scenario_Modeled) -> 0.695525 | AC24: =SUMIFS(Vehicle_Projections[Vehicle Stock],Vehicle_Projections[Year],Calculations!AC$4, Vehicle_Projections[[ Technology Type]], $B24, Vehicle_Projections[Vehicle Type], $A24, Vehicle_Projections[Scenario], Input_Scenario_Modeled) -> 0.714875 | AD24: =SUMIFS(Vehicle_Projections[Vehicle Stock],Vehicle_Projections[Year],Calculations!AD$4, Vehicle_Projections[[ Technology Type]], $B24, Vehicle_Projections[Vehicle Type], $A24, Vehicle_Projections[Scenario], Input_Scenario_Modeled) -> 0.733798 | AE24: =SUMIFS(Vehicle_Projections[Vehicle Stock],Vehicle_Projections[Year],Calculations!AE$4, Vehicle_Projections[[ Technology Type]], $B24, Vehicle_Projections[Vehicle Type], $A24, Vehicle_Projections[Scenario], Input_Scenario_Modeled) -> 0.752582 | AF24: =SUMIFS(Vehicle_Projections[Vehicle Stock],Vehicle_Projections[Year],Calculations!AF$4, Vehicle_Projections[[ Technology Type]], $B24, Vehicle_Projections[Vehicle Type], $A24, Vehicle_Projections[Scenario], Input_Scenario_Modeled) -> 0.771576 | AG24: =SUMIFS(Vehicle_Projections[Vehicle Stock],Vehicle_Projections[Year],Calculations!AG$4, Vehicle_Projections[[ Technology Type]], $B24, Vehicle_Projections[Vehicle Type], $A24, Vehicle_Projections[Scenario], Input_Scenario_Modeled) -> 0.790698 | AH24: =SUMIFS(Vehicle_Projections[Vehicle Stock],Vehicle_Projections[Year],Calculations!AH$4, Vehicle_Projections[[ Technology Type]], $B24, Vehicle_Projections[Vehicle Type], $A24, Vehicle_Projections[Scenario], Input_Scenario_Modeled) -> 0.810149 | AI24: =SUMIFS(Vehicle_Projections[Vehicle Stock],Vehicle_Projections[Year],Calculations!AI$4, Vehicle_Projections[[ Technology Type]], $B24, Vehicle_Projections[Vehicle Type], $A24, Vehicle_Projections[Scenario], Input_Scenario_Modeled) -> 0.830216 | AJ24: =SUMIFS(Vehicle_Projections[Vehicle Stock],Vehicle_Projections[Year],Calculations!AJ$4, Vehicle_Projections[[ Technology Type]], $B24, Vehicle_Projections[Vehicle Type], $A24, Vehicle_Projections[Scenario], Input_Scenario_Modeled) -> 0.851125 | AK24: =SUMIFS(Vehicle_Projections[Vehicle Stock],Vehicle_Projections[Year],Calculations!AK$4, Vehicle_Projections[[ Technology Type]], $B24, Vehicle_Projections[Vehicle Type], $A24, Vehicle_Projections[Scenario], Input_Scenario_Modeled) -> 0.872993 | AL24: =SUMIFS(Vehicle_Projections[Vehicle Stock],Vehicle_Projections[Year],Calculations!AL$4, Vehicle_Projections[[ Technology Type]], $B24, Vehicle_Projections[Vehicle Type], $A24, Vehicle_Projections[Scenario], Input_Scenario_Modeled) -> 0.896106
A26: Passenger Cars | B26: Other Alternative Fuel Vehicles | C26: None | D26: Stock | E26: =SUMIFS(Vehicle_Projections[Vehicle Stock],Vehicle_Projections[Year],Calculations!E$4, Vehicle_Projections[Vehicle Type], $A26, Vehicle_Projections[[ Technology Type]], "Natural Gas ICE", Vehicle_Projections[Scenario], Input_Scenario_Modeled)+ SUMIFS(Vehicle_Projections[Vehicle Stock],Vehicle_Projections[Year],Calculations!E$4, Vehicle_Projections[Vehicle Type], $A26, Vehicle_Projections[[ Technology Type]], "Natural Gas Bi-fuel", Vehicle_Projections[Scenario], Input_Scenario_Modeled)+ SUMIFS(Vehicle_Projections[Vehicle Stock],Vehicle_Projections[Year],Calculations!E$4, Vehicle_Projections[Vehicle Type], $A26, Vehicle_Projections[[ Technology Type]], "Propane ICE", Vehicle_Projections[Scenario], Input_Scenario_Modeled)+ SUMIFS(Vehicle_Projections[Vehicle Stock],Vehicle_Projections[Year],Calculations!E$4, Vehicle_Projections[Vehicle Type], $A26, Vehicle_Projections[[ Technology Type]], "Propane Bi-fuel", Vehicle_Projections[Scenario], Input_Scenario_Modeled)+ SUMIFS(Vehicle_Projections[Vehicle Stock],Vehicle_Projections[Year],Calculations!E$4, Vehicle_Projections[Vehicle Type], $A26, Vehicle_Projections[[ Technology Type]], "Fuel Cell Methanol", Vehicle_Projections[Scenario], Input_Scenario_Modeled)+ SUMIFS(Vehicle_Projections[Vehicle Stock],Vehicle_Projections[Year],Calculations!E$4, Vehicle_Projections[Vehicle Type], $A26, Vehicle_Projections[[ Technology Type]], "Fuel Cell Hydrogen", Vehicle_Projections[Scenario], Input_Scenario_Modeled) -> 0.094317 | F26: =SUMIFS(Vehicle_Projections[Vehicle Stock],Vehicle_Projections[Year],Calculations!F$4, Vehicle_Projections[Vehicle Type], $A26, Vehicle_Projections[[ Technology Type]], "Natural Gas ICE", Vehicle_Projections[Scenario], Input_Scenario_Modeled)+ SUMIFS(Vehicle_Projections[Vehicle Stock],Vehicle_Projections[Year],Calculations!F$4, Vehicle_Projections[Vehicle Type], $A26, Vehicle_Projections[[ Technology Type]], "Natural Gas Bi-fuel", Vehicle_Projections[Scenario], Input_Scenario_Modeled)+ SUMIFS(Vehicle_Projections[Vehicle Stock],Vehicle_Projections[Year],Calculations!F$4, Vehicle_Projections[Vehicle Type], $A26, Vehicle_Projections[[ Technology Type]], "Propane ICE", Vehicle_Projections[Scenario], Input_Scenario_Modeled)+ SUMIFS(Vehicle_Projections[Vehicle Stock],Vehicle_Projections[Year],Calculations!F$4, Vehicle_Projections[Vehicle Type], $A26, Vehicle_Projections[[ Technology Type]], "Propane Bi-fuel", Vehicle_Projections[Scenario], Input_Scenario_Modeled)+ SUMIFS(Vehicle_Projections[Vehicle Stock],Vehicle_Projections[Year],Calculations!F$4, Vehicle_Projections[Vehicle Type], $A26, Vehicle_Projections[[ Technology Type]], "Fuel Cell Methanol", Vehicle_Projections[Scenario], Input_Scenario_Modeled)+ SUMIFS(Vehicle_Projections[Vehicle Stock],Vehicle_Projections[Year],Calculations!F$4, Vehicle_Projections[Vehicle Type], $A26, Vehicle_Projections[[ Technology Type]], "Fuel Cell Hydrogen", Vehicle_Projections[Scenario], Input_Scenario_Modeled) -> 0.090424 | G26: =SUMIFS(Vehicle_Projections[Vehicle Stock],Vehicle_Projections[Year],Calculations!G$4, Vehicle_Projections[Vehicle Type], $A26, Vehicle_Projections[[ Technology Type]], "Natural Gas ICE", Vehicle_Projections[Scenario], Input_Scenario_Modeled)+ SUMIFS(Vehicle_Projections[Vehicle Stock],Vehicle_Projections[Year],Calculations!G$4, Vehicle_Projections[Vehicle Type], $A26, Vehicle_Projections[[ Technology Type]], "Natural Gas Bi-fuel", Vehicle_Projections[Scenario], Input_Scenario_Modeled)+ SUMIFS(Vehicle_Projections[Vehicle Stock],Vehicle_Projections[Year],Calculations!G$4, Vehicle_Projections[Vehicle Type], $A26, Vehicle_Projections[[ Technology Type]], "Propane ICE", Vehicle_Projections[Scenario], Input_Scenario_Modeled)+ SUMIFS(Vehicle_Projections[Vehicle Stock],Vehicle_Projections[Year],Calculations!G$4, Vehicle_Projections[Vehicle Type], $A26, Vehicle_Projections[[ Technology Type]], "Propane Bi-fuel", Vehicle_Projections[Scenario], Input_Scenario_Modeled)+ SUMIFS(Vehicle_Projections[Vehicle Stock],Vehicle_Projections[Year],Calculations!G$4, Vehicle_Projections[Vehicle Type], $A26, Vehicle_Projections[[ Technology Type]], "Fuel Cell Methanol", Vehicle_Projections[Scenario], Input_Scenario_Modeled)+ SUMIFS(Vehicle_Projections[Vehicle Stock],Vehicle_Projections[Year],Calculations!G$4, Vehicle_Projections[Vehicle Type], $A26, Vehicle_Projections[[ Technology Type]], "Fuel Cell Hydrogen", Vehicle_Projections[Scenario], Input_Scenario_Modeled) -> 0.088891 | H26: =SUMIFS(Vehicle_Projections[Vehicle Stock],Vehicle_Projections[Year],Calculations!H$4, Vehicle_Projections[Vehicle Type], $A26, Vehicle_Projections[[ Technology Type]], "Natural Gas ICE", Vehicle_Projections[Scenario], Input_Scenario_Modeled)+ SUMIFS(Vehicle_Projections[Vehicle Stock],Vehicle_Projections[Year],Calculations!H$4, Vehicle_Projections[Vehicle Type], $A26, Vehicle_Projections[[ Technology Type]], "Natural Gas Bi-fuel", Vehicle_Projections[Scenario], Input_Scenario_Modeled)+ SUMIFS(Vehicle_Projections[Vehicle Stock],Vehicle_Projections[Year],Calculations!H$4, Vehicle_Projections[Vehicle Type], $A26, Vehicle_Projections[[ Technology Type]], "Propane ICE", Vehicle_Projections[Scenario], Input_Scenario_Modeled)+ SUMIFS(Vehicle_Projections[Vehicle Stock],Vehicle_Projections[Year],Calculations!H$4, Vehicle_Projections[Vehicle Type], $A26, Vehicle_Projections[[ Technology Type]], "Propane Bi-fuel", Vehicle_Projections[Scenario], Input_Scenario_Modeled)+ SUMIFS(Vehicle_Projections[Vehicle Stock],Vehicle_Projections[Year],Calculations!H$4, Vehicle_Projections[Vehicle Type], $A26, Vehicle_Projections[[ Technology Type]], "Fuel Cell Methanol", Vehicle_Projections[Scenario], Input_Scenario_Modeled)+ SUMIFS(Vehicle_Projections[Vehicle Stock],Vehicle_Projections[Year],Calculations!H$4, Vehicle_Projections[Vehicle Type], $A26, Vehicle_Projections[[ Technology Type]], "Fuel Cell Hydrogen", Vehicle_Projections[Scenario], Input_Scenario_Modeled) -> 0.094701 | I26: =SUMIFS(Vehicle_Projections[Vehicle Stock],Vehicle_Projections[Year],Calculations!I$4, Vehicle_Projections[Vehicle Type], $A26, Vehicle_Projections[[ Technology Type]], "Natural Gas ICE", Vehicle_Projections[Scenario], Input_Scenario_Modeled)+ SUMIFS(Vehicle_Projections[Vehicle Stock],Vehicle_Projections[Year],Calculations!I$4, Vehicle_Projections[Vehicle Type], $A26, Vehicle_Projections[[ Technology Type]], "Natural Gas Bi-fuel", Vehicle_Projections[Scenario], Input_Scenario_Modeled)+ SUMIFS(Vehicle_Projections[Vehicle Stock],Vehicle_Projections[Year],Calculations!I$4, Vehicle_Projections[Vehicle Type], $A26, Vehicle_Projections[[ Technology Type]], "Propane ICE", Vehicle_Projections[Scenario], Input_Scenario_Modeled)+ SUMIFS(Vehicle_Projections[Vehicle Stock],Vehicle_Projections[Year],Calculations!I$4, Vehicle_Projections[Vehicle Type], $A26, Vehicle_Projections[[ Technology Type]], "Propane Bi-fuel", Vehicle_Projections[Scenario], Input_Scenario_Modeled)+ SUMIFS(Vehicle_Projections[Vehicle Stock],Vehicle_Projections[Year],Calculations!I$4, Vehicle_Projections[Vehicle Type], $A26, Vehicle_Projections[[ Technology Type]], "Fuel Cell Methanol", Vehicle_Projections[Scenario], Input_Scenario_Modeled)+ SUMIFS(Vehicle_Projections[Vehicle Stock],Vehicle_Projections[Year],Calculations!I$4, Vehicle_Projections[Vehicle Type], $A26, Vehicle_Projections[[ Technology Type]], "Fuel Cell Hydrogen", Vehicle_Projections[Scenario], Input_Scenario_Modeled) -> 0.108185 | J26: =SUMIFS(Vehicle_Projections[Vehicle Stock],Vehicle_Projections[Year],Calculations!J$4, Vehicle_Projections[Vehicle Type], $A26, Vehicle_Projections[[ Technology Type]], "Natural Gas ICE", Vehicle_Projections[Scenario], Input_Scenario_Modeled)+ SUMIFS(Vehicle_Projections[Vehicle Stock],Vehicle_Projections[Year],Calculations!J$4, Vehicle_Projections[Vehicle Type], $A26, Vehicle_Projections[[ Technology Type]], "Natural Gas Bi-fuel", Vehicle_Projections[Scenario], Input_Scenario_Modeled)+ SUMIFS(Vehicle_Projections[Vehicle Stock],Vehicle_Projections[Year],Calculations!J$4, Vehicle_Projections[Vehicle Type], $A26, Vehicle_Projections[[ Technology Type]], "Propane ICE", Vehicle_Projections[Scenario], Input_Scenario_Modeled)+ SUMIFS(Vehicle_Projections[Vehicle Stock],Vehicle_Projections[Year],Calculations!J$4, Vehicle_Projections[Vehicle Type], $A26, Vehicle_Projections[[ Technology Type]], "Propane Bi-fuel", Vehicle_Projections[Scenario], Input_Scenario_Modeled)+ SUMIFS(Vehicle_Projections[Vehicle Stock],Vehicle_Projections[Year],Calculations!J$4, Vehicle_Projections[Vehicle Type], $A26, Vehicle_Projections[[ Technology Type]], "Fuel Cell Methanol", Vehicle_Projections[Scenario], Input_Scenario_Modeled)+ SUMIFS(Vehicle_Projections[Vehicle Stock],Vehicle_Projections[Year],Calculations!J$4, Vehicle_Projections[Vehicle Type], $A26, Vehicle_Projections[[ Technology Type]], "Fuel Cell Hydrogen", Vehicle_Projections[Scenario], Input_Scenario_Modeled) -> 0.128574 | K26: =SUMIFS(Vehicle_Projections[Vehicle Stock],Vehicle_Projections[Year],Calculations!K$4, Vehicle_Projections[Vehicle Type], $A26, Vehicle_Projections[[ Technology Type]], "Natural Gas ICE", Vehicle_Projections[Scenario], Input_Scenario_Modeled)+ SUMIFS(Vehicle_Projections[Vehicle Stock],Vehicle_Projections[Year],Calculations!K$4, Vehicle_Projections[Vehicle Type], $A26, Vehicle_Projections[[ Technology Type]], "Natural Gas Bi-fuel", Vehicle_Projections[Scenario], Input_Scenario_Modeled)+ SUMIFS(Vehicle_Projections[Vehicle Stock],Vehicle_Projections[Year],Calculations!K$4, Vehicle_Projections[Vehicle Type], $A26, Vehicle_Projections[[ Technology Type]], "Propane ICE", Vehicle_Projections[Scenario], Input_Scenario_Modeled)+ SUMIFS(Vehicle_Projections[Vehicle Stock],Vehicle_Projections[Year],Calculations!K$4, Vehicle_Projections[Vehicle Type], $A26, Vehicle_Projections[[ Technology Type]], "Propane Bi-fuel", Vehicle_Projections[Scenario], Input_Scenario_Modeled)+ SUMIFS(Vehicle_Projections[Vehicle Stock],Vehicle_Projections[Year],Calculations!K$4, Vehicle_Projections[Vehicle Type], $A26, Vehicle_Projections[[ Technology Type]], "Fuel Cell Methanol", Vehicle_Projections[Scenario], Input_Scenario_Modeled)+ SUMIFS(Vehicle_Projections[Vehicle Stock],Vehicle_Projections[Year],Calculations!K$4, Vehicle_Projections[Vehicle Type], $A26, Vehicle_Projections[[ Technology Type]], "Fuel Cell Hydrogen", Vehicle_Projections[Scenario], Input_Scenario_Modeled) -> 0.149981 | L26: =SUMIFS(Vehicle_Projections[Vehicle Stock],Vehicle_Projections[Year],Calculations!L$4, Vehicle_Projections[Vehicle Type], $A26, Vehicle_Projections[[ Technology Type]], "Natural Gas ICE", Vehicle_Projections[Scenario], Input_Scenario_Modeled)+ SUMIFS(Vehicle_Projections[Vehicle Stock],Vehicle_Projections[Year],Calculations!L$4, Vehicle_Projections[Vehicle Type], $A26, Vehicle_Projections[[ Technology Type]], "Natural Gas Bi-fuel", Vehicle_Projections[Scenario], Input_Scenario_Modeled)+ SUMIFS(Vehicle_Projections[Vehicle Stock],Vehicle_Projections[Year],Calculations!L$4, Vehicle_Projections[Vehicle Type], $A26, Vehicle_Projections[[ Technology Type]], "Propane ICE", Vehicle_Projections[Scenario], Input_Scenario_Modeled)+ SUMIFS(Vehicle_Projections[Vehicle Stock],Vehicle_Projections[Year],Calculations!L$4, Vehicle_Projections[Vehicle Type], $A26, Vehicle_Projections[[ Technology Type]], "Propane Bi-fuel", Vehicle_Projections[Scenario], Input_Scenario_Modeled)+ SUMIFS(Vehicle_Projections[Vehicle Stock],Vehicle_Projections[Year],Calculations!L$4, Vehicle_Projections[Vehicle Type], $A26, Vehicle_Projections[[ Technology Type]], "Fuel Cell Methanol", Vehicle_Projections[Scenario], Input_Scenario_Modeled)+ SUMIFS(Vehicle_Projections[Vehicle Stock],Vehicle_Projections[Year],Calculations!L$4, Vehicle_Projections[Vehicle Type], $A26, Vehicle_Projections[[ Technology Type]], "Fuel Cell Hydrogen", Vehicle_Projections[Scenario], Input_Scenario_Modeled) -> 0.174149 | M26: =SUMIFS(Vehicle_Projections[Vehicle Stock],Vehicle_Projections[Year],Calculations!M$4, Vehicle_Projections[Vehicle Type], $A26, Vehicle_Projections[[ Technology Type]], "Natural Gas ICE", Vehicle_Projections[Scenario], Input_Scenario_Modeled)+ SUMIFS(Vehicle_Projections[Vehicle Stock],Vehicle_Projections[Year],Calculations!M$4, Vehicle_Projections[Vehicle Type], $A26, Vehicle_Projections[[ Technology Type]], "Natural Gas Bi-fuel", Vehicle_Projections[Scenario], Input_Scenario_Modeled)+ SUMIFS(Vehicle_Projections[Vehicle Stock],Vehicle_Projections[Year],Calculations!M$4, Vehicle_Projections[Vehicle Type], $A26, Vehicle_Projections[[ Technology Type]], "Propane ICE", Vehicle_Projections[Scenario], Input_Scenario_Modeled)+ SUMIFS(Vehicle_Projections[Vehicle Stock],Vehicle_Projections[Year],Calculations!M$4, Vehicle_Projections[Vehicle Type], $A26, Vehicle_Projections[[ Technology Type]], "Propane Bi-fuel", Vehicle_Projections[Scenario], Input_Scenario_Modeled)+ SUMIFS(Vehicle_Projections[Vehicle Stock],Vehicle_Projections[Year],Calculations!M$4, Vehicle_Projections[Vehicle Type], $A26, Vehicle_Projections[[ Technology Type]], "Fuel Cell Methanol", Vehicle_Projections[Scenario], Input_Scenario_Modeled)+ SUMIFS(Vehicle_Projections[Vehicle Stock],Vehicle_Projections[Year],Calculations!M$4, Vehicle_Projections[Vehicle Type], $A26, Vehicle_Projections[[ Technology Type]], "Fuel Cell Hydrogen", Vehicle_Projections[Scenario], Input_Scenario_Modeled) -> 0.200312 | N26: =SUMIFS(Vehicle_Projections[Vehicle Stock],Vehicle_Projections[Year],Calculations!N$4, Vehicle_Projections[Vehicle Type], $A26, Vehicle_Projections[[ Technology Type]], "Natural Gas ICE", Vehicle_Projections[Scenario], Input_Scenario_Modeled)+ SUMIFS(Vehicle_Projections[Vehicle Stock],Vehicle_Projections[Year],Calculations!N$4, Vehicle_Projections[Vehicle Type], $A26, Vehicle_Projections[[ Technology Type]], "Natural Gas Bi-fuel", Vehicle_Projections[Scenario], Input_Scenario_Modeled)+ SUMIFS(Vehicle_Projections[Vehicle Stock],Vehicle_Projections[Year],Calculations!N$4, Vehicle_Projections[Vehicle Type], $A26, Vehicle_Projections[[ Technology Type]], "Propane ICE", Vehicle_Projections[Scenario], Input_Scenario_Modeled)+ SUMIFS(Vehicle_Projections[Vehicle Stock],Vehicle_Projections[Year],Calculations!N$4, Vehicle_Projections[Vehicle Type], $A26, Vehicle_Projections[[ Technology Type]], "Propane Bi-fuel", Vehicle_Projections[Scenario], Input_Scenario_Modeled)+ SUMIFS(Vehicle_Projections[Vehicle Stock],Vehicle_Projections[Year],Calculations!N$4, Vehicle_Projections[Vehicle Type], $A26, Vehicle_Projections[[ Technology Type]], "Fuel Cell Methanol", Vehicle_Projections[Scenario], Input_Scenario_Modeled)+ SUMIFS(Vehicle_Projections[Vehicle Stock],Vehicle_Projections[Year],Calculations!N$4, Vehicle_Projections[Vehicle Type], $A26, Vehicle_Projections[[ Technology Type]], "Fuel Cell Hydrogen", Vehicle_Projections[Scenario], Input_Scenario_Modeled) -> 0.225982 | O26: =SUMIFS(Vehicle_Projections[Vehicle Stock],Vehicle_Projections[Year],Calculations!O$4, Vehicle_Projections[Vehicle Type], $A26, Vehicle_Projections[[ Technology Type]], "Natural Gas ICE", Vehicle_Projections[Scenario], Input_Scenario_Modeled)+ SUMIFS(Vehicle_Projections[Vehicle Stock],Vehicle_Projections[Year],Calculations!O$4, Vehicle_Projections[Vehicle Type], $A26, Vehicle_Projections[[ Technology Type]], "Natural Gas Bi-fuel", Vehicle_Projections[Scenario], Input_Scenario_Modeled)+ SUMIFS(Vehicle_Projections[Vehicle Stock],Vehicle_Projections[Year],Calculations!O$4, Vehicle_Projections[Vehicle Type], $A26, Vehicle_Projections[[ Technology Type]], "Propane ICE", Vehicle_Projections[Scenario], Input_Scenario_Modeled)+ SUMIFS(Vehicle_Projections[Vehicle Stock],Vehicle_Projections[Year],Calculations!O$4, Vehicle_Projections[Vehicle Type], $A26, Vehicle_Projections[[ Technology Type]], "Propane Bi-fuel", Vehicle_Projections[Scenario], Input_Scenario_Modeled)+ SUMIFS(Vehicle_Projections[Vehicle Stock],Vehicle_Projections[Year],Calculations!O$4, Vehicle_Projections[Vehicle Type], $A26, Vehicle_Projections[[ Technology Type]], "Fuel Cell Methanol", Vehicle_Projections[Scenario], Input_Scenario_Modeled)+ SUMIFS(Vehicle_Projections[Vehicle Stock],Vehicle_Projections[Year],Calculations!O$4, Vehicle_Projections[Vehicle Type], $A26, Vehicle_Projections[[ Technology Type]], "Fuel Cell Hydrogen", Vehicle_Projections[Scenario], Input_Scenario_Modeled) -> 0.251008 | P26: =SUMIFS(Vehicle_Projections[Vehicle Stock],Vehicle_Projections[Year],Calculations!P$4, Vehicle_Projections[Vehicle Type], $A26, Vehicle_Projections[[ Technology Type]], "Natural Gas ICE", Vehicle_Projections[Scenario], Input_Scenario_Modeled)+ SUMIFS(Vehicle_Projections[Vehicle Stock],Vehicle_Projections[Year],Calculations!P$4, Vehicle_Projections[Vehicle Type], $A26, Vehicle_Projections[[ Technology Type]], "Natural Gas Bi-fuel", Vehicle_Projections[Scenario], Input_Scenario_Modeled)+ SUMIFS(Vehicle_Projections[Vehicle Stock],Vehicle_Projections[Year],Calculations!P$4, Vehicle_Projections[Vehicle Type], $A26, Vehicle_Projections[[ Technology Type]], "Propane ICE", Vehicle_Projections[Scenario], Input_Scenario_Modeled)+ SUMIFS(Vehicle_Projections[Vehicle Stock],Vehicle_Projections[Year],Calculations!P$4, Vehicle_Projections[Vehicle Type], $A26, Vehicle_Projections[[ Technology Type]], "Propane Bi-fuel", Vehicle_Projections[Scenario], Input_Scenario_Modeled)+ SUMIFS(Vehicle_Projections[Vehicle Stock],Vehicle_Projections[Year],Calculations!P$4, Vehicle_Projections[Vehicle Type], $A26, Vehicle_Projections[[ Technology Type]], "Fuel Cell Methanol", Vehicle_Projections[Scenario], Input_Scenario_Modeled)+ SUMIFS(Vehicle_Projections[Vehicle Stock],Vehicle_Projections[Year],Calculations!P$4, Vehicle_Projections[Vehicle Type], $A26, Vehicle_Projections[[ Technology Type]], "Fuel Cell Hydrogen", Vehicle_Projections[Scenario], Input_Scenario_Modeled) -> 0.274032 | Q26: =SUMIFS(Vehicle_Projections[Vehicle Stock],Vehicle_Projections[Year],Calculations!Q$4, Vehicle_Projections[Vehicle Type], $A26, Vehicle_Projections[[ Technology Type]], "Natural Gas ICE", Vehicle_Projections[Scenario], Input_Scenario_Modeled)+ SUMIFS(Vehicle_Projections[Vehicle Stock],Vehicle_Projections[Year],Calculations!Q$4, Vehicle_Projections[Vehicle Type], $A26, Vehicle_Projections[[ Technology Type]], "Natural Gas Bi-fuel", Vehicle_Projections[Scenario], Input_Scenario_Modeled)+ SUMIFS(Vehicle_Projections[Vehicle Stock],Vehicle_Projections[Year],Calculations!Q$4, Vehicle_Projections[Vehicle Type], $A26, Vehicle_Projections[[ Technology Type]], "Propane ICE", Vehicle_Projections[Scenario], Input_Scenario_Modeled)+ SUMIFS(Vehicle_Projections[Vehicle Stock],Vehicle_Projections[Year],Calculations!Q$4, Vehicle_Projections[Vehicle Type], $A26, Vehicle_Projections[[ Technology Type]], "Propane Bi-fuel", Vehicle_Projections[Scenario], Input_Scenario_Modeled)+ SUMIFS(Vehicle_Projections[Vehicle Stock],Vehicle_Projections[Year],Calculations!Q$4, Vehicle_Projections[Vehicle Type], $A26, Vehicle_Projections[[ Technology Type]], "Fuel Cell Methanol", Vehicle_Projections[Scenario], Input_Scenario_Modeled)+ SUMIFS(Vehicle_Projections[Vehicle Stock],Vehicle_Projections[Year],Calculations!Q$4, Vehicle_Projections[Vehicle Type], $A26, Vehicle_Projections[[ Technology Type]], "Fuel Cell Hydrogen", Vehicle_Projections[Scenario], Input_Scenario_Modeled) -> 0.296681 | R26: =SUMIFS(Vehicle_Projections[Vehicle Stock],Vehicle_Projections[Year],Calculations!R$4, Vehicle_Projections[Vehicle Type], $A26, Vehicle_Projections[[ Technology Type]], "Natural Gas ICE", Vehicle_Projections[Scenario], Input_Scenario_Modeled)+ SUMIFS(Vehicle_Projections[Vehicle Stock],Vehicle_Projections[Year],Calculations!R$4, Vehicle_Projections[Vehicle Type], $A26, Vehicle_Projections[[ Technology Type]], "Natural Gas Bi-fuel", Vehicle_Projections[Scenario], Input_Scenario_Modeled)+ SUMIFS(Vehicle_Projections[Vehicle Stock],Vehicle_Projections[Year],Calculations!R$4, Vehicle_Projections[Vehicle Type], $A26, Vehicle_Projections[[ Technology Type]], "Propane ICE", Vehicle_Projections[Scenario], Input_Scenario_Modeled)+ SUMIFS(Vehicle_Projections[Vehicle Stock],Vehicle_Projections[Year],Calculations!R$4, Vehicle_Projections[Vehicle Type], $A26, Vehicle_Projections[[ Technology Type]], "Propane Bi-fuel", Vehicle_Projections[Scenario], Input_Scenario_Modeled)+ SUMIFS(Vehicle_Projections[Vehicle Stock],Vehicle_Projections[Year],Calculations!R$4, Vehicle_Projections[Vehicle Type], $A26, Vehicle_Projections[[ Technology Type]], "Fuel Cell Methanol", Vehicle_Projections[Scenario], Input_Scenario_Modeled)+ SUMIFS(Vehicle_Projections[Vehicle Stock],Vehicle_Projections[Year],Calculations!R$4, Vehicle_Projections[Vehicle Type], $A26, Vehicle_Projections[[ Technology Type]], "Fuel Cell Hydrogen", Vehicle_Projections[Scenario], Input_Scenario_Modeled) -> 0.318499 | S26: =SUMIFS(Vehicle_Projections[Vehicle Stock],Vehicle_Projections[Year],Calculations!S$4, Vehicle_Projections[Vehicle Type], $A26, Vehicle_Projections[[ Technology Type]], "Natural Gas ICE", Vehicle_Projections[Scenario], Input_Scenario_Modeled)+ SUMIFS(Vehicle_Projections[Vehicle Stock],Vehicle_Projections[Year],Calculations!S$4, Vehicle_Projections[Vehicle Type], $A26, Vehicle_Projections[[ Technology Type]], "Natural Gas Bi-fuel", Vehicle_Projections[Scenario], Input_Scenario_Modeled)+ SUMIFS(Vehicle_Projections[Vehicle Stock],Vehicle_Projections[Year],Calculations!S$4, Vehicle_Projections[Vehicle Type], $A26, Vehicle_Projections[[ Technology Type]], "Propane ICE", Vehicle_Projections[Scenario], Input_Scenario_Modeled)+ SUMIFS(Vehicle_Projections[Vehicle Stock],Vehicle_Projections[Year],Calculations!S$4, Vehicle_Projections[Vehicle Type], $A26, Vehicle_Projections[[ Technology Type]], "Propane Bi-fuel", Vehicle_Projections[Scenario], Input_Scenario_Modeled)+ SUMIFS(Vehicle_Projections[Vehicle Stock],Vehicle_Projections[Year],Calculations!S$4, Vehicle_Projections[Vehicle Type], $A26, Vehicle_Projections[[ Technology Type]], "Fuel Cell Methanol", Vehicle_Projections[Scenario], Input_Scenario_Modeled)+ SUMIFS(Vehicle_Projections[Vehicle Stock],Vehicle_Projections[Year],Calculations!S$4, Vehicle_Projections[Vehicle Type], $A26, Vehicle_Projections[[ Technology Type]], "Fuel Cell Hydrogen", Vehicle_Projections[Scenario], Input_Scenario_Modeled) -> 0.33974 | T26: =SUMIFS(Vehicle_Projections[Vehicle Stock],Vehicle_Projections[Year],Calculations!T$4, Vehicle_Projections[Vehicle Type], $A26, Vehicle_Projections[[ Technology Type]], "Natural Gas ICE", Vehicle_Projections[Scenario], Input_Scenario_Modeled)+ SUMIFS(Vehicle_Projections[Vehicle Stock],Vehicle_Projections[Year],Calculations!T$4, Vehicle_Projections[Vehicle Type], $A26, Vehicle_Projections[[ Technology Type]], "Natural Gas Bi-fuel", Vehicle_Projections[Scenario], Input_Scenario_Modeled)+ SUMIFS(Vehicle_Projections[Vehicle Stock],Vehicle_Projections[Year],Calculations!T$4, Vehicle_Projections[Vehicle Type], $A26, Vehicle_Projections[[ Technology Type]], "Propane ICE", Vehicle_Projections[Scenario], Input_Scenario_Modeled)+ SUMIFS(Vehicle_Projections[Vehicle Stock],Vehicle_Projections[Year],Calculations!T$4, Vehicle_Projections[Vehicle Type], $A26, Vehicle_Projections[[ Technology Type]], "Propane Bi-fuel", Vehicle_Projections[Scenario], Input_Scenario_Modeled)+ SUMIFS(Vehicle_Projections[Vehicle Stock],Vehicle_Projections[Year],Calculations!T$4, Vehicle_Projections[Vehicle Type], $A26, Vehicle_Projections[[ Technology Type]], "Fuel Cell Methanol", Vehicle_Projections[Scenario], Input_Scenario_Modeled)+ SUMIFS(Vehicle_Projections[Vehicle Stock],Vehicle_Projections[Year],Calculations!T$4, Vehicle_Projections[Vehicle Type], $A26, Vehicle_Projections[[ Technology Type]], "Fuel Cell Hydrogen", Vehicle_Projections[Scenario], Input_Scenario_Modeled) -> 0.35801 | U26: =SUMIFS(Vehicle_Projections[Vehicle Stock],Vehicle_Projections[Year],Calculations!U$4, Vehicle_Projections[Vehicle Type], $A26, Vehicle_Projections[[ Technology Type]], "Natural Gas ICE", Vehicle_Projections[Scenario], Input_Scenario_Modeled)+ SUMIFS(Vehicle_Projections[Vehicle Stock],Vehicle_Projections[Year],Calculations!U$4, Vehicle_Projections[Vehicle Type], $A26, Vehicle_Projections[[ Technology Type]], "Natural Gas Bi-fuel", Vehicle_Projections[Scenario], Input_Scenario_Modeled)+ SUMIFS(Vehicle_Projections[Vehicle Stock],Vehicle_Projections[Year],Calculations!U$4, Vehicle_Projections[Vehicle Type], $A26, Vehicle_Projections[[ Technology Type]], "Propane ICE", Vehicle_Projections[Scenario], Input_Scenario_Modeled)+ SUMIFS(Vehicle_Projections[Vehicle Stock],Vehicle_Projections[Year],Calculations!U$4, Vehicle_Projections[Vehicle Type], $A26, Vehicle_Projections[[ Technology Type]], "Propane Bi-fuel", Vehicle_Projections[Scenario], Input_Scenario_Modeled)+ SUMIFS(Vehicle_Projections[Vehicle Stock],Vehicle_Projections[Year],Calculations!U$4, Vehicle_Projections[Vehicle Type], $A26, Vehicle_Projections[[ Technology Type]], "Fuel Cell Methanol", Vehicle_Projections[Scenario], Input_Scenario_Modeled)+ SUMIFS(Vehicle_Projections[Vehicle Stock],Vehicle_Projections[Year],Calculations!U$4, Vehicle_Projections[Vehicle Type], $A26, Vehicle_Projections[[ Technology Type]], "Fuel Cell Hydrogen", Vehicle_Projections[Scenario], Input_Scenario_Modeled) -> 0.375132 | V26: =SUMIFS(Vehicle_Projections[Vehicle Stock],Vehicle_Projections[Year],Calculations!V$4, Vehicle_Projections[Vehicle Type], $A26, Vehicle_Projections[[ Technology Type]], "Natural Gas ICE", Vehicle_Projections[Scenario], Input_Scenario_Modeled)+ SUMIFS(Vehicle_Projections[Vehicle Stock],Vehicle_Projections[Year],Calculations!V$4, Vehicle_Projections[Vehicle Type], $A26, Vehicle_Projections[[ Technology Type]], "Natural Gas Bi-fuel", Vehicle_Projections[Scenario], Input_Scenario_Modeled)+ SUMIFS(Vehicle_Projections[Vehicle Stock],Vehicle_Projections[Year],Calculations!V$4, Vehicle_Projections[Vehicle Type], $A26, Vehicle_Projections[[ Technology Type]], "Propane ICE", Vehicle_Projections[Scenario], Input_Scenario_Modeled)+ SUMIFS(Vehicle_Projections[Vehicle Stock],Vehicle_Projections[Year],Calculations!V$4, Vehicle_Projections[Vehicle Type], $A26, Vehicle_Projections[[ Technology Type]], "Propane Bi-fuel", Vehicle_Projections[Scenario], Input_Scenario_Modeled)+ SUMIFS(Vehicle_Projections[Vehicle Stock],Vehicle_Projections[Year],Calculations!V$4, Vehicle_Projections[Vehicle Type], $A26, Vehicle_Projections[[ Technology Type]], "Fuel Cell Methanol", Vehicle_Projections[Scenario], Input_Scenario_Modeled)+ SUMIFS(Vehicle_Projections[Vehicle Stock],Vehicle_Projections[Year],Calculations!V$4, Vehicle_Projections[Vehicle Type], $A26, Vehicle_Projections[[ Technology Type]], "Fuel Cell Hydrogen", Vehicle_Projections[Scenario], Input_Scenario_Modeled) -> 0.391352 | W26: =SUMIFS(Vehicle_Projections[Vehicle Stock],Vehicle_Projections[Year],Calculations!W$4, Vehicle_Projections[Vehicle Type], $A26, Vehicle_Projections[[ Technology Type]], "Natural Gas ICE", Vehicle_Projections[Scenario], Input_Scenario_Modeled)+ SUMIFS(Vehicle_Projections[Vehicle Stock],Vehicle_Projections[Year],Calculations!W$4, Vehicle_Projections[Vehicle Type], $A26, Vehicle_Projections[[ Technology Type]], "Natural Gas Bi-fuel", Vehicle_Projections[Scenario], Input_Scenario_Modeled)+ SUMIFS(Vehicle_Projections[Vehicle Stock],Vehicle_Projections[Year],Calculations!W$4, Vehicle_Projections[Vehicle Type], $A26, Vehicle_Projections[[ Technology Type]], "Propane ICE", Vehicle_Projections[Scenario], Input_Scenario_Modeled)+ SUMIFS(Vehicle_Projections[Vehicle Stock],Vehicle_Projections[Year],Calculations!W$4, Vehicle_Projections[Vehicle Type], $A26, Vehicle_Projections[[ Technology Type]], "Propane Bi-fuel", Vehicle_Projections[Scenario], Input_Scenario_Modeled)+ SUMIFS(Vehicle_Projections[Vehicle Stock],Vehicle_Projections[Year],Calculations!W$4, Vehicle_Projections[Vehicle Type], $A26, Vehicle_Projections[[ Technology Type]], "Fuel Cell Methanol", Vehicle_Projections[Scenario], Input_Scenario_Modeled)+ SUMIFS(Vehicle_Projections[Vehicle Stock],Vehicle_Projections[Year],Calculations!W$4, Vehicle_Projections[Vehicle Type], $A26, Vehicle_Projections[[ Technology Type]], "Fuel Cell Hydrogen", Vehicle_Projections[Scenario], Input_Scenario_Modeled) -> 0.406317 | X26: =SUMIFS(Vehicle_Projections[Vehicle Stock],Vehicle_Projections[Year],Calculations!X$4, Vehicle_Projections[Vehicle Type], $A26, Vehicle_Projections[[ Technology Type]], "Natural Gas ICE", Vehicle_Projections[Scenario], Input_Scenario_Modeled)+ SUMIFS(Vehicle_Projections[Vehicle Stock],Vehicle_Projections[Year],Calculations!X$4, Vehicle_Projections[Vehicle Type], $A26, Vehicle_Projections[[ Technology Type]], "Natural Gas Bi-fuel", Vehicle_Projections[Scenario], Input_Scenario_Modeled)+ SUMIFS(Vehicle_Projections[Vehicle Stock],Vehicle_Projections[Year],Calculations!X$4, Vehicle_Projections[Vehicle Type], $A26, Vehicle_Projections[[ Technology Type]], "Propane ICE", Vehicle_Projections[Scenario], Input_Scenario_Modeled)+ SUMIFS(Vehicle_Projections[Vehicle Stock],Vehicle_Projections[Year],Calculations!X$4, Vehicle_Projections[Vehicle Type], $A26, Vehicle_Projections[[ Technology Type]], "Propane Bi-fuel", Vehicle_Projections[Scenario], Input_Scenario_Modeled)+ SUMIFS(Vehicle_Projections[Vehicle Stock],Vehicle_Projections[Year],Calculations!X$4, Vehicle_Projections[Vehicle Type], $A26, Vehicle_Projections[[ Technology Type]], "Fuel Cell Methanol", Vehicle_Projections[Scenario], Input_Scenario_Modeled)+ SUMIFS(Vehicle_Projections[Vehicle Stock],Vehicle_Projections[Year],Calculations!X$4, Vehicle_Projections[Vehicle Type], $A26, Vehicle_Projections[[ Technology Type]], "Fuel Cell Hydrogen", Vehicle_Projections[Scenario], Input_Scenario_Modeled) -> 0.419966 | Y26: =SUMIFS(Vehicle_Projections[Vehicle Stock],Vehicle_Projections[Year],Calculations!Y$4, Vehicle_Projections[Vehicle Type], $A26, Vehicle_Projections[[ Technology Type]], "Natural Gas ICE", Vehicle_Projections[Scenario], Input_Scenario_Modeled)+ SUMIFS(Vehicle_Projections[Vehicle Stock],Vehicle_Projections[Year],Calculations!Y$4, Vehicle_Projections[Vehicle Type], $A26, Vehicle_Projections[[ Technology Type]], "Natural Gas Bi-fuel", Vehicle_Projections[Scenario], Input_Scenario_Modeled)+ SUMIFS(Vehicle_Projections[Vehicle Stock],Vehicle_Projections[Year],Calculations!Y$4, Vehicle_Projections[Vehicle Type], $A26, Vehicle_Projections[[ Technology Type]], "Propane ICE", Vehicle_Projections[Scenario], Input_Scenario_Modeled)+ SUMIFS(Vehicle_Projections[Vehicle Stock],Vehicle_Projections[Year],Calculations!Y$4, Vehicle_Projections[Vehicle Type], $A26, Vehicle_Projections[[ Technology Type]], "Propane Bi-fuel", Vehicle_Projections[Scenario], Input_Scenario_Modeled)+ SUMIFS(Vehicle_Projections[Vehicle Stock],Vehicle_Projections[Year],Calculations!Y$4, Vehicle_Projections[Vehicle Type], $A26, Vehicle_Projections[[ Technology Type]], "Fuel Cell Methanol", Vehicle_Projections[Scenario], Input_Scenario_Modeled)+ SUMIFS(Vehicle_Projections[Vehicle Stock],Vehicle_Projections[Year],Calculations!Y$4, Vehicle_Projections[Vehicle Type], $A26, Vehicle_Projections[[ Technology Type]], "Fuel Cell Hydrogen", Vehicle_Projections[Scenario], Input_Scenario_Modeled) -> 0.431371 | Z26: =SUMIFS(Vehicle_Projections[Vehicle Stock],Vehicle_Projections[Year],Calculations!Z$4, Vehicle_Projections[Vehicle Type], $A26, Vehicle_Projections[[ Technology Type]], "Natural Gas ICE", Vehicle_Projections[Scenario], Input_Scenario_Modeled)+ SUMIFS(Vehicle_Projections[Vehicle Stock],Vehicle_Projections[Year],Calculations!Z$4, Vehicle_Projections[Vehicle Type], $A26, Vehicle_Projections[[ Technology Type]], "Natural Gas Bi-fuel", Vehicle_Projections[Scenario], Input_Scenario_Modeled)+ SUMIFS(Vehicle_Projections[Vehicle Stock],Vehicle_Projections[Year],Calculations!Z$4, Vehicle_Projections[Vehicle Type], $A26, Vehicle_Projections[[ Technology Type]], "Propane ICE", Vehicle_Projections[Scenario], Input_Scenario_Modeled)+ SUMIFS(Vehicle_Projections[Vehicle Stock],Vehicle_Projections[Year],Calculations!Z$4, Vehicle_Projections[Vehicle Type], $A26, Vehicle_Projections[[ Technology Type]], "Propane Bi-fuel", Vehicle_Projections[Scenario], Input_Scenario_Modeled)+ SUMIFS(Vehicle_Projections[Vehicle Stock],Vehicle_Projections[Year],Calculations!Z$4, Vehicle_Projections[Vehicle Type], $A26, Vehicle_Projections[[ Technology Type]], "Fuel Cell Methanol", Vehicle_Projections[Scenario], Input_Scenario_Modeled)+ SUMIFS(Vehicle_Projections[Vehicle Stock],Vehicle_Projections[Year],Calculations!Z$4, Vehicle_Projections[Vehicle Type], $A26, Vehicle_Projections[[ Technology Type]], "Fuel Cell Hydrogen", Vehicle_Projections[Scenario], Input_Scenario_Modeled) -> 0.441198 | AA26: =SUMIFS(Vehicle_Projections[Vehicle Stock],Vehicle_Projections[Year],Calculations!AA$4, Vehicle_Projections[Vehicle Type], $A26, Vehicle_Projections[[ Technology Type]], "Natural Gas ICE", Vehicle_Projections[Scenario], Input_Scenario_Modeled)+ SUMIFS(Vehicle_Projections[Vehicle Stock],Vehicle_Projections[Year],Calculations!AA$4, Vehicle_Projections[Vehicle Type], $A26, Vehicle_Projections[[ Technology Type]], "Natural Gas Bi-fuel", Vehicle_Projections[Scenario], Input_Scenario_Modeled)+ SUMIFS(Vehicle_Projections[Vehicle Stock],Vehicle_Projections[Year],Calculations!AA$4, Vehicle_Projections[Vehicle Type], $A26, Vehicle_Projections[[ Technology Type]], "Propane ICE", Vehicle_Projections[Scenario], Input_Scenario_Modeled)+ SUMIFS(Vehicle_Projections[Vehicle Stock],Vehicle_Projections[Year],Calculations!AA$4, Vehicle_Projections[Vehicle Type], $A26, Vehicle_Projections[[ Technology Type]], "Propane Bi-fuel", Vehicle_Projections[Scenario], Input_Scenario_Modeled)+ SUMIFS(Vehicle_Projections[Vehicle Stock],Vehicle_Projections[Year],Calculations!AA$4, Vehicle_Projections[Vehicle Type], $A26, Vehicle_Projections[[ Technology Type]], "Fuel Cell Methanol", Vehicle_Projections[Scenario], Input_Scenario_Modeled)+ SUMIFS(Vehicle_Projections[Vehicle Stock],Vehicle_Projections[Year],Calculations!AA$4, Vehicle_Projections[Vehicle Type], $A26, Vehicle_Projections[[ Technology Type]], "Fuel Cell Hydrogen", Vehicle_Projections[Scenario], Input_Scenario_Modeled) -> 0.449593 | AB26: =SUMIFS(Vehicle_Projections[Vehicle Stock],Vehicle_Projections[Year],Calculations!AB$4, Vehicle_Projections[Vehicle Type], $A26, Vehicle_Projections[[ Technology Type]], "Natural Gas ICE", Vehicle_Projections[Scenario], Input_Scenario_Modeled)+ SUMIFS(Vehicle_Projections[Vehicle Stock],Vehicle_Projections[Year],Calculations!AB$4, Vehicle_Projections[Vehicle Type], $A26, Vehicle_Projections[[ Technology Type]], "Natural Gas Bi-fuel", Vehicle_Projections[Scenario], Input_Scenario_Modeled)+ SUMIFS(Vehicle_Projections[Vehicle Stock],Vehicle_Projections[Year],Calculations!AB$4, Vehicle_Projections[Vehicle Type], $A26, Vehicle_Projections[[ Technology Type]], "Propane ICE", Vehicle_Projections[Scenario], Input_Scenario_Modeled)+ SUMIFS(Vehicle_Projections[Vehicle Stock],Vehicle_Projections[Year],Calculations!AB$4, Vehicle_Projections[Vehicle Type], $A26, Vehicle_Projections[[ Technology Type]], "Propane Bi-fuel", Vehicle_Projections[Scenario], Input_Scenario_Modeled)+ SUMIFS(Vehicle_Projections[Vehicle Stock],Vehicle_Projections[Year],Calculations!AB$4, Vehicle_Projections[Vehicle Type], $A26, Vehicle_Projections[[ Technology Type]], "Fuel Cell Methanol", Vehicle_Projections[Scenario], Input_Scenario_Modeled)+ SUMIFS(Vehicle_Projections[Vehicle Stock],Vehicle_Projections[Year],Calculations!AB$4, Vehicle_Projections[Vehicle Type], $A26, Vehicle_Projections[[ Technology Type]], "Fuel Cell Hydrogen", Vehicle_Projections[Scenario], Input_Scenario_Modeled) -> 0.456754 | AC26: =SUMIFS(Vehicle_Projections[Vehicle Stock],Vehicle_Projections[Year],Calculations!AC$4, Vehicle_Projections[Vehicle Type], $A26, Vehicle_Projections[[ Technology Type]], "Natural Gas ICE", Vehicle_Projections[Scenario], Input_Scenario_Modeled)+ SUMIFS(Vehicle_Projections[Vehicle Stock],Vehicle_Projections[Year],Calculations!AC$4, Vehicle_Projections[Vehicle Type], $A26, Vehicle_Projections[[ Technology Type]], "Natural Gas Bi-fuel", Vehicle_Projections[Scenario], Input_Scenario_Modeled)+ SUMIFS(Vehicle_Projections[Vehicle Stock],Vehicle_Projections[Year],Calculations!AC$4, Vehicle_Projections[Vehicle Type], $A26, Vehicle_Projections[[ Technology Type]], "Propane ICE", Vehicle_Projections[Scenario], Input_Scenario_Modeled)+ SUMIFS(Vehicle_Projections[Vehicle Stock],Vehicle_Projections[Year],Calculations!AC$4, Vehicle_Projections[Vehicle Type], $A26, Vehicle_Projections[[ Technology Type]], "Propane Bi-fuel", Vehicle_Projections[Scenario], Input_Scenario_Modeled)+ SUMIFS(Vehicle_Projections[Vehicle Stock],Vehicle_Projections[Year],Calculations!AC$4, Vehicle_Projections[Vehicle Type], $A26, Vehicle_Projections[[ Technology Type]], "Fuel Cell Methanol", Vehicle_Projections[Scenario], Input_Scenario_Modeled)+ SUMIFS(Vehicle_Projections[Vehicle Stock],Vehicle_Projections[Year],Calculations!AC$4, Vehicle_Projections[Vehicle Type], $A26, Vehicle_Projections[[ Technology Type]], "Fuel Cell Hydrogen", Vehicle_Projections[Scenario], Input_Scenario_Modeled) -> 0.462638 | AD26: =SUMIFS(Vehicle_Projections[Vehicle Stock],Vehicle_Projections[Year],Calculations!AD$4, Vehicle_Projections[Vehicle Type], $A26, Vehicle_Projections[[ Technology Type]], "Natural Gas ICE", Vehicle_Projections[Scenario], Input_Scenario_Modeled)+ SUMIFS(Vehicle_Projections[Vehicle Stock],Vehicle_Projections[Year],Calculations!AD$4, Vehicle_Projections[Vehicle Type], $A26, Vehicle_Projections[[ Technology Type]], "Natural Gas Bi-fuel", Vehicle_Projections[Scenario], Input_Scenario_Modeled)+ SUMIFS(Vehicle_Projections[Vehicle Stock],Vehicle_Projections[Year],Calculations!AD$4, Vehicle_Projections[Vehicle Type], $A26, Vehicle_Projections[[ Technology Type]], "Propane ICE", Vehicle_Projections[Scenario], Input_Scenario_Modeled)+ SUMIFS(Vehicle_Projections[Vehicle Stock],Vehicle_Projections[Year],Calculations!AD$4, Vehicle_Projections[Vehicle Type], $A26, Vehicle_Projections[[ Technology Type]], "Propane Bi-fuel", Vehicle_Projections[Scenario], Input_Scenario_Modeled)+ SUMIFS(Vehicle_Projections[Vehicle Stock],Vehicle_Projections[Year],Calculations!AD$4, Vehicle_Projections[Vehicle Type], $A26, Vehicle_Projections[[ Technology Type]], "Fuel Cell Methanol", Vehicle_Projections[Scenario], Input_Scenario_Modeled)+ SUMIFS(Vehicle_Projections[Vehicle Stock],Vehicle_Projections[Year],Calculations!AD$4, Vehicle_Projections[Vehicle Type], $A26, Vehicle_Projections[[ Technology Type]], "Fuel Cell Hydrogen", Vehicle_Projections[Scenario], Input_Scenario_Modeled) -> 0.467538 | AE26: =SUMIFS(Vehicle_Projections[Vehicle Stock],Vehicle_Projections[Year],Calculations!AE$4, Vehicle_Projections[Vehicle Type], $A26, Vehicle_Projections[[ Technology Type]], "Natural Gas ICE", Vehicle_Projections[Scenario], Input_Scenario_Modeled)+ SUMIFS(Vehicle_Projections[Vehicle Stock],Vehicle_Projections[Year],Calculations!AE$4, Vehicle_Projections[Vehicle Type], $A26, Vehicle_Projections[[ Technology Type]], "Natural Gas Bi-fuel", Vehicle_Projections[Scenario], Input_Scenario_Modeled)+ SUMIFS(Vehicle_Projections[Vehicle Stock],Vehicle_Projections[Year],Calculations!AE$4, Vehicle_Projections[Vehicle Type], $A26, Vehicle_Projections[[ Technology Type]], "Propane ICE", Vehicle_Projections[Scenario], Input_Scenario_Modeled)+ SUMIFS(Vehicle_Projections[Vehicle Stock],Vehicle_Projections[Year],Calculations!AE$4, Vehicle_Projections[Vehicle Type], $A26, Vehicle_Projections[[ Technology Type]], "Propane Bi-fuel", Vehicle_Projections[Scenario], Input_Scenario_Modeled)+ SUMIFS(Vehicle_Projections[Vehicle Stock],Vehicle_Projections[Year],Calculations!AE$4, Vehicle_Projections[Vehicle Type], $A26, Vehicle_Projections[[ Technology Type]], "Fuel Cell Methanol", Vehicle_Projections[Scenario], Input_Scenario_Modeled)+ SUMIFS(Vehicle_Projections[Vehicle Stock],Vehicle_Projections[Year],Calculations!AE$4, Vehicle_Projections[Vehicle Type], $A26, Vehicle_Projections[[ Technology Type]], "Fuel Cell Hydrogen", Vehicle_Projections[Scenario], Input_Scenario_Modeled) -> 0.471724 | AF26: =SUMIFS(Vehicle_Projections[Vehicle Stock],Vehicle_Projections[Year],Calculations!AF$4, Vehicle_Projections[Vehicle Type], $A26, Vehicle_Projections[[ Technology Type]], "Natural Gas ICE", Vehicle_Projections[Scenario], Input_Scenario_Modeled)+ SUMIFS(Vehicle_Projections[Vehicle Stock],Vehicle_Projections[Year],Calculations!AF$4, Vehicle_Projections[Vehicle Type], $A26, Vehicle_Projections[[ Technology Type]], "Natural Gas Bi-fuel", Vehicle_Projections[Scenario], Input_Scenario_Modeled)+ SUMIFS(Vehicle_Projections[Vehicle Stock],Vehicle_Projections[Year],Calculations!AF$4, Vehicle_Projections[Vehicle Type], $A26, Vehicle_Projections[[ Technology Type]], "Propane ICE", Vehicle_Projections[Scenario], Input_Scenario_Modeled)+ SUMIFS(Vehicle_Projections[Vehicle Stock],Vehicle_Projections[Year],Calculations!AF$4, Vehicle_Projections[Vehicle Type], $A26, Vehicle_Projections[[ Technology Type]], "Propane Bi-fuel", Vehicle_Projections[Scenario], Input_Scenario_Modeled)+ SUMIFS(Vehicle_Projections[Vehicle Stock],Vehicle_Projections[Year],Calculations!AF$4, Vehicle_Projections[Vehicle Type], $A26, Vehicle_Projections[[ Technology Type]], "Fuel Cell Methanol", Vehicle_Projections[Scenario], Input_Scenario_Modeled)+ SUMIFS(Vehicle_Projections[Vehicle Stock],Vehicle_Projections[Year],Calculations!AF$4, Vehicle_Projections[Vehicle Type], $A26, Vehicle_Projections[[ Technology Type]], "Fuel Cell Hydrogen", Vehicle_Projections[Scenario], Input_Scenario_Modeled) -> 0.475382 | AG26: =SUMIFS(Vehicle_Projections[Vehicle Stock],Vehicle_Projections[Year],Calculations!AG$4, Vehicle_Projections[Vehicle Type], $A26, Vehicle_Projections[[ Technology Type]], "Natural Gas ICE", Vehicle_Projections[Scenario], Input_Scenario_Modeled)+ SUMIFS(Vehicle_Projections[Vehicle Stock],Vehicle_Projections[Year],Calculations!AG$4, Vehicle_Projections[Vehicle Type], $A26, Vehicle_Projections[[ Technology Type]], "Natural Gas Bi-fuel", Vehicle_Projections[Scenario], Input_Scenario_Modeled)+ SUMIFS(Vehicle_Projections[Vehicle Stock],Vehicle_Projections[Year],Calculations!AG$4, Vehicle_Projections[Vehicle Type], $A26, Vehicle_Projections[[ Technology Type]], "Propane ICE", Vehicle_Projections[Scenario], Input_Scenario_Modeled)+ SUMIFS(Vehicle_Projections[Vehicle Stock],Vehicle_Projections[Year],Calculations!AG$4, Vehicle_Projections[Vehicle Type], $A26, Vehicle_Projections[[ Technology Type]], "Propane Bi-fuel", Vehicle_Projections[Scenario], Input_Scenario_Modeled)+ SUMIFS(Vehicle_Projections[Vehicle Stock],Vehicle_Projections[Year],Calculations!AG$4, Vehicle_Projections[Vehicle Type], $A26, Vehicle_Projections[[ Technology Type]], "Fuel Cell Methanol", Vehicle_Projections[Scenario], Input_Scenario_Modeled)+ SUMIFS(Vehicle_Projections[Vehicle Stock],Vehicle_Projections[Year],Calculations!AG$4, Vehicle_Projections[Vehicle Type], $A26, Vehicle_Projections[[ Technology Type]], "Fuel Cell Hydrogen", Vehicle_Projections[Scenario], Input_Scenario_Modeled) -> 0.478562 | AH26: =SUMIFS(Vehicle_Projections[Vehicle Stock],Vehicle_Projections[Year],Calculations!AH$4, Vehicle_Projections[Vehicle Type], $A26, Vehicle_Projections[[ Technology Type]], "Natural Gas ICE", Vehicle_Projections[Scenario], Input_Scenario_Modeled)+ SUMIFS(Vehicle_Projections[Vehicle Stock],Vehicle_Projections[Year],Calculations!AH$4, Vehicle_Projections[Vehicle Type], $A26, Vehicle_Projections[[ Technology Type]], "Natural Gas Bi-fuel", Vehicle_Projections[Scenario], Input_Scenario_Modeled)+ SUMIFS(Vehicle_Projections[Vehicle Stock],Vehicle_Projections[Year],Calculations!AH$4, Vehicle_Projections[Vehicle Type], $A26, Vehicle_Projections[[ Technology Type]], "Propane ICE", Vehicle_Projections[Scenario], Input_Scenario_Modeled)+ SUMIFS(Vehicle_Projections[Vehicle Stock],Vehicle_Projections[Year],Calculations!AH$4, Vehicle_Projections[Vehicle Type], $A26, Vehicle_Projections[[ Technology Type]], "Propane Bi-fuel", Vehicle_Projections[Scenario], Input_Scenario_Modeled)+ SUMIFS(Vehicle_Projections[Vehicle Stock],Vehicle_Projections[Year],Calculations!AH$4, Vehicle_Projections[Vehicle Type], $A26, Vehicle_Projections[[ Technology Type]], "Fuel Cell Methanol", Vehicle_Projections[Scenario], Input_Scenario_Modeled)+ SUMIFS(Vehicle_Projections[Vehicle Stock],Vehicle_Projections[Year],Calculations!AH$4, Vehicle_Projections[Vehicle Type], $A26, Vehicle_Projections[[ Technology Type]], "Fuel Cell Hydrogen", Vehicle_Projections[Scenario], Input_Scenario_Modeled) -> 0.481306 | AI26: =SUMIFS(Vehicle_Projections[Vehicle Stock],Vehicle_Projections[Year],Calculations!AI$4, Vehicle_Projections[Vehicle Type], $A26, Vehicle_Projections[[ Technology Type]], "Natural Gas ICE", Vehicle_Projections[Scenario], Input_Scenario_Modeled)+ SUMIFS(Vehicle_Projections[Vehicle Stock],Vehicle_Projections[Year],Calculations!AI$4, Vehicle_Projections[Vehicle Type], $A26, Vehicle_Projections[[ Technology Type]], "Natural Gas Bi-fuel", Vehicle_Projections[Scenario], Input_Scenario_Modeled)+ SUMIFS(Vehicle_Projections[Vehicle Stock],Vehicle_Projections[Year],Calculations!AI$4, Vehicle_Projections[Vehicle Type], $A26, Vehicle_Projections[[ Technology Type]], "Propane ICE", Vehicle_Projections[Scenario], Input_Scenario_Modeled)+ SUMIFS(Vehicle_Projections[Vehicle Stock],Vehicle_Projections[Year],Calculations!AI$4, Vehicle_Projections[Vehicle Type], $A26, Vehicle_Projections[[ Technology Type]], "Propane Bi-fuel", Vehicle_Projections[Scenario], Input_Scenario_Modeled)+ SUMIFS(Vehicle_Projections[Vehicle Stock],Vehicle_Projections[Year],Calculations!AI$4, Vehicle_Projections[Vehicle Type], $A26, Vehicle_Projections[[ Technology Type]], "Fuel Cell Methanol", Vehicle_Projections[Scenario], Input_Scenario_Modeled)+ SUMIFS(Vehicle_Projections[Vehicle Stock],Vehicle_Projections[Year],Calculations!AI$4, Vehicle_Projections[Vehicle Type], $A26, Vehicle_Projections[[ Technology Type]], "Fuel Cell Hydrogen", Vehicle_Projections[Scenario], Input_Scenario_Modeled) -> 0.483827 | AJ26: =SUMIFS(Vehicle_Projections[Vehicle Stock],Vehicle_Projections[Year],Calculations!AJ$4, Vehicle_Projections[Vehicle Type], $A26, Vehicle_Projections[[ Technology Type]], "Natural Gas ICE", Vehicle_Projections[Scenario], Input_Scenario_Modeled)+ SUMIFS(Vehicle_Projections[Vehicle Stock],Vehicle_Projections[Year],Calculations!AJ$4, Vehicle_Projections[Vehicle Type], $A26, Vehicle_Projections[[ Technology Type]], "Natural Gas Bi-fuel", Vehicle_Projections[Scenario], Input_Scenario_Modeled)+ SUMIFS(Vehicle_Projections[Vehicle Stock],Vehicle_Projections[Year],Calculations!AJ$4, Vehicle_Projections[Vehicle Type], $A26, Vehicle_Projections[[ Technology Type]], "Propane ICE", Vehicle_Projections[Scenario], Input_Scenario_Modeled)+ SUMIFS(Vehicle_Projections[Vehicle Stock],Vehicle_Projections[Year],Calculations!AJ$4, Vehicle_Projections[Vehicle Type], $A26, Vehicle_Projections[[ Technology Type]], "Propane Bi-fuel", Vehicle_Projections[Scenario], Input_Scenario_Modeled)+ SUMIFS(Vehicle_Projections[Vehicle Stock],Vehicle_Projections[Year],Calculations!AJ$4, Vehicle_Projections[Vehicle Type], $A26, Vehicle_Projections[[ Technology Type]], "Fuel Cell Methanol", Vehicle_Projections[Scenario], Input_Scenario_Modeled)+ SUMIFS(Vehicle_Projections[Vehicle Stock],Vehicle_Projections[Year],Calculations!AJ$4, Vehicle_Projections[Vehicle Type], $A26, Vehicle_Projections[[ Technology Type]], "Fuel Cell Hydrogen", Vehicle_Projections[Scenario], Input_Scenario_Modeled) -> 0.486419 | AK26: =SUMIFS(Vehicle_Projections[Vehicle Stock],Vehicle_Projections[Year],Calculations!AK$4, Vehicle_Projections[Vehicle Type], $A26, Vehicle_Projections[[ Technology Type]], "Natural Gas ICE", Vehicle_Projections[Scenario], Input_Scenario_Modeled)+ SUMIFS(Vehicle_Projections[Vehicle Stock],Vehicle_Projections[Year],Calculations!AK$4, Vehicle_Projections[Vehicle Type], $A26, Vehicle_Projections[[ Technology Type]], "Natural Gas Bi-fuel", Vehicle_Projections[Scenario], Input_Scenario_Modeled)+ SUMIFS(Vehicle_Projections[Vehicle Stock],Vehicle_Projections[Year],Calculations!AK$4, Vehicle_Projections[Vehicle Type], $A26, Vehicle_Projections[[ Technology Type]], "Propane ICE", Vehicle_Projections[Scenario], Input_Scenario_Modeled)+ SUMIFS(Vehicle_Projections[Vehicle Stock],Vehicle_Projections[Year],Calculations!AK$4, Vehicle_Projections[Vehicle Type], $A26, Vehicle_Projections[[ Technology Type]], "Propane Bi-fuel", Vehicle_Projections[Scenario], Input_Scenario_Modeled)+ SUMIFS(Vehicle_Projections[Vehicle Stock],Vehicle_Projections[Year],Calculations!AK$4, Vehicle_Projections[Vehicle Type], $A26, Vehicle_Projections[[ Technology Type]], "Fuel Cell Methanol", Vehicle_Projections[Scenario], Input_Scenario_Modeled)+ SUMIFS(Vehicle_Projections[Vehicle Stock],Vehicle_Projections[Year],Calculations!AK$4, Vehicle_Projections[Vehicle Type], $A26, Vehicle_Projections[[ Technology Type]], "Fuel Cell Hydrogen", Vehicle_Projections[Scenario], Input_Scenario_Modeled) -> 0.489056 | AL26: =SUMIFS(Vehicle_Projections[Vehicle Stock],Vehicle_Projections[Year],Calculations!AL$4, Vehicle_Projections[Vehicle Type], $A26, Vehicle_Projections[[ Technology Type]], "Natural Gas ICE", Vehicle_Projections[Scenario], Input_Scenario_Modeled)+ SUMIFS(Vehicle_Projections[Vehicle Stock],Vehicle_Projections[Year],Calculations!AL$4, Vehicle_Projections[Vehicle Type], $A26, Vehicle_Projections[[ Technology Type]], "Natural Gas Bi-fuel", Vehicle_Projections[Scenario], Input_Scenario_Modeled)+ SUMIFS(Vehicle_Projections[Vehicle Stock],Vehicle_Projections[Year],Calculations!AL$4, Vehicle_Projections[Vehicle Type], $A26, Vehicle_Projections[[ Technology Type]], "Propane ICE", Vehicle_Projections[Scenario], Input_Scenario_Modeled)+ SUMIFS(Vehicle_Projections[Vehicle Stock],Vehicle_Projections[Year],Calculations!AL$4, Vehicle_Projections[Vehicle Type], $A26, Vehicle_Projections[[ Technology Type]], "Propane Bi-fuel", Vehicle_Projections[Scenario], Input_Scenario_Modeled)+ SUMIFS(Vehicle_Projections[Vehicle Stock],Vehicle_Projections[Year],Calculations!AL$4, Vehicle_Projections[Vehicle Type], $A26, Vehicle_Projections[[ Technology Type]], "Fuel Cell Methanol", Vehicle_Projections[Scenario], Input_Scenario_Modeled)+ SUMIFS(Vehicle_Projections[Vehicle Stock],Vehicle_Projections[Year],Calculations!AL$4, Vehicle_Projections[Vehicle Type], $A26, Vehicle_Projections[[ Technology Type]], "Fuel Cell Hydrogen", Vehicle_Projections[Scenario], Input_Scenario_Modeled) -> 0.491793
